Workbook

Sheet Select
A2: State | B2: NY
A3: Coverage | B3: PIP
A4: Attribute | B4: PurePremium
A7: Start | B7: 10 | D7: Note: the latest prediction period is 45-48
A8: Length | B8: 30
A9: End | B9: =IF(OR(B7="",B8=""), "",B7+B8-1) -> 39
A10: Prediction Period | B10: =IF(B9="", "", B9+1&"-"&B9+4) -> 40-43

Sheet DataOutput
B1: State# | C1: Coverage# | D1: Attribute#
B2: =INDEX(State,MATCH(Select!$B$2,StateAbbr),1) -> 16 | C2: =INDEX(Coverage,MATCH(Select!$B$3,CoverageAbbr),1) -> 6 | D2: =INDEX(Attribute,MATCH(Select!$B$4,Attr,FALSE),1) -> 3 | F2: Index= | G2: =B2*1000+C2*100 -> 16600 | O2: 3
A4: =Select!$B$2 & "_" & Select!$B$3 & "_" &Select!$B$4 -> NY_PIP_PurePremium
A5: t | B5: t (index) | C5: x | E5: Predictions
A6: 9-1996 | B6: 1 | C6: =VLOOKUP($G$2+B6,Data,8+$D$2,FALSE) -> 23.78358662 | F6: ="Linear" &" " & Select!$B$8 -> Linear 30 | G6: ="Exponential" & " " & Select!$B$8 -> Exponential 30 | H6: ="Log" & " " & Select!$B$8 -> Log 30 | I6: ="Power" & " " & Select!$B$8 -> Power 30 | J6: Yearly | K6: Level | L6: Quately | M6: Auto-Regressive | N6: Linear Exponential
A7: 12-1996 | B7: 2 | C7: 30.06034779 | E7: a= | F7: =Linear!$G$10 -> 0.9661978417 | G7: ='Exponential '!$H$10 -> 70.09230352 | H7: =Log!$H$10 -> 7.093971735 | I7: =Power!$I$10 -> 60.20556725
A8: 3-1997 | B8: 3 | C8: 44.28945651 | D8: =IF(Select!$B$4="Severity",DataOutput!F27," ") ->  | E8: b= | F8: =Linear!$G$11 -> 69.76931641 | G8: ='Exponential '!$H$11 -> 0.01153121934 | H8: =Log!$H$11 -> 65.04121963 | I8: =Power!$I$11 -> 0.1329185166
A9: 6-1997 | B9: 4 | C9: 52.33446037 | D9: Index | E9: t
A10: 9-1997 | B10: 5 | C10: =VLOOKUP($G$2+B10,Data,8+$D$2,FALSE) -> 57.57661136 | D10: =IF(Select!$B$9="", "N/A", Select!$B$9+1) -> 40 | E10: =IF(Select!$B$8="", "N/A", Select!$B$8+1) -> 31 | F10: =$F$7*E10 +$F$8 -> 99.7214495 | G10: =$G$7*EXP($G$8*E10) -> 100.2112838 | H10: =$H$7*LN(E10)+$H$8 -> 89.40182779 | I10: =$I$7*(E10^$I$8) -> 95.03120512 | J10: =VLOOKUP(D10-4,B:C,2)/VLOOKUP(D10-5,B:C,2)*VLOOKUP(D10-1,B:C,2) -> 68.4056771 | K10: =VLOOKUP($D$10-1,B:C,2) -> 73.10056781 | L10: =VLOOKUP(D10-1,B:C,2)/VLOOKUP(D10-2,B:C,2)*VLOOKUP(D10-1,B:C,2) -> 68.7915255 | M10: =AutoRegressive!$O2 -> 74.75149113 | N10: =ExponentialSmooting!$U2 -> 88.11788246
A11: 12-1997 | B11: 6 | C11: 59.79765537 | D11: =IF(Select!$B$9="", "N/A", Select!$B$9+2) -> 41 | E11: =IF(Select!$B$8="", "N/A", Select!$B$8+2) -> 32 | F11: =$F$7*E11 +$F$8 -> 100.6876473 | G11: =$G$7*EXP($G$8*E11) -> 101.3735302 | H11: =$H$7*LN(E11)+$H$8 -> 89.62705216 | I11: =$I$7*(E11^$I$8) -> 95.43308321 | J11: =VLOOKUP(D11-4,B:C,2)/VLOOKUP(D11-5,B:C,2)*J10 -> 55.80428628 | K11: =VLOOKUP($D$10-1,B:C,2) -> 73.10056781 | L11: =L10/VLOOKUP(D11-2,B:C,2)*L10 -> 64.73648731 | M11: =AutoRegressive!$O3 -> 76.1226523 | N11: =ExponentialSmooting!$U3 -> 88.02556788
A12: 3-1998 | B12: 7 | C12: 62.41548967 | D12: =IF(Select!$B$9="", "N/A", Select!$B$9+3) -> 42 | E12: =IF(Select!$B$8="", "N/A", Select!$B$8+3) -> 33 | F12: =$F$7*E12 +$F$8 -> 101.6538452 | G12: =$G$7*EXP($G$8*E12) -> 102.5492564 | H12: =$H$7*LN(E12)+$H$8 -> 89.84534544 | I12: =$I$7*(E12^$I$8) -> 95.82421562 | J12: =VLOOKUP(D12-4,B:C,2)/VLOOKUP(D12-5,B:C,2)*J11 -> 56.18042869 | K12: =VLOOKUP($D$10-1,B:C,2) -> 73.10056781 | L12: =L11/L10*L11 -> 60.92048052 | M12: =AutoRegressive!$O4 -> 77.26264553 | N12: =ExponentialSmooting!$U4 -> 87.93429808
A13: 6-1998 | B13: 8 | C13: 61.39072818 | D13: =IF(Select!$B$9="", "N/A", Select!$B$9+4) -> 43 | E13: =IF(Select!$B$8="", "N/A", Select!$B$8+4) -> 34 | F13: =$F$7*E13 +$F$8 -> 102.620043 | G13: =$G$7*EXP($G$8*E13) -> 103.7386186 | H13: =$H$7*LN(E13)+$H$8 -> 90.05712152 | I13: =$I$7*(E13^$I$8) -> 96.2052026 | J13: =VLOOKUP(D13-4,B:C,2)/VLOOKUP(D13-5,B:C,2)*J12 -> 52.86877391 | K13: =VLOOKUP($D$10-1,B:C,2) -> 73.10056781 | L13: =L12/L11*L12 -> 57.329415 | M13: =AutoRegressive!$O5 -> 78.21137054 | N13: =ExponentialSmooting!$U5 -> 87.83298595
A14: 9-1998 | B14: 9 | C14: 61.10725117
A15: 12-1998 | B15: 10 | C15: 63.91674231
A16: 3-1999 | B16: 11 | C16: 63.19335447
A17: 6-1999 | B17: 12 | C17: 70.14646369 | E17: Residual
A18: 9-1999 | B18: 13 | C18: 73.92375174 | F18: ="Linear" &" " & Select!$B$8 -> Linear 30 | G18: ="Exponential" & " " & Select!$B$8 -> Exponential 30 | H18: ="Log" & " " & Select!$B$8 -> Log 30 | I18: ="Power" & " " & Select!$B$8 -> Power 30 | J18: Yearly | K18: Level | L18: Quately | M18: Auto-Regressive | N18: Linear Exponential
A19: 12-1999 | B19: 14 | C19: 75.26062398 | F19: =ABS(VLOOKUP($D10,table,2)-F10) -> 27.6894173 | G19: =ABS(VLOOKUP($D10,table,2)-G10) -> 28.17925156 | H19: 17.36979559 | I19: =ABS(VLOOKUP($D10,table,2)-I10) -> 22.99917291 | J19: =ABS(VLOOKUP($D10,table,2)-J10) -> 3.626355107 | K19: 1.068535605 | L19: =ABS(VLOOKUP($D10,table,2)-L10) -> 3.240506707 | M19: =ABS(VLOOKUP($D10,table,2)-M10) -> 2.719458922 | N19: =ABS(VLOOKUP($D10,table,2)-N10) -> 16.08585026
A20: 3-2000 | B20: 15 | C20: 78.44300239 | F20: 18.18246719 | G20: 18.86835009 | H20: 7.12187201 | I20: 12.92790305 | J20: 26.70089387 | K20: 9.404612345 | L20: 17.76869284 | M20: =ABS(VLOOKUP($D11,table,2)-M11) -> 6.38252785 | N20: =ABS(VLOOKUP($D11,table,2)-N11) -> 5.520387725
A21: 6-2000 | B21: 16 | C21: 74.96997805 | F21: 12.73797418 | G21: 13.6333854 | H21: 0.9294744364 | I21: 6.908344618 | J21: =ABS(VLOOKUP($D12,table,2)-J12) -> 32.73544232 | K21: 15.8153032 | L21: 27.99539048 | M21: =ABS(VLOOKUP($D12,table,2)-M12) -> 11.65322548 | N21: =ABS(VLOOKUP($D12,table,2)-N12) -> 0.9815729222
A22: 9-2000 | B22: 17 | C22: 70.17932626 | F22: =ABS(VLOOKUP($D13,table,2)-F13) -> 1.317910161 | G22: 2.436485728 | H22: 11.24501135 | I22: 5.096930269 | J22: 48.43335895 | K22: 28.20156506 | L22: 43.97271786 | M22: =ABS(VLOOKUP($D13,table,2)-M13) -> 23.09076232 | N22: 13.46914692
A23: 12-2000 | B23: 18 | C23: 72.50919698
A24: 3-2001 | B24: 19 | C24: 74.91800546
A25: 6-2001 | B25: 20 | C25: 80.01514613
A26: 9-2001 | B26: 21 | C26: 84.77891317 | E26: Average Residual
A27: 12-2001 | B27: 22 | C27: 88.5146316 | E27: ∑Xi/4 = | F27: =SUM(F19:F22)/4 -> 14.98194221 | G27: =SUM(G19:G22)/4 -> 15.7793682 | H27: 9.166538347 | I27: 11.98308771 | J27: 27.87401256 | K27: 13.62250405 | L27: 23.24432697 | M27: =SUM(M19:M22)/4 -> 10.96149364 | N27: =SUM(N19:N22)/4 -> 9.014239455
A28: 3-2002 | B28: 23 | C28: 86.44477755
A29: 6-2002 | B29: 24 | C29: 84.72007986
A30: 9-2002 | B30: 25 | C30: 87.28692803 | F30: Average of the actual value:
A31: 12-2002 | B31: 26 | C31: 84.86864884 | F31: (X23+X24+X25+X26)/4= | H31: =SUM(VLOOKUP($D$10,table,2)+VLOOKUP($D$11,table,2)+VLOOKUP($D$12,table,2)+VLOOKUP($D$13,table,2))/4 -> 86.18880406
A32: 3-2003 | B32: 27 | C32: 94.07194501
A33: 6-2003 | B33: 28 | C33: 96.39637977 | E33: Margin of Error
A34: 9-2003 | B34: 29 | C34: 97.08163483 | F34: =F27/$H$31 -> 0.1738270112 | G34: =G27/$H$31 -> 0.1830790944 | H34: =H27/$H$31 -> 0.1063541657 | I34: =I27/$H$31 -> 0.1390329967 | J34: =J27/$H$31 -> 0.32340642 | K34: =K27/$H$31 -> 0.1580542183 | L34: =L27/$H$31 -> 0.2696907937 | M34: 0.1271800179 | N34: 0.1045871277
A35: 12-2003 | B35: 30 | C35: 99.21597435
A36: 3-2004 | B36: 31 | C36: 97.55006085 | F36: Average Residual | I36: Margin of Error
A37: 6-2004 | B37: 32 | C37: 102.8543956 | F37: Green | G37: Best Prediction | I37: Green | J37: <=10%
A38: 9-2004 | B38: 33 | C38: 109.0684609 | F38: Yellow | G38: Median | I38: Yellow | J38: 10%<50%
A39: 12-2004 | B39: 34 | C39: 108.4357554 | F39: Red | G39: Worst Prediction | I39: Red | J39: >=50%
A40: 3-2005 | B40: 35 | C40: 101.0746537
A41: 6-2005 | B41: 36 | C41: 94.58312472
A42: 9-2005 | B42: 37 | C42: 77.15944047
A43: 12-2005 | B43: 38 | C43: 77.67952484
A44: 3-2006 | B44: 39 | C44: 73.10056781
A45: 6-2006 | B45: 40 | C45: 72.0320322
A46: 9-2006 | B46: 41 | C46: 82.50518015
A47: 12-2006 | B47: 42 | C47: 88.915871
A48: 3-2007 | B48: 43 | C48: 101.3021329
A49: 6-2007 | B49: 44 | C49: 112.060392
A50: 9-2007 | B50: 45 | C50: 111.8373166
A51: 12-2007 | B51: 46 | C51: 117.0066361
A52: 3-2008 | B52: 47 | C52: 121.1237869
A53: 6-2008 | B53: 48 | C53: 123.803672

Sheet AvgResidualTable
C1: KEY
C2: Green | D2: Best Prediction
C3: Yellow | D3: Median
C4: Red | D4: Worst Prediction
A5: =Select!B2 & "_Frequency" -> NY_Frequency
A7: Coverage | B7: Data Period | C7: Prediction Period | D7: =DataOutput!$F$6 -> Linear 30 | E7: =DataOutput!$G$6 -> Exponential 30 | F7: =DataOutput!$H$6 -> Log 30 | G7: =DataOutput!$I$6 -> Power 30 | H7: Yearly | I7: Level | J7: Quarterly | K7: Auto-Regressive | L7: Linear Exponential
A8: BI | B8: =INDEX(DataOutput!$A$6:$B$53, MATCH(Select!$B$7,DataOutput!$B$6:$B$53,0),1) & " to " & INDEX(DataOutput!$A$6:$B$53,MATCH(Select!$B$7+19,DataOutput!$B$6:$B$53,0),1) -> 12-1998 to 9-2003 | C8: =INDEX(DataOutput!$A$6:$B$53, MATCH(Select!$B$9+1,DataOutput!$B$6:$B$53,0),1) & " to " & INDEX(DataOutput!$A$6:$B$53,MATCH(Select!$B$9+4,DataOutput!$B$6:$B$53,0),1) -> 6-2006 to 3-2007 | D8: 0.003902375414 | E8: 0.004045777551 | F8: 0.0003169302237 | G8: 0.002635352798 | H8: 0.0009117433583 | I8: 0.001275375082 | J8: 0.0008495541539 | K8: 0.00131319967 | L8: 0.001578700774
A10: CM | B10: =INDEX(DataOutput!$A$6:$B$53, MATCH(Select!$B$7,DataOutput!$B$6:$B$53,0),1) & " to " & INDEX(DataOutput!$A$6:$B$53,MATCH(Select!$B$7+19,DataOutput!$B$6:$B$53,0),1) -> 12-1998 to 9-2003 | C10: =INDEX(DataOutput!$A$6:$B$53, MATCH(Select!$B$9+1,DataOutput!$B$6:$B$53,0),1) & " to " & INDEX(DataOutput!$A$6:$B$53,MATCH(Select!$B$9+4,DataOutput!$B$6:$B$53,0),1) -> 6-2006 to 3-2007 | D10: 0.00281038505 | E10: 0.002768641914 | F10: 0.01102350011 | G10: 0.003386857752 | H10: 0.00275928448 | I10: 0.002325689928 | J10: 0.002675898395 | K10: 0.003061603182 | L10: 0.002535155088
A12: CO | B12: =INDEX(DataOutput!$A$6:$B$53, MATCH(Select!$B$7,DataOutput!$B$6:$B$53,0),1) & " to " & INDEX(DataOutput!$A$6:$B$53,MATCH(Select!$B$7+19,DataOutput!$B$6:$B$53,0),1) -> 12-1998 to 9-2003 | C12: =INDEX(DataOutput!$A$6:$B$53, MATCH(Select!$B$9+1,DataOutput!$B$6:$B$53,0),1) & " to " & INDEX(DataOutput!$A$6:$B$53,MATCH(Select!$B$9+4,DataOutput!$B$6:$B$53,0),1) -> 6-2006 to 3-2007 | D12: 0.002049709368 | E12: 0.002051030422 | F12: 0.005973932358 | G12: 0.002066485711 | H12: 0.001984691167 | I12: 0.001686160608 | J12: 0.001490422461 | K12: 0.001429239017 | L12: 0.002385151751
A14: CSL | B14: =INDEX(DataOutput!$A$6:$B$53, MATCH(Select!$B$7,DataOutput!$B$6:$B$53,0),1) & " to " & INDEX(DataOutput!$A$6:$B$53,MATCH(Select!$B$7+19,DataOutput!$B$6:$B$53,0),1) -> 12-1998 to 9-2003 | C14: =INDEX(DataOutput!$A$6:$B$53, MATCH(Select!$B$9+1,DataOutput!$B$6:$B$53,0),1) & " to " & INDEX(DataOutput!$A$6:$B$53,MATCH(Select!$B$9+4,DataOutput!$B$6:$B$53,0),1) -> 6-2006 to 3-2007 | D14: 0.001634229874 | E14: 0.001662610396 | F14: 0.008105917467 | G14: 0.003428200023 | H14: 0.006384952362 | I14: 0.003531572067 | J14: 0.006349724876 | K14: 0.004022088245 | L14: 0.0022517964
A16: PD | B16: =INDEX(DataOutput!$A$6:$B$53, MATCH(Select!$B$7,DataOutput!$B$6:$B$53,0),1) & " to " & INDEX(DataOutput!$A$6:$B$53,MATCH(Select!$B$7+19,DataOutput!$B$6:$B$53,0),1) -> 12-1998 to 9-2003 | C16: =INDEX(DataOutput!$A$6:$B$53, MATCH(Select!$B$9+1,DataOutput!$B$6:$B$53,0),1) & " to " & INDEX(DataOutput!$A$6:$B$53,MATCH(Select!$B$9+4,DataOutput!$B$6:$B$53,0),1) -> 6-2006 to 3-2007 | D16: 0.002453312791 | E16: 0.002446685667 | F16: 0.002601277044 | G16: 0.002531551205 | H16: 0.002286654209 | I16: 0.001893584192 | J16: 0.005040279803 | K16: 0.002329142115 | L16: 0.001893584192
A18: PIP | B18: =INDEX(DataOutput!$A$6:$B$53, MATCH(Select!$B$7,DataOutput!$B$6:$B$53,0),1) & " to " & INDEX(DataOutput!$A$6:$B$53,MATCH(Select!$B$7+19,DataOutput!$B$6:$B$53,0),1) -> 12-1998 to 9-2003 | C18: =INDEX(DataOutput!$A$6:$B$53, MATCH(Select!$B$9+1,DataOutput!$B$6:$B$53,0),1) & " to " & INDEX(DataOutput!$A$6:$B$53,MATCH(Select!$B$9+4,DataOutput!$B$6:$B$53,0),1) -> 6-2006 to 3-2007 | D18: 0.001458603351 | E18: 0.001463894691 | F18: 0.002313397821 | G18: 0.001682019819 | H18: 0.004266009173 | I18: 0.002744209078 | J18: 0.004735329931 | K18: 0.001451914967 | L18: 0.001598949464
A20: =Select!B2 & "_Severity" -> NY_Severity
A22: Coverage | B22: Data Period | C22: Prediction Period | D22: =DataOutput!$F$6 -> Linear 30 | E22: =DataOutput!$G$6 -> Exponential 30 | F22: =DataOutput!$H$6 -> Log 30 | G22: =DataOutput!$I$6 -> Power 30 | H22: Yearly | I22: Level | J22: Quarterly | K22: Auto-Regressive | L22: Linear Exponential
A23: BI | B23: =INDEX(DataOutput!$A$6:$B$53, MATCH(Select!$B$7,DataOutput!$B$6:$B$53,0),1) & " to " & INDEX(DataOutput!$A$6:$B$53,MATCH(Select!$B$7+19,DataOutput!$B$6:$B$53,0),1) -> 12-1998 to 9-2003 | C23: =INDEX(DataOutput!$A$6:$B$53, MATCH(Select!$B$9+1,DataOutput!$B$6:$B$53,0),1) & " to " & INDEX(DataOutput!$A$6:$B$53,MATCH(Select!$B$9+4,DataOutput!$B$6:$B$53,0),1) -> 6-2006 to 3-2007 | D23: 6544.347019 | E23: 6394.46861 | F23: 13202.43537 | G23: 9686.839987 | H23: 8522.295871 | I23: 2469.800934 | J23: 4409.397957 | K23: 6734.787018 | L23: 6003.07411
A25: CM | B25: =INDEX(DataOutput!$A$6:$B$53, MATCH(Select!$B$7,DataOutput!$B$6:$B$53,0),1) & " to " & INDEX(DataOutput!$A$6:$B$53,MATCH(Select!$B$7+19,DataOutput!$B$6:$B$53,0),1) -> 12-1998 to 9-2003 | C25: =INDEX(DataOutput!$A$6:$B$53, MATCH(Select!$B$9+1,DataOutput!$B$6:$B$53,0),1) & " to " & INDEX(DataOutput!$A$6:$B$53,MATCH(Select!$B$9+4,DataOutput!$B$6:$B$53,0),1) -> 6-2006 to 3-2007 | D25: 56.50972975 | E25: 54.39205818 | F25: 30.13696967 | G25: 30.72177255 | H25: 23.95850317 | I25: 26.23544298 | J25: 25.87727498 | K25: 18.13998826 | L25: 29.60105445
A27: CO | B27: =INDEX(DataOutput!$A$6:$B$53, MATCH(Select!$B$7,DataOutput!$B$6:$B$53,0),1) & " to " & INDEX(DataOutput!$A$6:$B$53,MATCH(Select!$B$7+19,DataOutput!$B$6:$B$53,0),1) -> 12-1998 to 9-2003 | C27: =INDEX(DataOutput!$A$6:$B$53, MATCH(Select!$B$9+1,DataOutput!$B$6:$B$53,0),1) & " to " & INDEX(DataOutput!$A$6:$B$53,MATCH(Select!$B$9+4,DataOutput!$B$6:$B$53,0),1) -> 6-2006 to 3-2007 | D27: 217.4689701 | E27: 188.9616787 | F27: 700.8698013 | G27: 415.8396505 | H27: 93.32844 | I27: 251.9288143 | J27: 303.7337422 | K27: 368.3789808 | L27: 538.9604994
A29: CSL | B29: =INDEX(DataOutput!$A$6:$B$53, MATCH(Select!$B$7,DataOutput!$B$6:$B$53,0),1) & " to " & INDEX(DataOutput!$A$6:$B$53,MATCH(Select!$B$7+19,DataOutput!$B$6:$B$53,0),1) -> 12-1998 to 9-2003 | C29: =INDEX(DataOutput!$A$6:$B$53, MATCH(Select!$B$9+1,DataOutput!$B$6:$B$53,0),1) & " to " & INDEX(DataOutput!$A$6:$B$53,MATCH(Select!$B$9+4,DataOutput!$B$6:$B$53,0),1) -> 6-2006 to 3-2007 | D29: 1565.833345 | E29: 1732.344402 | F29: 1672.560704 | G29: 1286.293462 | H29: 2515.250917 | I29: 1450.485382 | J29: 791.6770492 | K29: 870.5134927 | L29: 1233.104586
A31: PD | B31: =INDEX(DataOutput!$A$6:$B$53, MATCH(Select!$B$7,DataOutput!$B$6:$B$53,0),1) & " to " & INDEX(DataOutput!$A$6:$B$53,MATCH(Select!$B$7+19,DataOutput!$B$6:$B$53,0),1) -> 12-1998 to 9-2003 | C31: =INDEX(DataOutput!$A$6:$B$53, MATCH(Select!$B$9+1,DataOutput!$B$6:$B$53,0),1) & " to " & INDEX(DataOutput!$A$6:$B$53,MATCH(Select!$B$9+4,DataOutput!$B$6:$B$53,0),1) -> 6-2006 to 3-2007 | D31: 75.88609346 | E31: 87.51205309 | F31: 387.994353 | G31: 116.0753335 | H31: 279.6335 | I31: 80.99366815 | J31: 293.1398142 | K31: 63.05152526 | L31: 169.0356458
A33: PIP | B33: =INDEX(DataOutput!$A$6:$B$53, MATCH(Select!$B$7,DataOutput!$B$6:$B$53,0),1) & " to " & INDEX(DataOutput!$A$6:$B$53,MATCH(Select!$B$7+19,DataOutput!$B$6:$B$53,0),1) -> 12-1998 to 9-2003 | C33: =INDEX(DataOutput!$A$6:$B$53, MATCH(Select!$B$9+1,DataOutput!$B$6:$B$53,0),1) & " to " & INDEX(DataOutput!$A$6:$B$53,MATCH(Select!$B$9+4,DataOutput!$B$6:$B$53,0),1) -> 6-2006 to 3-2007 | D33: 947.3640778 | E33: 1028.057335 | F33: 601.5146189 | G33: 242.6023632 | H33: 287.6783194 | I33: 272.0770715 | J33: 505.203615 | K33: 115.500032 | L33: 58.12353682
A35: =Select!B2& "_PurePremium" -> NY_PurePremium
A37: Coverage | B37: Data Period | C37: Prediction Period | D37: =DataOutput!$F$6 -> Linear 30 | E37: =DataOutput!$G$6 -> Exponential 30 | F37: =DataOutput!$H$6 -> Log 30 | G37: =DataOutput!$I$6 -> Power 30 | H37: Yearly | I37: Level | J37: Quarterly | K37: Auto-Regressive | L37: Linear Exponential
A38: BI | B38: =INDEX(DataOutput!$A$6:$B$53, MATCH(Select!$B$7,DataOutput!$B$6:$B$53,0),1) & " to " & INDEX(DataOutput!$A$6:$B$53,MATCH(Select!$B$7+19,DataOutput!$B$6:$B$53,0),1) -> 12-1998 to 9-2003 | C38: =INDEX(DataOutput!$A$6:$B$53, MATCH(Select!$B$9+1,DataOutput!$B$6:$B$53,0),1) & " to " & INDEX(DataOutput!$A$6:$B$53,MATCH(Select!$B$9+4,DataOutput!$B$6:$B$53,0),1) -> 6-2006 to 3-2007 | D38: 73.46883295 | E38: 92.16756751 | F38: 21.31633672 | G38: 36.20722594 | H38: 57.12279959 | I38: 44.94207587 | J38: 23.26384226 | K38: 33.51694419 | L38: 23.01767642
A40: CM | B40: =INDEX(DataOutput!$A$6:$B$53, MATCH(Select!$B$7,DataOutput!$B$6:$B$53,0),1) & " to " & INDEX(DataOutput!$A$6:$B$53,MATCH(Select!$B$7+19,DataOutput!$B$6:$B$53,0),1) -> 12-1998 to 9-2003 | C40: =INDEX(DataOutput!$A$6:$B$53, MATCH(Select!$B$9+1,DataOutput!$B$6:$B$53,0),1) & " to " & INDEX(DataOutput!$A$6:$B$53,MATCH(Select!$B$9+4,DataOutput!$B$6:$B$53,0),1) -> 6-2006 to 3-2007 | D40: 5.393754791 | E40: 4.825854921 | F40: 4.968599579 | G40: 3.939345235 | H40: 3.455758444 | I40: 3.731692658 | J40: 3.986756214 | K40: 2.94692223 | L40: 3.782045023
A42: CO | B42: =INDEX(DataOutput!$A$6:$B$53, MATCH(Select!$B$7,DataOutput!$B$6:$B$53,0),1) & " to " & INDEX(DataOutput!$A$6:$B$53,MATCH(Select!$B$7+19,DataOutput!$B$6:$B$53,0),1) -> 12-1998 to 9-2003 | C42: =INDEX(DataOutput!$A$6:$B$53, MATCH(Select!$B$9+1,DataOutput!$B$6:$B$53,0),1) & " to " & INDEX(DataOutput!$A$6:$B$53,MATCH(Select!$B$9+4,DataOutput!$B$6:$B$53,0),1) -> 6-2006 to 3-2007 | D42: 15.62856739 | E42: 15.24625566 | F42: 25.57968093 | G42: 16.51988964 | H42: 10.74328564 | I42: 16.26474187 | J42: 17.06924057 | K42: 20.31235477 | L42: 24.67734794
A44: CSL | B44: =INDEX(DataOutput!$A$6:$B$53, MATCH(Select!$B$7,DataOutput!$B$6:$B$53,0),1) & " to " & INDEX(DataOutput!$A$6:$B$53,MATCH(Select!$B$7+19,DataOutput!$B$6:$B$53,0),1) -> 12-1998 to 9-2003 | C44: =INDEX(DataOutput!$A$6:$B$53, MATCH(Select!$B$9+1,DataOutput!$B$6:$B$53,0),1) & " to " & INDEX(DataOutput!$A$6:$B$53,MATCH(Select!$B$9+4,DataOutput!$B$6:$B$53,0),1) -> 6-2006 to 3-2007 | D44: 74.60254241 | E44: 77.51517355 | F44: 56.12630491 | G44: 57.20543164 | H44: 149.6697023 | I44: 83.01944553 | J44: 33.42017201 | K44: 41.65037028 | L44: 69.35962354
A46: PD | B46: =INDEX(DataOutput!$A$6:$B$53, MATCH(Select!$B$7,DataOutput!$B$6:$B$53,0),1) & " to " & INDEX(DataOutput!$A$6:$B$53,MATCH(Select!$B$7+19,DataOutput!$B$6:$B$53,0),1) -> 12-1998 to 9-2003 | C46: =INDEX(DataOutput!$A$6:$B$53, MATCH(Select!$B$9+1,DataOutput!$B$6:$B$53,0),1) & " to " & INDEX(DataOutput!$A$6:$B$53,MATCH(Select!$B$9+4,DataOutput!$B$6:$B$53,0),1) -> 6-2006 to 3-2007 | D46: 6.660999645 | E46: 8.197993704 | F46: 7.249898041 | G46: 2.80978588 | H46: 10.77571387 | I46: 3.847866595 | J46: 6.334044793 | K46: 4.564338756 | L46: 3.705647399
A48: PIP | B48: =INDEX(DataOutput!$A$6:$B$53, MATCH(Select!$B$7,DataOutput!$B$6:$B$53,0),1) & " to " & INDEX(DataOutput!$A$6:$B$53,MATCH(Select!$B$7+19,DataOutput!$B$6:$B$53,0),1) -> 12-1998 to 9-2003 | C48: =INDEX(DataOutput!$A$6:$B$53, MATCH(Select!$B$9+1,DataOutput!$B$6:$B$53,0),1) & " to " & INDEX(DataOutput!$A$6:$B$53,MATCH(Select!$B$9+4,DataOutput!$B$6:$B$53,0),1) -> 6-2006 to 3-2007 | D48: 14.98194221 | E48: 15.7793682 | F48: 9.166538347 | G48: 11.98308771 | H48: 27.87401256 | I48: 13.62250405 | J48: 23.24432697 | K48: 10.96149364 | L48: 9.014239455

Sheet MarginErrTable
D1: KEY
D2: Green | E2: <=5% | F2: orange | G2: 30%<=50%
A3: =Select!B2 & "_Frequency" -> NY_Frequency | D3: Light green | E3: 5%<=10% | F3: Red | G3: >50%
D4: Yellow | E4: 10%<=30%
A7: Coverage | B7: Data Period | C7: Prediction Period | D7: =DataOutput!$F$6 -> Linear 30 | E7: =DataOutput!$G$6 -> Exponential 30 | F7: =DataOutput!$H$6 -> Log 30 | G7: =DataOutput!$I$6 -> Power 30 | H7: Yearly | I7: Level | J7: Quarterly | K7: Auto-Regressive | L7: Linear Exponential
A8: BI | B8: =INDEX(DataOutput!$A$6:$B$53, MATCH(Select!$B$7,DataOutput!$B$6:$B$53,0),1) & " to " & INDEX(DataOutput!$A$6:$B$53,MATCH(Select!$B$7+19,DataOutput!$B$6:$B$53,0),1) -> 12-1998 to 9-2003 | C8: =INDEX(DataOutput!$A$6:$B$53, MATCH(Select!$B$9+1,DataOutput!$B$6:$B$53,0),1) & " to " & INDEX(DataOutput!$A$6:$B$53,MATCH(Select!$B$9+4,DataOutput!$B$6:$B$53,0),1) -> 6-2006 to 3-2007 | D8: 0.7074473033 | E8: 0.7334441499 | F8: 0.057455116 | G8: 0.4777534278 | H8: 0.1652866041 | I8: 0.2312080636 | J8: 0.1540125517 | K8: 0.2380651441 | L8: 0.2861968638
A10: CM | B10: =INDEX(DataOutput!$A$6:$B$53, MATCH(Select!$B$7,DataOutput!$B$6:$B$53,0),1) & " to " & INDEX(DataOutput!$A$6:$B$53,MATCH(Select!$B$7+19,DataOutput!$B$6:$B$53,0),1) -> 12-1998 to 9-2003 | C10: =INDEX(DataOutput!$A$6:$B$53, MATCH(Select!$B$9+1,DataOutput!$B$6:$B$53,0),1) & " to " & INDEX(DataOutput!$A$6:$B$53,MATCH(Select!$B$9+4,DataOutput!$B$6:$B$53,0),1) -> 6-2006 to 3-2007 | D10: 0.03471298163 | E10: 0.0341973837 | F10: 0.1361587648 | G10: 0.04183338897 | H10: 0.03408180366 | I10: 0.02872618176 | J10: 0.03305184527 | K10: 0.03781594804 | L10: 0.03131342874
A12: CO | B12: =INDEX(DataOutput!$A$6:$B$53, MATCH(Select!$B$7,DataOutput!$B$6:$B$53,0),1) & " to " & INDEX(DataOutput!$A$6:$B$53,MATCH(Select!$B$7+19,DataOutput!$B$6:$B$53,0),1) -> 12-1998 to 9-2003 | C12: =INDEX(DataOutput!$A$6:$B$53, MATCH(Select!$B$9+1,DataOutput!$B$6:$B$53,0),1) & " to " & INDEX(DataOutput!$A$6:$B$53,MATCH(Select!$B$9+4,DataOutput!$B$6:$B$53,0),1) -> 6-2006 to 3-2007 | D12: 0.0420799754 | E12: 0.04210709627 | F12: 0.1226432052 | G12: 0.04242438916 | H12: 0.04074516943 | I12: 0.03461641832 | J12: 0.03059796743 | K12: 0.02934188798 | L12: 0.04896651623
A14: CSL | B14: =INDEX(DataOutput!$A$6:$B$53, MATCH(Select!$B$7,DataOutput!$B$6:$B$53,0),1) & " to " & INDEX(DataOutput!$A$6:$B$53,MATCH(Select!$B$7+19,DataOutput!$B$6:$B$53,0),1) -> 12-1998 to 9-2003 | C14: =INDEX(DataOutput!$A$6:$B$53, MATCH(Select!$B$9+1,DataOutput!$B$6:$B$53,0),1) & " to " & INDEX(DataOutput!$A$6:$B$53,MATCH(Select!$B$9+4,DataOutput!$B$6:$B$53,0),1) -> 6-2006 to 3-2007 | D14: 0.04636562493 | E14: 0.04717082418 | F14: 0.2299773949 | G14: 0.09726332812 | H14: 0.1811509575 | I14: 0.1001961526 | J14: 0.1801514993 | K14: 0.114112854 | L14: 0.06388694086
A16: PD | B16: =INDEX(DataOutput!$A$6:$B$53, MATCH(Select!$B$7,DataOutput!$B$6:$B$53,0),1) & " to " & INDEX(DataOutput!$A$6:$B$53,MATCH(Select!$B$7+19,DataOutput!$B$6:$B$53,0),1) -> 12-1998 to 9-2003 | C16: =INDEX(DataOutput!$A$6:$B$53, MATCH(Select!$B$9+1,DataOutput!$B$6:$B$53,0),1) & " to " & INDEX(DataOutput!$A$6:$B$53,MATCH(Select!$B$9+4,DataOutput!$B$6:$B$53,0),1) -> 6-2006 to 3-2007 | D16: 0.06427849663 | E16: 0.0641048614 | F16: 0.06815526269 | G16: 0.06632839734 | H16: 0.05991192619 | I16: 0.04961321913 | J16: 0.1320588266 | K16: 0.06102513881 | L16: 0.04961321913
A18: PIP | B18: =INDEX(DataOutput!$A$6:$B$53, MATCH(Select!$B$7,DataOutput!$B$6:$B$53,0),1) & " to " & INDEX(DataOutput!$A$6:$B$53,MATCH(Select!$B$7+19,DataOutput!$B$6:$B$53,0),1) -> 12-1998 to 9-2003 | C18: =INDEX(DataOutput!$A$6:$B$53, MATCH(Select!$B$9+1,DataOutput!$B$6:$B$53,0),1) & " to " & INDEX(DataOutput!$A$6:$B$53,MATCH(Select!$B$9+4,DataOutput!$B$6:$B$53,0),1) -> 6-2006 to 3-2007 | D18: 0.1003988595 | E18: 0.100763074 | F18: 0.1592362328 | G18: 0.1157771037 | H18: 0.2936387437 | I18: 0.1888899141 | J18: 0.3259431182 | K18: 0.09993848336 | L18: 0.1100591895
A20: =Select!B2 & "_Severity" -> NY_Severity
A22: Coverage | B22: Data Period | C22: Prediction Period | D22: =DataOutput!$F$6 -> Linear 30 | E22: =DataOutput!$G$6 -> Exponential 30 | F22: =DataOutput!$H$6 -> Log 30 | G22: =DataOutput!$I$6 -> Power 30 | H22: Yearly | I22: Level | J22: Quarterly | K22: Auto-Regressive | L22: Linear Exponential
A23: BI | B23: =INDEX(DataOutput!$A$6:$B$53, MATCH(Select!$B$7,DataOutput!$B$6:$B$53,0),1) & " to " & INDEX(DataOutput!$A$6:$B$53,MATCH(Select!$B$7+19,DataOutput!$B$6:$B$53,0),1) -> 12-1998 to 9-2003 | C23: =INDEX(DataOutput!$A$6:$B$53, MATCH(Select!$B$9+1,DataOutput!$B$6:$B$53,0),1) & " to " & INDEX(DataOutput!$A$6:$B$53,MATCH(Select!$B$9+4,DataOutput!$B$6:$B$53,0),1) -> 6-2006 to 3-2007 | D23: 0.1719927509 | E23: 0.1680537789 | F23: 0.346974751 | G23: 0.2545809769 | H23: 0.2239754565 | I23: 0.06490912776 | J23: 0.1158839044 | K23: 0.1769977268 | L23: 0.1577674942
A25: CM | B25: =INDEX(DataOutput!$A$6:$B$53, MATCH(Select!$B$7,DataOutput!$B$6:$B$53,0),1) & " to " & INDEX(DataOutput!$A$6:$B$53,MATCH(Select!$B$7+19,DataOutput!$B$6:$B$53,0),1) -> 12-1998 to 9-2003 | C25: =INDEX(DataOutput!$A$6:$B$53, MATCH(Select!$B$9+1,DataOutput!$B$6:$B$53,0),1) & " to " & INDEX(DataOutput!$A$6:$B$53,MATCH(Select!$B$9+4,DataOutput!$B$6:$B$53,0),1) -> 6-2006 to 3-2007 | D25: 0.07178273133 | E25: 0.06909271229 | F25: 0.03828215082 | G25: 0.03902500957 | H25: 0.03043381739 | I25: 0.03332615043 | J25: 0.03287117963 | K25: 0.02304272042 | L25: 0.03760139268
A27: CO | B27: =INDEX(DataOutput!$A$6:$B$53, MATCH(Select!$B$7,DataOutput!$B$6:$B$53,0),1) & " to " & INDEX(DataOutput!$A$6:$B$53,MATCH(Select!$B$7+19,DataOutput!$B$6:$B$53,0),1) -> 12-1998 to 9-2003 | C27: =INDEX(DataOutput!$A$6:$B$53, MATCH(Select!$B$9+1,DataOutput!$B$6:$B$53,0),1) & " to " & INDEX(DataOutput!$A$6:$B$53,MATCH(Select!$B$9+4,DataOutput!$B$6:$B$53,0),1) -> 6-2006 to 3-2007 | D27: 0.05843503485 | E27: 0.0507749785 | F27: 0.1883273335 | G27: 0.1117382607 | H27: 0.02507783359 | I27: 0.06769457286 | J27: 0.0816148244 | K27: 0.09898533372 | L27: 0.1448214683
A29: CSL | B29: =INDEX(DataOutput!$A$6:$B$53, MATCH(Select!$B$7,DataOutput!$B$6:$B$53,0),1) & " to " & INDEX(DataOutput!$A$6:$B$53,MATCH(Select!$B$7+19,DataOutput!$B$6:$B$53,0),1) -> 12-1998 to 9-2003 | C29: =INDEX(DataOutput!$A$6:$B$53, MATCH(Select!$B$9+1,DataOutput!$B$6:$B$53,0),1) & " to " & INDEX(DataOutput!$A$6:$B$53,MATCH(Select!$B$9+4,DataOutput!$B$6:$B$53,0),1) -> 6-2006 to 3-2007 | D29: 0.1689243621 | E29: 0.1868878154 | F29: 0.1804382637 | G29: 0.1387671959 | H29: 0.2713489007 | I29: 0.1564804573 | J29: 0.08540726317 | K29: 0.09391225253 | L29: 0.1330291032
A31: PD | B31: =INDEX(DataOutput!$A$6:$B$53, MATCH(Select!$B$7,DataOutput!$B$6:$B$53,0),1) & " to " & INDEX(DataOutput!$A$6:$B$53,MATCH(Select!$B$7+19,DataOutput!$B$6:$B$53,0),1) -> 12-1998 to 9-2003 | C31: =INDEX(DataOutput!$A$6:$B$53, MATCH(Select!$B$9+1,DataOutput!$B$6:$B$53,0),1) & " to " & INDEX(DataOutput!$A$6:$B$53,MATCH(Select!$B$9+4,DataOutput!$B$6:$B$53,0),1) -> 6-2006 to 3-2007 | D31: 0.02789719214 | E31: 0.03217111922 | F31: 0.1426342103 | G31: 0.04267153221 | H31: 0.10279867 | I31: 0.02977483515 | J31: 0.1077638517 | K31: 0.02317895724 | L31: 0.06214076485
A33: PIP | B33: =INDEX(DataOutput!$A$6:$B$53, MATCH(Select!$B$7,DataOutput!$B$6:$B$53,0),1) & " to " & INDEX(DataOutput!$A$6:$B$53,MATCH(Select!$B$7+19,DataOutput!$B$6:$B$53,0),1) -> 12-1998 to 9-2003 | C33: =INDEX(DataOutput!$A$6:$B$53, MATCH(Select!$B$9+1,DataOutput!$B$6:$B$53,0),1) & " to " & INDEX(DataOutput!$A$6:$B$53,MATCH(Select!$B$9+4,DataOutput!$B$6:$B$53,0),1) -> 6-2006 to 3-2007 | D33: 0.15972117 | E33: 0.1733256773 | F33: 0.1014125624 | G33: 0.04090162821 | H33: 0.04850122443 | I33: 0.0458709267 | J33: 0.08517497586 | K33: 0.01947276731 | L33: 0.009799357523
A35: =Select!B2& "_PurePremium" -> NY_PurePremium
A37: Coverage | B37: Data Period | C37: Prediction Period | D37: =DataOutput!$F$6 -> Linear 30 | E37: =DataOutput!$G$6 -> Exponential 30 | F37: =DataOutput!$H$6 -> Log 30 | G37: =DataOutput!$I$6 -> Power 30 | H37: Yearly | I37: Level | J37: Quarterly | K37: Auto-Regressive | L37: Linear Exponential
A38: BI | B38: =INDEX(DataOutput!$A$6:$B$53, MATCH(Select!$B$7,DataOutput!$B$6:$B$53,0),1) & " to " & INDEX(DataOutput!$A$6:$B$53,MATCH(Select!$B$7+19,DataOutput!$B$6:$B$53,0),1) -> 12-1998 to 9-2003 | C38: =INDEX(DataOutput!$A$6:$B$53, MATCH(Select!$B$9+1,DataOutput!$B$6:$B$53,0),1) & " to " & INDEX(DataOutput!$A$6:$B$53,MATCH(Select!$B$9+4,DataOutput!$B$6:$B$53,0),1) -> 6-2006 to 3-2007 | D38: 0.3488132271 | E38: 0.4375905451 | F38: 0.1012050948 | G38: 0.1719036334 | H38: 0.2712059967 | I38: 0.2133747044 | J38: 0.110451406 | K38: 0.1591307905 | L38: 0.1092826668
A40: CM | B40: =INDEX(DataOutput!$A$6:$B$53, MATCH(Select!$B$7,DataOutput!$B$6:$B$53,0),1) & " to " & INDEX(DataOutput!$A$6:$B$53,MATCH(Select!$B$7+19,DataOutput!$B$6:$B$53,0),1) -> 12-1998 to 9-2003 | C40: =INDEX(DataOutput!$A$6:$B$53, MATCH(Select!$B$9+1,DataOutput!$B$6:$B$53,0),1) & " to " & INDEX(DataOutput!$A$6:$B$53,MATCH(Select!$B$9+4,DataOutput!$B$6:$B$53,0),1) -> 6-2006 to 3-2007 | D40: 0.0845545235 | E40: 0.07565191209 | F40: 0.0778896309 | G40: 0.06175465369 | H40: 0.05417376575 | I40: 0.058499414 | J40: 0.06249788598 | K40: 0.04619705838 | L40: 0.05928875655
A42: CO | B42: =INDEX(DataOutput!$A$6:$B$53, MATCH(Select!$B$7,DataOutput!$B$6:$B$53,0),1) & " to " & INDEX(DataOutput!$A$6:$B$53,MATCH(Select!$B$7+19,DataOutput!$B$6:$B$53,0),1) -> 12-1998 to 9-2003 | C42: =INDEX(DataOutput!$A$6:$B$53, MATCH(Select!$B$9+1,DataOutput!$B$6:$B$53,0),1) & " to " & INDEX(DataOutput!$A$6:$B$53,MATCH(Select!$B$9+4,DataOutput!$B$6:$B$53,0),1) -> 6-2006 to 3-2007 | D42: 0.08617027316 | E42: 0.08406234441 | F42: 0.1410371174 | G42: 0.09108470198 | H42: 0.05923459492 | I42: 0.08967790935 | J42: 0.09411362449 | K42: 0.1119949843 | L42: 0.1360619793
A44: CSL | B44: =INDEX(DataOutput!$A$6:$B$53, MATCH(Select!$B$7,DataOutput!$B$6:$B$53,0),1) & " to " & INDEX(DataOutput!$A$6:$B$53,MATCH(Select!$B$7+19,DataOutput!$B$6:$B$53,0),1) -> 12-1998 to 9-2003 | C44: =INDEX(DataOutput!$A$6:$B$53, MATCH(Select!$B$9+1,DataOutput!$B$6:$B$53,0),1) & " to " & INDEX(DataOutput!$A$6:$B$53,MATCH(Select!$B$9+4,DataOutput!$B$6:$B$53,0),1) -> 6-2006 to 3-2007 | D44: 0.2271097114 | E44: 0.2359765247 | F44: 0.1708631971 | G44: 0.174148342 | H44: 0.4556338402 | I44: 0.2527329727 | J44: 0.1017397715 | K44: 0.1267946543 | L44: 0.2111488908
A46: PD | B46: =INDEX(DataOutput!$A$6:$B$53, MATCH(Select!$B$7,DataOutput!$B$6:$B$53,0),1) & " to " & INDEX(DataOutput!$A$6:$B$53,MATCH(Select!$B$7+19,DataOutput!$B$6:$B$53,0),1) -> 12-1998 to 9-2003 | C46: =INDEX(DataOutput!$A$6:$B$53, MATCH(Select!$B$9+1,DataOutput!$B$6:$B$53,0),1) & " to " & INDEX(DataOutput!$A$6:$B$53,MATCH(Select!$B$9+4,DataOutput!$B$6:$B$53,0),1) -> 6-2006 to 3-2007 | D46: 0.06423339231 | E46: 0.07905494278 | F46: 0.06991226091 | G46: 0.02709534429 | H46: 0.1039124296 | I46: 0.03710577056 | J46: 0.06108049929 | K46: 0.04401485927 | L46: 0.03573432155
A48: PIP | B48: =INDEX(DataOutput!$A$6:$B$53, MATCH(Select!$B$7,DataOutput!$B$6:$B$53,0),1) & " to " & INDEX(DataOutput!$A$6:$B$53,MATCH(Select!$B$7+19,DataOutput!$B$6:$B$53,0),1) -> 12-1998 to 9-2003 | C48: =INDEX(DataOutput!$A$6:$B$53, MATCH(Select!$B$9+1,DataOutput!$B$6:$B$53,0),1) & " to " & INDEX(DataOutput!$A$6:$B$53,MATCH(Select!$B$9+4,DataOutput!$B$6:$B$53,0),1) -> 6-2006 to 3-2007 | D48: 0.1738270112 | E48: 0.1830790944 | F48: 0.1063541657 | G48: 0.1390329967 | H48: 0.32340642 | I48: 0.1580542183 | J48: 0.2696907937 | K48: 0.1271800179 | L48: 0.1045871277

Sheet Linear
B1: Index | C1: t | D1: x
A2: 1 | B2: =IF(COUNT($A$2:A2)>Select!$B$8,"",OFFSET(DataOutput!B6,Select!$B$7-1,0)) -> 10 | C2: =IF(B2="","",B2-Select!$B$7+1) -> 1 | D2: =IF(ISERROR(VLOOKUP(B2,table,2,0)),"",VLOOKUP(B2,table,2,0)) -> 63.91674231
A3: 1 | B3: =IF(COUNT($A$2:A3)>Select!$B$8,"",OFFSET(DataOutput!B7,Select!$B$7-1,0)) -> 11 | C3: =IF(B3="","",B3-Select!$B$7+1) -> 2 | D3: 63.19335447
A4: 1 | B4: =IF(COUNT($A$2:A4)>Select!$B$8,"",OFFSET(DataOutput!B8,Select!$B$7-1,0)) -> 12 | C4: =IF(B4="","",B4-Select!$B$7+1) -> 3 | D4: 70.14646369 | F4: n | G4: Σt | H4: Σx | I4: Σ(tx) | J4: Σ(t2) | K4: Σ(x2)
A5: 1 | B5: =IF(COUNT($A$2:A5)>Select!$B$8,"",OFFSET(DataOutput!B9,Select!$B$7-1,0)) -> 13 | C5: =IF(B5="","",B5-Select!$B$7+1) -> 4 | D5: 73.92375174 | F5: =Select!B8 -> 30 | G5: =SUM(C:C) -> 465 | H5: =SUM(D:D) -> 2542.361489 | I5: =SUMPRODUCT(C2:C49,D2:D49) -> 41578.13272 | J5: =SUMPRODUCT(C2:C49,C2:C49) -> 9455 | K5: =SUMPRODUCT(D2:D49,D2:D49) -> 220247.1683
A6: 1 | B6: =IF(COUNT($A$2:A6)>Select!$B$8,"",OFFSET(DataOutput!B10,Select!$B$7-1,0)) -> 14 | C6: =IF(B6="","",B6-Select!$B$7+1) -> 5 | D6: 75.26062398
A7: 1 | B7: =IF(COUNT($A$2:A7)>Select!$B$8,"",OFFSET(DataOutput!B11,Select!$B$7-1,0)) -> 15 | C7: =IF(B7="","",B7-Select!$B$7+1) -> 6 | D7: 78.44300239 | F7: Σ(t)2 | G7: Σ(x)2
A8: 1 | B8: =IF(COUNT($A$2:A8)>Select!$B$8,"",OFFSET(DataOutput!B12,Select!$B$7-1,0)) -> 16 | C8: =IF(B8="","",B8-Select!$B$7+1) -> 7 | D8: 74.96997805 | F8: =G5^2 -> 216225 | G8: =H5^2 -> 6463601.939
A9: 1 | B9: =IF(COUNT($A$2:A9)>Select!$B$8,"",OFFSET(DataOutput!B13,Select!$B$7-1,0)) -> 17 | C9: =IF(B9="","",B9-Select!$B$7+1) -> 8 | D9: 70.17932626
A10: 1 | B10: =IF(COUNT($A$2:A10)>Select!$B$8,"",OFFSET(DataOutput!B14,Select!$B$7-1,0)) -> 18 | C10: =IF(B10="","",B10-Select!$B$7+1) -> 9 | D10: 72.50919698 | F10: a = | G10: =(F5*I5-G5*H5)/(F5*J5-F8) -> 0.9661978417
A11: 1 | B11: =IF(COUNT($A$2:A11)>Select!$B$8,"",OFFSET(DataOutput!B15,Select!$B$7-1,0)) -> 19 | C11: =IF(B11="","",B11-Select!$B$7+1) -> 10 | D11: 74.91800546 | F11: b = | G11: =(H5-G10*G5)/F5 -> 69.76931641
A12: 1 | B12: =IF(COUNT($A$2:A12)>Select!$B$8,"",OFFSET(DataOutput!B16,Select!$B$7-1,0)) -> 20 | C12: =IF(B12="","",B12-Select!$B$7+1) -> 11 | D12: 80.01514613 | F12: r = | G12: =(F5*I5-G5*H5)/SQRT((F5*J5-F8)*(F5*K5-G8)) -> 0.6615722842
A13: 1 | B13: =IF(COUNT($A$2:A13)>Select!$B$8,"",OFFSET(DataOutput!B17,Select!$B$7-1,0)) -> 21 | C13: =IF(B13="","",B13-Select!$B$7+1) -> 12 | D13: 84.77891317
A14: 1 | B14: =IF(COUNT($A$2:A14)>Select!$B$8,"",OFFSET(DataOutput!B18,Select!$B$7-1,0)) -> 22 | C14: =IF(B14="","",B14-Select!$B$7+1) -> 13 | D14: 88.5146316
A15: 1 | B15: =IF(COUNT($A$2:A15)>Select!$B$8,"",OFFSET(DataOutput!B19,Select!$B$7-1,0)) -> 23 | C15: =IF(B15="","",B15-Select!$B$7+1) -> 14 | D15: 86.44477755
A16: 1 | B16: =IF(COUNT($A$2:A16)>Select!$B$8,"",OFFSET(DataOutput!B20,Select!$B$7-1,0)) -> 24 | C16: =IF(B16="","",B16-Select!$B$7+1) -> 15 | D16: 84.72007986
A17: 1 | B17: =IF(COUNT($A$2:A17)>Select!$B$8,"",OFFSET(DataOutput!B21,Select!$B$7-1,0)) -> 25 | C17: =IF(B17="","",B17-Select!$B$7+1) -> 16 | D17: 87.28692803
A18: 1 | B18: =IF(COUNT($A$2:A18)>Select!$B$8,"",OFFSET(DataOutput!B22,Select!$B$7-1,0)) -> 26 | C18: =IF(B18="","",B18-Select!$B$7+1) -> 17 | D18: 84.86864884
A19: 1 | B19: =IF(COUNT($A$2:A19)>Select!$B$8,"",OFFSET(DataOutput!B23,Select!$B$7-1,0)) -> 27 | C19: =IF(B19="","",B19-Select!$B$7+1) -> 18 | D19: 94.07194501
A20: 1 | B20: =IF(COUNT($A$2:A20)>Select!$B$8,"",OFFSET(DataOutput!B24,Select!$B$7-1,0)) -> 28 | C20: =IF(B20="","",B20-Select!$B$7+1) -> 19 | D20: 96.39637977
A21: 1 | B21: =IF(COUNT($A$2:A21)>Select!$B$8,"",OFFSET(DataOutput!B25,Select!$B$7-1,0)) -> 29 | C21: =IF(B21="","",B21-Select!$B$7+1) -> 20 | D21: 97.08163483
A22: 1 | B22: =IF(COUNT($A$2:A22)>Select!$B$8,"",OFFSET(DataOutput!B26,Select!$B$7-1,0)) -> 30 | C22: =IF(B22="","",B22-Select!$B$7+1) -> 21 | D22: 99.21597435
A23: 1 | B23: =IF(COUNT($A$2:A23)>Select!$B$8,"",OFFSET(DataOutput!B27,Select!$B$7-1,0)) -> 31 | C23: =IF(B23="","",B23-Select!$B$7+1) -> 22 | D23: 97.55006085
A24: 1 | B24: =IF(COUNT($A$2:A24)>Select!$B$8,"",OFFSET(DataOutput!B28,Select!$B$7-1,0)) -> 32 | C24: =IF(B24="","",B24-Select!$B$7+1) -> 23 | D24: 102.8543956
A25: 1 | B25: =IF(COUNT($A$2:A25)>Select!$B$8,"",OFFSET(DataOutput!B29,Select!$B$7-1,0)) -> 33 | C25: =IF(B25="","",B25-Select!$B$7+1) -> 24 | D25: 109.0684609
A26: 1 | B26: =IF(COUNT($A$2:A26)>Select!$B$8,"",OFFSET(DataOutput!B30,Select!$B$7-1,0)) -> 34 | C26: =IF(B26="","",B26-Select!$B$7+1) -> 25 | D26: 108.4357554
A27: 1 | B27: =IF(COUNT($A$2:A27)>Select!$B$8,"",OFFSET(DataOutput!B31,Select!$B$7-1,0)) -> 35 | C27: =IF(B27="","",B27-Select!$B$7+1) -> 26 | D27: 101.0746537
A28: 1 | B28: =IF(COUNT($A$2:A28)>Select!$B$8,"",OFFSET(DataOutput!B32,Select!$B$7-1,0)) -> 36 | C28: =IF(B28="","",B28-Select!$B$7+1) -> 27 | D28: 94.58312472
A29: 1 | B29: =IF(COUNT($A$2:A29)>Select!$B$8,"",OFFSET(DataOutput!B33,Select!$B$7-1,0)) -> 37 | C29: =IF(B29="","",B29-Select!$B$7+1) -> 28 | D29: 77.15944047
A30: 1 | B30: =IF(COUNT($A$2:A30)>Select!$B$8,"",OFFSET(DataOutput!B34,Select!$B$7-1,0)) -> 38 | C30: =IF(B30="","",B30-Select!$B$7+1) -> 29 | D30: 77.67952484
A31: 1 | B31: =IF(COUNT($A$2:A31)>Select!$B$8,"",OFFSET(DataOutput!B35,Select!$B$7-1,0)) -> 39 | C31: =IF(B31="","",B31-Select!$B$7+1) -> 30 | D31: 73.10056781
A32: 1 | B32: =IF(COUNT($A$2:A32)>Select!$B$8,"",OFFSET(DataOutput!B36,Select!$B$7-1,0)) ->  | C32: =IF(B32="","",B32-Select!$B$7+1) -> 
A33: 1 | B33: =IF(COUNT($A$2:A33)>Select!$B$8,"",OFFSET(DataOutput!B37,Select!$B$7-1,0)) ->  | C33: =IF(B33="","",B33-Select!$B$7+1) -> 
A34: 1 | B34: =IF(COUNT($A$2:A34)>Select!$B$8,"",OFFSET(DataOutput!B38,Select!$B$7-1,0)) ->  | C34: =IF(B34="","",B34-Select!$B$7+1) -> 
A35: 1 | B35: =IF(COUNT($A$2:A35)>Select!$B$8,"",OFFSET(DataOutput!B39,Select!$B$7-1,0)) ->  | C35: =IF(B35="","",B35-Select!$B$7+1) -> 
A36: 1 | B36: =IF(COUNT($A$2:A36)>Select!$B$8,"",OFFSET(DataOutput!B40,Select!$B$7-1,0)) ->  | C36: =IF(B36="","",B36-Select!$B$7+1) -> 
A37: 1 | B37: =IF(COUNT($A$2:A37)>Select!$B$8,"",OFFSET(DataOutput!B41,Select!$B$7-1,0)) ->  | C37: =IF(B37="","",B37-Select!$B$7+1) -> 
A38: 1 | B38: =IF(COUNT($A$2:A38)>Select!$B$8,"",OFFSET(DataOutput!B42,Select!$B$7-1,0)) ->  | C38: =IF(B38="","",B38-Select!$B$7+1) -> 
A39: 1 | B39: =IF(COUNT($A$2:A39)>Select!$B$8,"",OFFSET(DataOutput!B43,Select!$B$7-1,0)) ->  | C39: =IF(B39="","",B39-Select!$B$7+1) -> 
A40: 1 | B40: =IF(COUNT($A$2:A40)>Select!$B$8,"",OFFSET(DataOutput!B44,Select!$B$7-1,0)) ->  | C40: =IF(B40="","",B40-Select!$B$7+1) -> 
A41: 1 | B41: =IF(COUNT($A$2:A41)>Select!$B$8,"",OFFSET(DataOutput!B45,Select!$B$7-1,0)) ->  | C41: =IF(B41="","",B41-Select!$B$7+1) -> 
A42: 1 | B42: =IF(COUNT($A$2:A42)>Select!$B$8,"",OFFSET(DataOutput!B46,Select!$B$7-1,0)) ->  | C42: =IF(B42="","",B42-Select!$B$7+1) -> 
A43: 1 | B43: =IF(COUNT($A$2:A43)>Select!$B$8,"",OFFSET(DataOutput!B47,Select!$B$7-1,0)) ->  | C43: =IF(B43="","",B43-Select!$B$7+1) -> 
A44: 1 | B44: =IF(COUNT($A$2:A44)>Select!$B$8,"",OFFSET(DataOutput!B48,Select!$B$7-1,0)) ->  | C44: =IF(B44="","",B44-Select!$B$7+1) -> 
A45: 1 | B45: =IF(COUNT($A$2:A45)>Select!$B$8,"",OFFSET(DataOutput!B49,Select!$B$7-1,0)) ->  | C45: =IF(B45="","",B45-Select!$B$7+1) -> 
A46: 1 | B46: =IF(COUNT($A$2:A46)>Select!$B$8,"",OFFSET(DataOutput!B50,Select!$B$7-1,0)) ->  | C46: =IF(B46="","",B46-Select!$B$7+1) -> 
A47: 1 | B47: =IF(COUNT($A$2:A47)>Select!$B$8,"",OFFSET(DataOutput!B51,Select!$B$7-1,0)) ->  | C47: =IF(B47="","",B47-Select!$B$7+1) -> 
A48: 1 | B48: =IF(COUNT($A$2:A48)>Select!$B$8,"",OFFSET(DataOutput!B52,Select!$B$7-1,0)) ->  | C48: =IF(B48="","",B48-Select!$B$7+1) -> 
A49: 1 | B49: =IF(COUNT($A$2:A49)>Select!$B$8,"",OFFSET(DataOutput!B53,Select!$B$7-1,0)) ->  | C49: =IF(B49="","",B49-Select!$B$7+1) -> 

Sheet Exponential
B1: Index | C1: t | D1: x | E1: y=Ln(x)
A2: 1 | B2: =IF(COUNT($A$2:A2)>Select!$B$8,"",OFFSET(DataOutput!B6,Select!$B$7-1,0)) -> 10 | C2: =IF(B2="","",B2-Select!$B$7+1) -> 1 | D2: =IF(ISERROR(VLOOKUP(B2,table,2,0)),"",VLOOKUP(B2,table,2,0)) -> 63.91674231 | E2: =IF(B2="","",LN(D2)) -> 4.157581335
A3: 1 | B3: =IF(COUNT($A$2:A3)>Select!$B$8,"",OFFSET(DataOutput!B7,Select!$B$7-1,0)) -> 11 | C3: =IF(B3="","",B3-Select!$B$7+1) -> 2 | D3: 63.19335447 | E3: =IF(B3="","",LN(D3)) -> 4.146199145
A4: 1 | B4: =IF(COUNT($A$2:A4)>Select!$B$8,"",OFFSET(DataOutput!B8,Select!$B$7-1,0)) -> 12 | C4: =IF(B4="","",B4-Select!$B$7+1) -> 3 | D4: 70.14646369 | E4: 4.250585395 | G4: n | H4: Σt | I4: Σ(y) | J4: Σ(ty) | K4: Σ(t2) | L4: Σ(y2)
A5: 1 | B5: =IF(COUNT($A$2:A5)>Select!$B$8,"",OFFSET(DataOutput!B9,Select!$B$7-1,0)) -> 13 | C5: =IF(B5="","",B5-Select!$B$7+1) -> 4 | D5: 73.92375174 | E5: 4.30303418 | G5: =Select!B8 -> 30 | H5: =SUM(C:C) -> 465 | I5: =SUM(E2:E49) -> 132.8564068 | J5: =SUMPRODUCT(C2:C49,E2:E49) -> 2085.190722 | K5: =SUMPRODUCT(C2:C49,C2:C49) -> 9455 | L5: =SUMPRODUCT(E2:E49,E2:E49) -> 589.0277292
A6: 1 | B6: =IF(COUNT($A$2:A6)>Select!$B$8,"",OFFSET(DataOutput!B10,Select!$B$7-1,0)) -> 14 | C6: =IF(B6="","",B6-Select!$B$7+1) -> 5 | D6: 75.26062398 | E6: 4.320957076
A7: 1 | B7: =IF(COUNT($A$2:A7)>Select!$B$8,"",OFFSET(DataOutput!B11,Select!$B$7-1,0)) -> 15 | C7: =IF(B7="","",B7-Select!$B$7+1) -> 6 | D7: 78.44300239 | E7: 4.362372277 | G7: Σ(t)2 | H7: Σ(y)2
A8: 1 | B8: =IF(COUNT($A$2:A8)>Select!$B$8,"",OFFSET(DataOutput!B12,Select!$B$7-1,0)) -> 16 | C8: =IF(B8="","",B8-Select!$B$7+1) -> 7 | D8: 74.96997805 | E8: 4.317087741 | G8: =H5^2 -> 216225 | H8: =I5^2 -> 17650.82484
A9: 1 | B9: =IF(COUNT($A$2:A9)>Select!$B$8,"",OFFSET(DataOutput!B13,Select!$B$7-1,0)) -> 17 | C9: =IF(B9="","",B9-Select!$B$7+1) -> 8 | D9: 70.17932626 | E9: 4.25105377
A10: 1 | B10: =IF(COUNT($A$2:A10)>Select!$B$8,"",OFFSET(DataOutput!B14,Select!$B$7-1,0)) -> 18 | C10: =IF(B10="","",B10-Select!$B$7+1) -> 9 | D10: 72.50919698 | E10: 4.283713409 | G10: a = | H10: =EXP((I5-H11*H5)/G5) -> 70.09230352
A11: 1 | B11: =IF(COUNT($A$2:A11)>Select!$B$8,"",OFFSET(DataOutput!B15,Select!$B$7-1,0)) -> 19 | C11: =IF(B11="","",B11-Select!$B$7+1) -> 10 | D11: 74.91800546 | E11: 4.316394255 | G11: b = | H11: =(G5*J5-H5*I5)/(G5*K5-G8) -> 0.01153121934
A12: 1 | B12: =IF(COUNT($A$2:A12)>Select!$B$8,"",OFFSET(DataOutput!B16,Select!$B$7-1,0)) -> 20 | C12: =IF(B12="","",B12-Select!$B$7+1) -> 11 | D12: 80.01514613 | E12: 4.382215943 | G12: r = | H12: =(G5*J5-H5*I5)/SQRT((G5*K5-G8)*(G5*L5-H8)) -> 0.6694132802
A13: 1 | B13: =IF(COUNT($A$2:A13)>Select!$B$8,"",OFFSET(DataOutput!B17,Select!$B$7-1,0)) -> 21 | C13: =IF(B13="","",B13-Select!$B$7+1) -> 12 | D13: 84.77891317 | E13: 4.440046846
A14: 1 | B14: =IF(COUNT($A$2:A14)>Select!$B$8,"",OFFSET(DataOutput!B18,Select!$B$7-1,0)) -> 22 | C14: =IF(B14="","",B14-Select!$B$7+1) -> 13 | D14: 88.5146316 | E14: 4.483167867
A15: 1 | B15: =IF(COUNT($A$2:A15)>Select!$B$8,"",OFFSET(DataOutput!B19,Select!$B$7-1,0)) -> 23 | C15: =IF(B15="","",B15-Select!$B$7+1) -> 14 | D15: 86.44477755 | E15: 4.4595058
A16: 1 | B16: =IF(COUNT($A$2:A16)>Select!$B$8,"",OFFSET(DataOutput!B20,Select!$B$7-1,0)) -> 24 | C16: =IF(B16="","",B16-Select!$B$7+1) -> 15 | D16: 84.72007986 | E16: 4.439352644
A17: 1 | B17: =IF(COUNT($A$2:A17)>Select!$B$8,"",OFFSET(DataOutput!B21,Select!$B$7-1,0)) -> 25 | C17: =IF(B17="","",B17-Select!$B$7+1) -> 16 | D17: 87.28692803 | E17: 4.469200715
A18: 1 | B18: =IF(COUNT($A$2:A18)>Select!$B$8,"",OFFSET(DataOutput!B22,Select!$B$7-1,0)) -> 26 | C18: =IF(B18="","",B18-Select!$B$7+1) -> 17 | D18: 84.86864884 | E18: 4.441104754
A19: 1 | B19: =IF(COUNT($A$2:A19)>Select!$B$8,"",OFFSET(DataOutput!B23,Select!$B$7-1,0)) -> 27 | C19: =IF(B19="","",B19-Select!$B$7+1) -> 18 | D19: 94.07194501 | E19: 4.544059862
A20: 1 | B20: =IF(COUNT($A$2:A20)>Select!$B$8,"",OFFSET(DataOutput!B24,Select!$B$7-1,0)) -> 28 | C20: =IF(B20="","",B20-Select!$B$7+1) -> 19 | D20: 96.39637977 | E20: 4.568468647
A21: 1 | B21: =IF(COUNT($A$2:A21)>Select!$B$8,"",OFFSET(DataOutput!B25,Select!$B$7-1,0)) -> 29 | C21: =IF(B21="","",B21-Select!$B$7+1) -> 20 | D21: 97.08163483 | E21: 4.575552221
A22: 1 | B22: =IF(COUNT($A$2:A22)>Select!$B$8,"",OFFSET(DataOutput!B26,Select!$B$7-1,0)) -> 30 | C22: =IF(B22="","",B22-Select!$B$7+1) -> 21 | D22: 99.21597435 | E22: 4.597299033
A23: 1 | B23: =IF(COUNT($A$2:A23)>Select!$B$8,"",OFFSET(DataOutput!B27,Select!$B$7-1,0)) -> 31 | C23: =IF(B23="","",B23-Select!$B$7+1) -> 22 | D23: 97.55006085 | E23: 4.580365691
A24: 1 | B24: =IF(COUNT($A$2:A24)>Select!$B$8,"",OFFSET(DataOutput!B28,Select!$B$7-1,0)) -> 32 | C24: =IF(B24="","",B24-Select!$B$7+1) -> 23 | D24: 102.8543956 | E24: 4.633314353
A25: 1 | B25: =IF(COUNT($A$2:A25)>Select!$B$8,"",OFFSET(DataOutput!B29,Select!$B$7-1,0)) -> 33 | C25: =IF(B25="","",B25-Select!$B$7+1) -> 24 | D25: 109.0684609 | E25: 4.691975766
A26: 1 | B26: =IF(COUNT($A$2:A26)>Select!$B$8,"",OFFSET(DataOutput!B30,Select!$B$7-1,0)) -> 34 | C26: =IF(B26="","",B26-Select!$B$7+1) -> 25 | D26: 108.4357554 | E26: 4.686157882
A27: 1 | B27: =IF(COUNT($A$2:A27)>Select!$B$8,"",OFFSET(DataOutput!B31,Select!$B$7-1,0)) -> 35 | C27: =IF(B27="","",B27-Select!$B$7+1) -> 26 | D27: 101.0746537 | E27: 4.615859389
A28: 1 | B28: =IF(COUNT($A$2:A28)>Select!$B$8,"",OFFSET(DataOutput!B32,Select!$B$7-1,0)) -> 36 | C28: =IF(B28="","",B28-Select!$B$7+1) -> 27 | D28: 94.58312472 | E28: 4.549479075
A29: 1 | B29: =IF(COUNT($A$2:A29)>Select!$B$8,"",OFFSET(DataOutput!B33,Select!$B$7-1,0)) -> 37 | C29: =IF(B29="","",B29-Select!$B$7+1) -> 28 | D29: 77.15944047 | E29: 4.345873936
A30: 1 | B30: =IF(COUNT($A$2:A30)>Select!$B$8,"",OFFSET(DataOutput!B34,Select!$B$7-1,0)) -> 38 | C30: =IF(B30="","",B30-Select!$B$7+1) -> 29 | D30: 77.67952484 | E30: 4.352591707
A31: 1 | B31: =IF(COUNT($A$2:A31)>Select!$B$8,"",OFFSET(DataOutput!B35,Select!$B$7-1,0)) -> 39 | C31: =IF(B31="","",B31-Select!$B$7+1) -> 30 | D31: 73.10056781 | E31: 4.291836134
A32: 1 | B32: =IF(COUNT($A$2:A32)>Select!$B$8,"",OFFSET(DataOutput!B36,Select!$B$7-1,0)) ->  | C32: =IF(B32="","",B32-Select!$B$7+1) -> 
A33: 1 | B33: =IF(COUNT($A$2:A33)>Select!$B$8,"",OFFSET(DataOutput!B37,Select!$B$7-1,0)) ->  | C33: =IF(B33="","",B33-Select!$B$7+1) -> 
A34: 1 | B34: =IF(COUNT($A$2:A34)>Select!$B$8,"",OFFSET(DataOutput!B38,Select!$B$7-1,0)) ->  | C34: =IF(B34="","",B34-Select!$B$7+1) -> 
A35: 1 | B35: =IF(COUNT($A$2:A35)>Select!$B$8,"",OFFSET(DataOutput!B39,Select!$B$7-1,0)) ->  | C35: =IF(B35="","",B35-Select!$B$7+1) -> 
A36: 1 | B36: =IF(COUNT($A$2:A36)>Select!$B$8,"",OFFSET(DataOutput!B40,Select!$B$7-1,0)) ->  | C36: =IF(B36="","",B36-Select!$B$7+1) -> 
A37: 1 | B37: =IF(COUNT($A$2:A37)>Select!$B$8,"",OFFSET(DataOutput!B41,Select!$B$7-1,0)) ->  | C37: =IF(B37="","",B37-Select!$B$7+1) -> 
A38: 1 | B38: =IF(COUNT($A$2:A38)>Select!$B$8,"",OFFSET(DataOutput!B42,Select!$B$7-1,0)) ->  | C38: =IF(B38="","",B38-Select!$B$7+1) -> 
A39: 1 | B39: =IF(COUNT($A$2:A39)>Select!$B$8,"",OFFSET(DataOutput!B43,Select!$B$7-1,0)) ->  | C39: =IF(B39="","",B39-Select!$B$7+1) -> 
A40: 1 | B40: =IF(COUNT($A$2:A40)>Select!$B$8,"",OFFSET(DataOutput!B44,Select!$B$7-1,0)) ->  | C40: =IF(B40="","",B40-Select!$B$7+1) -> 
A41: 1 | B41: =IF(COUNT($A$2:A41)>Select!$B$8,"",OFFSET(DataOutput!B45,Select!$B$7-1,0)) ->  | C41: =IF(B41="","",B41-Select!$B$7+1) -> 
A42: 1 | B42: =IF(COUNT($A$2:A42)>Select!$B$8,"",OFFSET(DataOutput!B46,Select!$B$7-1,0)) ->  | C42: =IF(B42="","",B42-Select!$B$7+1) -> 
A43: 1 | B43: =IF(COUNT($A$2:A43)>Select!$B$8,"",OFFSET(DataOutput!B47,Select!$B$7-1,0)) ->  | C43: =IF(B43="","",B43-Select!$B$7+1) -> 
A44: 1 | B44: =IF(COUNT($A$2:A44)>Select!$B$8,"",OFFSET(DataOutput!B48,Select!$B$7-1,0)) ->  | C44: =IF(B44="","",B44-Select!$B$7+1) -> 
A45: 1 | B45: =IF(COUNT($A$2:A45)>Select!$B$8,"",OFFSET(DataOutput!B49,Select!$B$7-1,0)) ->  | C45: =IF(B45="","",B45-Select!$B$7+1) -> 
A46: 1 | B46: =IF(COUNT($A$2:A46)>Select!$B$8,"",OFFSET(DataOutput!B50,Select!$B$7-1,0)) ->  | C46: =IF(B46="","",B46-Select!$B$7+1) -> 
A47: 1 | B47: =IF(COUNT($A$2:A47)>Select!$B$8,"",OFFSET(DataOutput!B51,Select!$B$7-1,0)) ->  | C47: =IF(B47="","",B47-Select!$B$7+1) -> 
A48: 1 | B48: =IF(COUNT($A$2:A48)>Select!$B$8,"",OFFSET(DataOutput!B52,Select!$B$7-1,0)) ->  | C48: =IF(B48="","",B48-Select!$B$7+1) -> 
A49: 1 | B49: =IF(COUNT($A$2:A49)>Select!$B$8,"",OFFSET(DataOutput!B53,Select!$B$7-1,0)) ->  | C49: =IF(B49="","",B49-Select!$B$7+1) -> 

Sheet Log
B1: Index | C1: t | D1: x | E1: t'=Ln(t)
A2: 1 | B2: =IF(COUNT($A$2:A2)>Select!$B$8,"",OFFSET(DataOutput!B6,Select!$B$7-1,0)) -> 10 | C2: =IF(B2="","",B2-Select!$B$7+1) -> 1 | D2: =IF(ISERROR(VLOOKUP(B2,table,2,0)),"",VLOOKUP(B2,table,2,0)) -> 63.91674231 | E2: =IF(B2="","",LN(C2)) -> 0
A3: 1 | B3: =IF(COUNT($A$2:A3)>Select!$B$8,"",OFFSET(DataOutput!B7,Select!$B$7-1,0)) -> 11 | C3: =IF(B3="","",B3-Select!$B$7+1) -> 2 | D3: 63.19335447 | E3: 0.6931471806
A4: 1 | B4: =IF(COUNT($A$2:A4)>Select!$B$8,"",OFFSET(DataOutput!B8,Select!$B$7-1,0)) -> 12 | C4: =IF(B4="","",B4-Select!$B$7+1) -> 3 | D4: 70.14646369 | E4: 1.098612289 | G4: n | H4: Σt' | I4: Σx | J4: Σ(t'x) | K4: Σ(t'2) | L4: Σ(x2)
A5: 1 | B5: =IF(COUNT($A$2:A5)>Select!$B$8,"",OFFSET(DataOutput!B9,Select!$B$7-1,0)) -> 13 | C5: =IF(B5="","",B5-Select!$B$7+1) -> 4 | D5: 73.92375174 | E5: 1.386294361 | G5: =Select!B8 -> 30 | H5: =SUM(E2:E49) -> 83.32777772 | I5: =SUM(D2:D49) -> 2542.361489 | J5: =SUMPRODUCT(E2:E49,D2:D49) -> 7470.127804 | K5: =SUMPRODUCT(E2:E49,E2:E49) -> 289.0323769 | L5: =SUMPRODUCT(D2:D49,D2:D49) -> 220247.1683
A6: 1 | B6: =IF(COUNT($A$2:A6)>Select!$B$8,"",OFFSET(DataOutput!B10,Select!$B$7-1,0)) -> 14 | C6: =IF(B6="","",B6-Select!$B$7+1) -> 5 | D6: 75.26062398 | E6: 1.609437912
A7: 1 | B7: =IF(COUNT($A$2:A7)>Select!$B$8,"",OFFSET(DataOutput!B11,Select!$B$7-1,0)) -> 15 | C7: =IF(B7="","",B7-Select!$B$7+1) -> 6 | D7: 78.44300239 | E7: 1.791759469 | G7: Σ(t')2 | H7: Σ(x)2
A8: 1 | B8: =IF(COUNT($A$2:A8)>Select!$B$8,"",OFFSET(DataOutput!B12,Select!$B$7-1,0)) -> 16 | C8: =IF(B8="","",B8-Select!$B$7+1) -> 7 | D8: 74.96997805 | E8: 1.945910149 | G8: =H5^2 -> 6943.51854 | H8: =I5^2 -> 6463601.939
A9: 1 | B9: =IF(COUNT($A$2:A9)>Select!$B$8,"",OFFSET(DataOutput!B13,Select!$B$7-1,0)) -> 17 | C9: =IF(B9="","",B9-Select!$B$7+1) -> 8 | D9: 70.17932626 | E9: 2.079441542
A10: 1 | B10: =IF(COUNT($A$2:A10)>Select!$B$8,"",OFFSET(DataOutput!B14,Select!$B$7-1,0)) -> 18 | C10: =IF(B10="","",B10-Select!$B$7+1) -> 9 | D10: 72.50919698 | E10: 2.197224577 | G10: a = | H10: =(G5*J5-H5*I5)/(G5*K5-G8) -> 7.093971735
A11: 1 | B11: =IF(COUNT($A$2:A11)>Select!$B$8,"",OFFSET(DataOutput!B15,Select!$B$7-1,0)) -> 19 | C11: =IF(B11="","",B11-Select!$B$7+1) -> 10 | D11: 74.91800546 | E11: 2.302585093 | G11: b = | H11: =(I5-H10*H5)/G5 -> 65.04121963
A12: 1 | B12: =IF(COUNT($A$2:A12)>Select!$B$8,"",OFFSET(DataOutput!B16,Select!$B$7-1,0)) -> 20 | C12: =IF(B12="","",B12-Select!$B$7+1) -> 11 | D12: 80.01514613 | E12: 2.397895273 | G12: r = | H12: =(G5*J5-H5*I5)/SQRT((G5*K5-G8)*(G5*L5-H8)) -> 0.7774873052
A13: 1 | B13: =IF(COUNT($A$2:A13)>Select!$B$8,"",OFFSET(DataOutput!B17,Select!$B$7-1,0)) -> 21 | C13: =IF(B13="","",B13-Select!$B$7+1) -> 12 | D13: 84.77891317 | E13: 2.48490665
A14: 1 | B14: =IF(COUNT($A$2:A14)>Select!$B$8,"",OFFSET(DataOutput!B18,Select!$B$7-1,0)) -> 22 | C14: =IF(B14="","",B14-Select!$B$7+1) -> 13 | D14: 88.5146316 | E14: 2.564949357
A15: 1 | B15: =IF(COUNT($A$2:A15)>Select!$B$8,"",OFFSET(DataOutput!B19,Select!$B$7-1,0)) -> 23 | C15: =IF(B15="","",B15-Select!$B$7+1) -> 14 | D15: 86.44477755 | E15: 2.63905733
A16: 1 | B16: =IF(COUNT($A$2:A16)>Select!$B$8,"",OFFSET(DataOutput!B20,Select!$B$7-1,0)) -> 24 | C16: =IF(B16="","",B16-Select!$B$7+1) -> 15 | D16: 84.72007986 | E16: 2.708050201
A17: 1 | B17: =IF(COUNT($A$2:A17)>Select!$B$8,"",OFFSET(DataOutput!B21,Select!$B$7-1,0)) -> 25 | C17: =IF(B17="","",B17-Select!$B$7+1) -> 16 | D17: 87.28692803 | E17: 2.772588722
A18: 1 | B18: =IF(COUNT($A$2:A18)>Select!$B$8,"",OFFSET(DataOutput!B22,Select!$B$7-1,0)) -> 26 | C18: =IF(B18="","",B18-Select!$B$7+1) -> 17 | D18: 84.86864884 | E18: 2.833213344
A19: 1 | B19: =IF(COUNT($A$2:A19)>Select!$B$8,"",OFFSET(DataOutput!B23,Select!$B$7-1,0)) -> 27 | C19: =IF(B19="","",B19-Select!$B$7+1) -> 18 | D19: 94.07194501 | E19: 2.890371758
A20: 1 | B20: =IF(COUNT($A$2:A20)>Select!$B$8,"",OFFSET(DataOutput!B24,Select!$B$7-1,0)) -> 28 | C20: =IF(B20="","",B20-Select!$B$7+1) -> 19 | D20: 96.39637977 | E20: 2.944438979
A21: 1 | B21: =IF(COUNT($A$2:A21)>Select!$B$8,"",OFFSET(DataOutput!B25,Select!$B$7-1,0)) -> 29 | C21: =IF(B21="","",B21-Select!$B$7+1) -> 20 | D21: 97.08163483 | E21: 2.995732274
A22: 1 | B22: =IF(COUNT($A$2:A22)>Select!$B$8,"",OFFSET(DataOutput!B26,Select!$B$7-1,0)) -> 30 | C22: =IF(B22="","",B22-Select!$B$7+1) -> 21 | D22: 99.21597435 | E22: =IF(B22="","",LN(D22)) -> 4.597299033
A23: 1 | B23: =IF(COUNT($A$2:A23)>Select!$B$8,"",OFFSET(DataOutput!B27,Select!$B$7-1,0)) -> 31 | C23: =IF(B23="","",B23-Select!$B$7+1) -> 22 | D23: 97.55006085 | E23: 4.580365691
A24: 1 | B24: =IF(COUNT($A$2:A24)>Select!$B$8,"",OFFSET(DataOutput!B28,Select!$B$7-1,0)) -> 32 | C24: =IF(B24="","",B24-Select!$B$7+1) -> 23 | D24: 102.8543956 | E24: 4.633314353
A25: 1 | B25: =IF(COUNT($A$2:A25)>Select!$B$8,"",OFFSET(DataOutput!B29,Select!$B$7-1,0)) -> 33 | C25: =IF(B25="","",B25-Select!$B$7+1) -> 24 | D25: 109.0684609 | E25: 4.691975766
A26: 1 | B26: =IF(COUNT($A$2:A26)>Select!$B$8,"",OFFSET(DataOutput!B30,Select!$B$7-1,0)) -> 34 | C26: =IF(B26="","",B26-Select!$B$7+1) -> 25 | D26: 108.4357554 | E26: 4.686157882
A27: 1 | B27: =IF(COUNT($A$2:A27)>Select!$B$8,"",OFFSET(DataOutput!B31,Select!$B$7-1,0)) -> 35 | C27: =IF(B27="","",B27-Select!$B$7+1) -> 26 | D27: 101.0746537 | E27: 4.615859389
A28: 1 | B28: =IF(COUNT($A$2:A28)>Select!$B$8,"",OFFSET(DataOutput!B32,Select!$B$7-1,0)) -> 36 | C28: =IF(B28="","",B28-Select!$B$7+1) -> 27 | D28: 94.58312472 | E28: 4.549479075
A29: 1 | B29: =IF(COUNT($A$2:A29)>Select!$B$8,"",OFFSET(DataOutput!B33,Select!$B$7-1,0)) -> 37 | C29: =IF(B29="","",B29-Select!$B$7+1) -> 28 | D29: 77.15944047 | E29: 4.345873936
A30: 1 | B30: =IF(COUNT($A$2:A30)>Select!$B$8,"",OFFSET(DataOutput!B34,Select!$B$7-1,0)) -> 38 | C30: =IF(B30="","",B30-Select!$B$7+1) -> 29 | D30: 77.67952484
A31: 1 | B31: =IF(COUNT($A$2:A31)>Select!$B$8,"",OFFSET(DataOutput!B35,Select!$B$7-1,0)) -> 39 | C31: =IF(B31="","",B31-Select!$B$7+1) -> 30 | D31: 73.10056781 | E31: =IF(B31="","",LN(D31)) -> 4.291836134
A32: 1 | B32: =IF(COUNT($A$2:A32)>Select!$B$8,"",OFFSET(DataOutput!B36,Select!$B$7-1,0)) ->  | C32: =IF(B32="","",B32-Select!$B$7+1) -> 
A33: 1 | B33: =IF(COUNT($A$2:A33)>Select!$B$8,"",OFFSET(DataOutput!B37,Select!$B$7-1,0)) ->  | C33: =IF(B33="","",B33-Select!$B$7+1) -> 
A34: 1 | B34: =IF(COUNT($A$2:A34)>Select!$B$8,"",OFFSET(DataOutput!B38,Select!$B$7-1,0)) ->  | C34: =IF(B34="","",B34-Select!$B$7+1) -> 
A35: 1 | B35: =IF(COUNT($A$2:A35)>Select!$B$8,"",OFFSET(DataOutput!B39,Select!$B$7-1,0)) ->  | C35: =IF(B35="","",B35-Select!$B$7+1) -> 
A36: 1 | B36: =IF(COUNT($A$2:A36)>Select!$B$8,"",OFFSET(DataOutput!B40,Select!$B$7-1,0)) ->  | C36: =IF(B36="","",B36-Select!$B$7+1) -> 
A37: 1 | B37: =IF(COUNT($A$2:A37)>Select!$B$8,"",OFFSET(DataOutput!B41,Select!$B$7-1,0)) ->  | C37: =IF(B37="","",B37-Select!$B$7+1) -> 
A38: 1 | B38: =IF(COUNT($A$2:A38)>Select!$B$8,"",OFFSET(DataOutput!B42,Select!$B$7-1,0)) ->  | C38: =IF(B38="","",B38-Select!$B$7+1) -> 
A39: 1 | B39: =IF(COUNT($A$2:A39)>Select!$B$8,"",OFFSET(DataOutput!B43,Select!$B$7-1,0)) ->  | C39: =IF(B39="","",B39-Select!$B$7+1) -> 
A40: 1 | B40: =IF(COUNT($A$2:A40)>Select!$B$8,"",OFFSET(DataOutput!B44,Select!$B$7-1,0)) ->  | C40: =IF(B40="","",B40-Select!$B$7+1) -> 
A41: 1 | B41: =IF(COUNT($A$2:A41)>Select!$B$8,"",OFFSET(DataOutput!B45,Select!$B$7-1,0)) ->  | C41: =IF(B41="","",B41-Select!$B$7+1) -> 
A42: 1 | B42: =IF(COUNT($A$2:A42)>Select!$B$8,"",OFFSET(DataOutput!B46,Select!$B$7-1,0)) ->  | C42: =IF(B42="","",B42-Select!$B$7+1) -> 
A43: 1 | B43: =IF(COUNT($A$2:A43)>Select!$B$8,"",OFFSET(DataOutput!B47,Select!$B$7-1,0)) ->  | C43: =IF(B43="","",B43-Select!$B$7+1) -> 
A44: 1 | B44: =IF(COUNT($A$2:A44)>Select!$B$8,"",OFFSET(DataOutput!B48,Select!$B$7-1,0)) ->  | C44: =IF(B44="","",B44-Select!$B$7+1) -> 
A45: 1 | B45: =IF(COUNT($A$2:A45)>Select!$B$8,"",OFFSET(DataOutput!B49,Select!$B$7-1,0)) ->  | C45: =IF(B45="","",B45-Select!$B$7+1) -> 
A46: 1 | B46: =IF(COUNT($A$2:A46)>Select!$B$8,"",OFFSET(DataOutput!B50,Select!$B$7-1,0)) ->  | C46: =IF(B46="","",B46-Select!$B$7+1) -> 
A47: 1 | B47: =IF(COUNT($A$2:A47)>Select!$B$8,"",OFFSET(DataOutput!B51,Select!$B$7-1,0)) ->  | C47: =IF(B47="","",B47-Select!$B$7+1) -> 
A48: 1 | B48: =IF(COUNT($A$2:A48)>Select!$B$8,"",OFFSET(DataOutput!B52,Select!$B$7-1,0)) ->  | C48: =IF(B48="","",B48-Select!$B$7+1) -> 
A49: 1 | B49: =IF(COUNT($A$2:A49)>Select!$B$8,"",OFFSET(DataOutput!B53,Select!$B$7-1,0)) ->  | C49: =IF(B49="","",B49-Select!$B$7+1) -> 

Sheet Power
B1: Index | C1: t | D1: x | E1: t'=Ln(t) | F1: y=Ln(x)
A2: 1 | B2: =IF(COUNT($A$2:A2)>Select!$B$8,"",OFFSET(DataOutput!B6,Select!$B$7-1,0)) -> 10 | C2: =IF(B2="","",B2-Select!$B$7+1) -> 1 | D2: =IF(ISERROR(VLOOKUP(B2,table,2,0)),"",VLOOKUP(B2,table,2,0)) -> 63.91674231 | E2: =IF(C2="","",LN(C2)) -> 0 | F2: =IF(B2="","",LN(D2)) -> 4.157581335
A3: 1 | B3: =IF(COUNT($A$2:A3)>Select!$B$8,"",OFFSET(DataOutput!B7,Select!$B$7-1,0)) -> 11 | C3: =IF(B3="","",B3-Select!$B$7+1) -> 2 | D3: 63.19335447 | E3: =IF(C3="","",LN(C3)) -> 0.6931471806 | F3: 4.146199145
A4: 1 | B4: =IF(COUNT($A$2:A4)>Select!$B$8,"",OFFSET(DataOutput!B8,Select!$B$7-1,0)) -> 12 | C4: =IF(B4="","",B4-Select!$B$7+1) -> 3 | D4: 70.14646369 | E4: 1.098612289 | F4: 4.250585395 | H4: n | I4: Σt' | J4: Σy | K4: Σ(t'y) | L4: Σ(t'2) | M4: Σ(y2)
A5: 1 | B5: =IF(COUNT($A$2:A5)>Select!$B$8,"",OFFSET(DataOutput!B9,Select!$B$7-1,0)) -> 13 | C5: =IF(B5="","",B5-Select!$B$7+1) -> 4 | D5: 73.92375174 | E5: 1.386294361 | F5: 4.30303418 | H5: =Select!B8 -> 30 | I5: =SUM(E2:E49) -> 74.65823635 | J5: =SUM(F2:F49) -> 132.8564068 | K5: =SUMPRODUCT(E2:E49,F2:F49) -> 333.4153339 | L5: =SUMPRODUCT(E2:E49,E2:E49) -> 206.7690765 | M5: =SUMPRODUCT(F2:F49,F2:F49) -> 589.0277292
A6: 1 | B6: =IF(COUNT($A$2:A6)>Select!$B$8,"",OFFSET(DataOutput!B10,Select!$B$7-1,0)) -> 14 | C6: =IF(B6="","",B6-Select!$B$7+1) -> 5 | D6: 75.26062398 | E6: 1.609437912 | F6: 4.320957076
A7: 1 | B7: =IF(COUNT($A$2:A7)>Select!$B$8,"",OFFSET(DataOutput!B11,Select!$B$7-1,0)) -> 15 | C7: =IF(B7="","",B7-Select!$B$7+1) -> 6 | D7: 78.44300239 | E7: 1.791759469 | F7: 4.362372277 | H7: Σ(t')2 | I7: Σ(y)2
A8: 1 | B8: =IF(COUNT($A$2:A8)>Select!$B$8,"",OFFSET(DataOutput!B12,Select!$B$7-1,0)) -> 16 | C8: =IF(B8="","",B8-Select!$B$7+1) -> 7 | D8: 74.96997805 | E8: 1.945910149 | F8: 4.317087741 | H8: =I5^2 -> 5573.852255 | I8: =J5^2 -> 17650.82484
A9: 1 | B9: =IF(COUNT($A$2:A9)>Select!$B$8,"",OFFSET(DataOutput!B13,Select!$B$7-1,0)) -> 17 | C9: =IF(B9="","",B9-Select!$B$7+1) -> 8 | D9: 70.17932626 | E9: 2.079441542 | F9: 4.25105377
A10: 1 | B10: =IF(COUNT($A$2:A10)>Select!$B$8,"",OFFSET(DataOutput!B14,Select!$B$7-1,0)) -> 18 | C10: =IF(B10="","",B10-Select!$B$7+1) -> 9 | D10: 72.50919698 | E10: 2.197224577 | F10: 4.283713409 | H10: a = | I10: =EXP((J5-I11*I5)/H5) -> 60.20556725
A11: 1 | B11: =IF(COUNT($A$2:A11)>Select!$B$8,"",OFFSET(DataOutput!B15,Select!$B$7-1,0)) -> 19 | C11: =IF(B11="","",B11-Select!$B$7+1) -> 10 | D11: 74.91800546 | E11: 2.302585093 | F11: 4.316394255 | H11: b = | I11: =(H5*K5-I5*J5)/(H5*L5-H8) -> 0.1329185166
A12: 1 | B12: =IF(COUNT($A$2:A12)>Select!$B$8,"",OFFSET(DataOutput!B16,Select!$B$7-1,0)) -> 20 | C12: =IF(B12="","",B12-Select!$B$7+1) -> 11 | D12: 80.01514613 | E12: 2.397895273 | F12: 4.382215943 | H12: r = | I12: =(H5*K5-I5*J5)/SQRT((H5*L5-H8)*(H5*M5-I8)) -> 0.7454102695
A13: 1 | B13: =IF(COUNT($A$2:A13)>Select!$B$8,"",OFFSET(DataOutput!B17,Select!$B$7-1,0)) -> 21 | C13: =IF(B13="","",B13-Select!$B$7+1) -> 12 | D13: 84.77891317 | E13: 2.48490665 | F13: 4.440046846
A14: 1 | B14: =IF(COUNT($A$2:A14)>Select!$B$8,"",OFFSET(DataOutput!B18,Select!$B$7-1,0)) -> 22 | C14: =IF(B14="","",B14-Select!$B$7+1) -> 13 | D14: 88.5146316 | E14: 2.564949357 | F14: 4.483167867
A15: 1 | B15: =IF(COUNT($A$2:A15)>Select!$B$8,"",OFFSET(DataOutput!B19,Select!$B$7-1,0)) -> 23 | C15: =IF(B15="","",B15-Select!$B$7+1) -> 14 | D15: 86.44477755 | E15: 2.63905733 | F15: 4.4595058
A16: 1 | B16: =IF(COUNT($A$2:A16)>Select!$B$8,"",OFFSET(DataOutput!B20,Select!$B$7-1,0)) -> 24 | C16: =IF(B16="","",B16-Select!$B$7+1) -> 15 | D16: 84.72007986 | E16: 2.708050201 | F16: 4.439352644
A17: 1 | B17: =IF(COUNT($A$2:A17)>Select!$B$8,"",OFFSET(DataOutput!B21,Select!$B$7-1,0)) -> 25 | C17: =IF(B17="","",B17-Select!$B$7+1) -> 16 | D17: 87.28692803 | E17: 2.772588722 | F17: 4.469200715
A18: 1 | B18: =IF(COUNT($A$2:A18)>Select!$B$8,"",OFFSET(DataOutput!B22,Select!$B$7-1,0)) -> 26 | C18: =IF(B18="","",B18-Select!$B$7+1) -> 17 | D18: 84.86864884 | E18: 2.833213344 | F18: 4.441104754
A19: 1 | B19: =IF(COUNT($A$2:A19)>Select!$B$8,"",OFFSET(DataOutput!B23,Select!$B$7-1,0)) -> 27 | C19: =IF(B19="","",B19-Select!$B$7+1) -> 18 | D19: 94.07194501 | E19: 2.890371758 | F19: 4.544059862
A20: 1 | B20: =IF(COUNT($A$2:A20)>Select!$B$8,"",OFFSET(DataOutput!B24,Select!$B$7-1,0)) -> 28 | C20: =IF(B20="","",B20-Select!$B$7+1) -> 19 | D20: 96.39637977 | E20: 2.944438979 | F20: 4.568468647
A21: 1 | B21: =IF(COUNT($A$2:A21)>Select!$B$8,"",OFFSET(DataOutput!B25,Select!$B$7-1,0)) -> 29 | C21: =IF(B21="","",B21-Select!$B$7+1) -> 20 | D21: 97.08163483 | E21: 2.995732274 | F21: 4.575552221
A22: 1 | B22: =IF(COUNT($A$2:A22)>Select!$B$8,"",OFFSET(DataOutput!B26,Select!$B$7-1,0)) -> 30 | C22: =IF(B22="","",B22-Select!$B$7+1) -> 21 | D22: 99.21597435 | E22: 3.044522438 | F22: 4.597299033
A23: 1 | B23: =IF(COUNT($A$2:A23)>Select!$B$8,"",OFFSET(DataOutput!B27,Select!$B$7-1,0)) -> 31 | C23: =IF(B23="","",B23-Select!$B$7+1) -> 22 | D23: 97.55006085 | E23: 3.091042453 | F23: 4.580365691
A24: 1 | B24: =IF(COUNT($A$2:A24)>Select!$B$8,"",OFFSET(DataOutput!B28,Select!$B$7-1,0)) -> 32 | C24: =IF(B24="","",B24-Select!$B$7+1) -> 23 | D24: 102.8543956 | E24: 3.135494216 | F24: 4.633314353
A25: 1 | B25: =IF(COUNT($A$2:A25)>Select!$B$8,"",OFFSET(DataOutput!B29,Select!$B$7-1,0)) -> 33 | C25: =IF(B25="","",B25-Select!$B$7+1) -> 24 | D25: 109.0684609 | E25: 3.17805383 | F25: 4.691975766
A26: 1 | B26: =IF(COUNT($A$2:A26)>Select!$B$8,"",OFFSET(DataOutput!B30,Select!$B$7-1,0)) -> 34 | C26: =IF(B26="","",B26-Select!$B$7+1) -> 25 | D26: 108.4357554 | E26: 3.218875825 | F26: 4.686157882
A27: 1 | B27: =IF(COUNT($A$2:A27)>Select!$B$8,"",OFFSET(DataOutput!B31,Select!$B$7-1,0)) -> 35 | C27: =IF(B27="","",B27-Select!$B$7+1) -> 26 | D27: 101.0746537 | E27: 3.258096538 | F27: 4.615859389
A28: 1 | B28: =IF(COUNT($A$2:A28)>Select!$B$8,"",OFFSET(DataOutput!B32,Select!$B$7-1,0)) -> 36 | C28: =IF(B28="","",B28-Select!$B$7+1) -> 27 | D28: 94.58312472 | E28: 3.295836866 | F28: 4.549479075
A29: 1 | B29: =IF(COUNT($A$2:A29)>Select!$B$8,"",OFFSET(DataOutput!B33,Select!$B$7-1,0)) -> 37 | C29: =IF(B29="","",B29-Select!$B$7+1) -> 28 | D29: 77.15944047 | E29: 3.33220451 | F29: 4.345873936
A30: 1 | B30: =IF(COUNT($A$2:A30)>Select!$B$8,"",OFFSET(DataOutput!B34,Select!$B$7-1,0)) -> 38 | C30: =IF(B30="","",B30-Select!$B$7+1) -> 29 | D30: 77.67952484 | E30: 3.36729583 | F30: 4.352591707
A31: 1 | B31: =IF(COUNT($A$2:A31)>Select!$B$8,"",OFFSET(DataOutput!B35,Select!$B$7-1,0)) -> 39 | C31: =IF(B31="","",B31-Select!$B$7+1) -> 30 | D31: 73.10056781 | E31: 3.401197382 | F31: 4.291836134
A32: 1 | B32: =IF(COUNT($A$2:A32)>Select!$B$8,"",OFFSET(DataOutput!B36,Select!$B$7-1,0)) ->  | C32: =IF(B32="","",B32-Select!$B$7+1) -> 
A33: 1 | B33: =IF(COUNT($A$2:A33)>Select!$B$8,"",OFFSET(DataOutput!B37,Select!$B$7-1,0)) ->  | C33: =IF(B33="","",B33-Select!$B$7+1) -> 
A34: 1 | B34: =IF(COUNT($A$2:A34)>Select!$B$8,"",OFFSET(DataOutput!B38,Select!$B$7-1,0)) ->  | C34: =IF(B34="","",B34-Select!$B$7+1) -> 
A35: 1 | B35: =IF(COUNT($A$2:A35)>Select!$B$8,"",OFFSET(DataOutput!B39,Select!$B$7-1,0)) ->  | C35: =IF(B35="","",B35-Select!$B$7+1) -> 
A36: 1 | B36: =IF(COUNT($A$2:A36)>Select!$B$8,"",OFFSET(DataOutput!B40,Select!$B$7-1,0)) ->  | C36: =IF(B36="","",B36-Select!$B$7+1) -> 
A37: 1 | B37: =IF(COUNT($A$2:A37)>Select!$B$8,"",OFFSET(DataOutput!B41,Select!$B$7-1,0)) ->  | C37: =IF(B37="","",B37-Select!$B$7+1) -> 
A38: 1 | B38: =IF(COUNT($A$2:A38)>Select!$B$8,"",OFFSET(DataOutput!B42,Select!$B$7-1,0)) ->  | C38: =IF(B38="","",B38-Select!$B$7+1) -> 
A39: 1 | B39: =IF(COUNT($A$2:A39)>Select!$B$8,"",OFFSET(DataOutput!B43,Select!$B$7-1,0)) ->  | C39: =IF(B39="","",B39-Select!$B$7+1) -> 
A40: 1 | B40: =IF(COUNT($A$2:A40)>Select!$B$8,"",OFFSET(DataOutput!B44,Select!$B$7-1,0)) ->  | C40: =IF(B40="","",B40-Select!$B$7+1) -> 
A41: 1 | B41: =IF(COUNT($A$2:A41)>Select!$B$8,"",OFFSET(DataOutput!B45,Select!$B$7-1,0)) ->  | C41: =IF(B41="","",B41-Select!$B$7+1) -> 
A42: 1 | B42: =IF(COUNT($A$2:A42)>Select!$B$8,"",OFFSET(DataOutput!B46,Select!$B$7-1,0)) ->  | C42: =IF(B42="","",B42-Select!$B$7+1) -> 
A43: 1 | B43: =IF(COUNT($A$2:A43)>Select!$B$8,"",OFFSET(DataOutput!B47,Select!$B$7-1,0)) ->  | C43: =IF(B43="","",B43-Select!$B$7+1) -> 
A44: 1 | B44: =IF(COUNT($A$2:A44)>Select!$B$8,"",OFFSET(DataOutput!B48,Select!$B$7-1,0)) ->  | C44: =IF(B44="","",B44-Select!$B$7+1) -> 
A45: 1 | B45: =IF(COUNT($A$2:A45)>Select!$B$8,"",OFFSET(DataOutput!B49,Select!$B$7-1,0)) ->  | C45: =IF(B45="","",B45-Select!$B$7+1) -> 
A46: 1 | B46: =IF(COUNT($A$2:A46)>Select!$B$8,"",OFFSET(DataOutput!B50,Select!$B$7-1,0)) ->  | C46: =IF(B46="","",B46-Select!$B$7+1) -> 
A47: 1 | B47: =IF(COUNT($A$2:A47)>Select!$B$8,"",OFFSET(DataOutput!B51,Select!$B$7-1,0)) ->  | C47: =IF(B47="","",B47-Select!$B$7+1) -> 
A48: 1 | B48: =IF(COUNT($A$2:A48)>Select!$B$8,"",OFFSET(DataOutput!B52,Select!$B$7-1,0)) ->  | C48: =IF(B48="","",B48-Select!$B$7+1) -> 
A49: 1 | B49: =IF(COUNT($A$2:A49)>Select!$B$8,"",OFFSET(DataOutput!B53,Select!$B$7-1,0)) ->  | C49: =IF(B49="","",B49-Select!$B$7+1) -> 

Sheet AutoRegressive
B1: Index | C1: t | D1: x | F1: Original Data | G1: 1 shift Data | I1: xt-u | J1: xt+k - u | L1: u= | M1: =AVERAGE(OFFSET(F2,0,0,COUNT(F:F),1)) -> 84.74538296 | N1: Regression | O1: Prediction
A2: 1 | B2: =IF(COUNT($A$2:A2)>Select!$B$8,"",OFFSET(DataOutput!B6,Select!$B$7-1,0)) -> 10 | C2: =IF(B2="","",B2-Select!$B$7+1) -> 1 | D2: =IF(ISERROR(VLOOKUP(B2,table,2,0)),"",VLOOKUP(B2,table,2,0)) -> 63.91674231 | F2: =D2 -> 63.91674231 | G2: =F3 -> 63.19335447 | I2: =IF(ISNUMBER(F2),F2-$M$1,"") -> -20.82864064 | J2: =IF(ISNUMBER(G2),G2-$M$1,"") -> -21.55202849 | N2: =IF(ISNUMBER(C2),$M$3*F2+(1-$M$3)*AVERAGE($F$2:F2),"") -> 63.91674231 | O2: =$M$4*INDIRECT(CONCATENATE("F",COUNT(F:F)+1))+(1-$M$4)*AVERAGE(OFFSET($F$2,0,0,COUNT(F:F),1)) -> 74.75149113
A3: 1 | B3: =IF(COUNT($A$2:A3)>Select!$B$8,"",OFFSET(DataOutput!B7,Select!$B$7-1,0)) -> 11 | C3: =IF(B3="","",B3-Select!$B$7+1) -> 2 | D3: 63.19335447 | F3: =D3 -> 63.19335447 | G3: =F4 -> 70.14646369 | I3: =IF(ISNUMBER(F3),F3-$M$1,"") -> -21.55202849 | J3: =IF(ISNUMBER(G3),G3-$M$1,"") -> -14.59891926 | L3: 1st order correleration: | N3: =IF(ISNUMBER(C3),$M$3*F3+(1-$M$3)*AVERAGE($F$2:F3),"") -> 63.55504839 | O3: =$M$4*$O$2+(1-$M$4)*(SUM(OFFSET($F$2,0,0,COUNT(F:F),1))+$O$2)/(COUNT(F:F)+1) -> 76.1226523
A4: 1 | B4: =IF(COUNT($A$2:A4)>Select!$B$8,"",OFFSET(DataOutput!B8,Select!$B$7-1,0)) -> 12 | C4: =IF(B4="","",B4-Select!$B$7+1) -> 3 | D4: 70.14646369 | F4: 70.14646369 | G4: 73.92375174 | I4: -14.59891926 | J4: -10.82163122 | L4: r1= | M4: =SUMPRODUCT($I$2:$I$49,$J$2:$J$49)/SUMPRODUCT($I$2:$I$49,$I$2:$I$49) -> 0.8582267475 | N4: =IF(ISNUMBER(C4),$M$3*F4+(1-$M$3)*AVERAGE($F$2:F4),"") -> 65.75218683 | O4: =$M$4*$O$3+(1-$M$4)*(SUM(OFFSET($F$2,0,0,COUNT(F:F),1))+$O$2+$O$3)/(COUNT(F:F)+2) -> 77.26264553
A5: 1 | B5: =IF(COUNT($A$2:A5)>Select!$B$8,"",OFFSET(DataOutput!B9,Select!$B$7-1,0)) -> 13 | C5: =IF(B5="","",B5-Select!$B$7+1) -> 4 | D5: 73.92375174 | F5: 73.92375174 | G5: 75.26062398 | I5: -10.82163122 | J5: -9.484758975 | N5: =IF(ISNUMBER(C5),$M$3*F5+(1-$M$3)*AVERAGE($F$2:F5),"") -> 67.79507805 | O5: =$M$4*$O$4+(1-$M$4)*(SUM(OFFSET($F$2,0,0,COUNT(F:F),1))+$O$2+$O$3+$O$4)/(COUNT(F:F)+3) -> 78.21137054
A6: 1 | B6: =IF(COUNT($A$2:A6)>Select!$B$8,"",OFFSET(DataOutput!B10,Select!$B$7-1,0)) -> 14 | C6: =IF(B6="","",B6-Select!$B$7+1) -> 5 | D6: 75.26062398 | F6: 75.26062398 | G6: 78.44300239 | I6: -9.484758975 | J6: =IF(ISNUMBER(G6),G6-$M$1,"") -> -6.302380568 | N6: =IF(ISNUMBER(C6),$M$3*F6+(1-$M$3)*AVERAGE($F$2:F6),"") -> 69.28818724
A7: 1 | B7: =IF(COUNT($A$2:A7)>Select!$B$8,"",OFFSET(DataOutput!B11,Select!$B$7-1,0)) -> 15 | C7: =IF(B7="","",B7-Select!$B$7+1) -> 6 | D7: 78.44300239 | F7: 78.44300239 | G7: 74.96997805 | I7: -6.302380568 | J7: =IF(ISNUMBER(G7),G7-$M$1,"") -> -9.775404909 | N7: =IF(ISNUMBER(C7),$M$3*F7+(1-$M$3)*AVERAGE($F$2:F7),"") -> 70.81398976
A8: 1 | B8: =IF(COUNT($A$2:A8)>Select!$B$8,"",OFFSET(DataOutput!B12,Select!$B$7-1,0)) -> 16 | C8: =IF(B8="","",B8-Select!$B$7+1) -> 7 | D8: 74.96997805 | F8: 74.96997805 | G8: 70.17932626 | I8: -9.775404909 | J8: -14.5660567 | N8: =IF(ISNUMBER(C8),$M$3*F8+(1-$M$3)*AVERAGE($F$2:F8),"") -> 71.40770238
A9: 1 | B9: =IF(COUNT($A$2:A9)>Select!$B$8,"",OFFSET(DataOutput!B13,Select!$B$7-1,0)) -> 17 | C9: =IF(B9="","",B9-Select!$B$7+1) -> 8 | D9: 70.17932626 | F9: 70.17932626 | G9: 72.50919698 | I9: -14.5660567 | J9: -12.23618598 | N9: =IF(ISNUMBER(C9),$M$3*F9+(1-$M$3)*AVERAGE($F$2:F9),"") -> 71.25415536
A10: 1 | B10: =IF(COUNT($A$2:A10)>Select!$B$8,"",OFFSET(DataOutput!B14,Select!$B$7-1,0)) -> 18 | C10: =IF(B10="","",B10-Select!$B$7+1) -> 9 | D10: 72.50919698 | F10: 72.50919698 | G10: 74.91800546 | I10: -12.23618598 | J10: -9.827377498 | N10: =IF(ISNUMBER(C10),$M$3*F10+(1-$M$3)*AVERAGE($F$2:F10),"") -> 71.39360443
A11: 1 | B11: =IF(COUNT($A$2:A11)>Select!$B$8,"",OFFSET(DataOutput!B15,Select!$B$7-1,0)) -> 19 | C11: =IF(B11="","",B11-Select!$B$7+1) -> 10 | D11: 74.91800546 | F11: 74.91800546 | G11: 80.01514613 | I11: -9.827377498 | J11: -4.730236831 | N11: =IF(ISNUMBER(C11),$M$3*F11+(1-$M$3)*AVERAGE($F$2:F11),"") -> 71.74604453
A12: 1 | B12: =IF(COUNT($A$2:A12)>Select!$B$8,"",OFFSET(DataOutput!B16,Select!$B$7-1,0)) -> 20 | C12: =IF(B12="","",B12-Select!$B$7+1) -> 11 | D12: 80.01514613 | F12: 80.01514613 | G12: 84.77891317 | I12: -4.730236831 | J12: 0.0335302114 | N12: =IF(ISNUMBER(C12),$M$3*F12+(1-$M$3)*AVERAGE($F$2:F12),"") -> 72.49778104
A13: 1 | B13: =IF(COUNT($A$2:A13)>Select!$B$8,"",OFFSET(DataOutput!B17,Select!$B$7-1,0)) -> 21 | C13: =IF(B13="","",B13-Select!$B$7+1) -> 12 | D13: 84.77891317 | F13: 84.77891317 | G13: 88.5146316 | I13: 0.0335302114 | J13: 3.769248642 | N13: =IF(ISNUMBER(C13),$M$3*F13+(1-$M$3)*AVERAGE($F$2:F13),"") -> 73.52120872
A14: 1 | B14: =IF(COUNT($A$2:A14)>Select!$B$8,"",OFFSET(DataOutput!B18,Select!$B$7-1,0)) -> 22 | C14: =IF(B14="","",B14-Select!$B$7+1) -> 13 | D14: 88.5146316 | F14: 88.5146316 | G14: 86.44477755 | I14: 3.769248642 | J14: 1.699394592 | N14: =IF(ISNUMBER(C14),$M$3*F14+(1-$M$3)*AVERAGE($F$2:F14),"") -> 74.67454894
A15: 1 | B15: =IF(COUNT($A$2:A15)>Select!$B$8,"",OFFSET(DataOutput!B19,Select!$B$7-1,0)) -> 23 | C15: =IF(B15="","",B15-Select!$B$7+1) -> 14 | D15: 86.44477755 | F15: =D15 -> 86.44477755 | G15: 84.72007986 | I15: 1.699394592 | J15: -0.02530309746 | N15: =IF(ISNUMBER(C15),$M$3*F15+(1-$M$3)*AVERAGE($F$2:F15),"") -> 75.51527956
A16: 1 | B16: =IF(COUNT($A$2:A16)>Select!$B$8,"",OFFSET(DataOutput!B20,Select!$B$7-1,0)) -> 24 | C16: =IF(B16="","",B16-Select!$B$7+1) -> 15 | D16: 84.72007986 | F16: 84.72007986 | G16: 87.28692803 | I16: -0.02530309746 | J16: 2.541545071 | N16: =IF(ISNUMBER(C16),$M$3*F16+(1-$M$3)*AVERAGE($F$2:F16),"") -> 76.12893291
A17: 1 | B17: =IF(COUNT($A$2:A17)>Select!$B$8,"",OFFSET(DataOutput!B21,Select!$B$7-1,0)) -> 25 | C17: =IF(B17="","",B17-Select!$B$7+1) -> 16 | D17: 87.28692803 | F17: 87.28692803 | G17: 84.86864884 | I17: 2.541545071 | J17: 0.1232658846 | N17: =IF(ISNUMBER(C17),$M$3*F17+(1-$M$3)*AVERAGE($F$2:F17),"") -> 76.8263076
A18: 1 | B18: =IF(COUNT($A$2:A18)>Select!$B$8,"",OFFSET(DataOutput!B22,Select!$B$7-1,0)) -> 26 | C18: =IF(B18="","",B18-Select!$B$7+1) -> 17 | D18: 84.86864884 | F18: 84.86864884 | G18: 94.07194501 | I18: 0.1232658846 | J18: 9.326562053 | N18: =IF(ISNUMBER(C18),$M$3*F18+(1-$M$3)*AVERAGE($F$2:F18),"") -> 77.2993865
A19: 1 | B19: =IF(COUNT($A$2:A19)>Select!$B$8,"",OFFSET(DataOutput!B23,Select!$B$7-1,0)) -> 27 | C19: =IF(B19="","",B19-Select!$B$7+1) -> 18 | D19: 94.07194501 | F19: 94.07194501 | G19: 96.39637977 | I19: 9.326562053 | J19: 11.65099681 | N19: =IF(ISNUMBER(C19),$M$3*F19+(1-$M$3)*AVERAGE($F$2:F19),"") -> 78.23119531
A20: 1 | B20: =IF(COUNT($A$2:A20)>Select!$B$8,"",OFFSET(DataOutput!B24,Select!$B$7-1,0)) -> 28 | C20: =IF(B20="","",B20-Select!$B$7+1) -> 19 | D20: 96.39637977 | F20: 96.39637977 | G20: 97.08163483 | I20: 11.65099681 | J20: 12.33625187 | N20: =IF(ISNUMBER(C20),$M$3*F20+(1-$M$3)*AVERAGE($F$2:F20),"") -> 79.18725765
A21: 1 | B21: =IF(COUNT($A$2:A21)>Select!$B$8,"",OFFSET(DataOutput!B25,Select!$B$7-1,0)) -> 29 | C21: =IF(B21="","",B21-Select!$B$7+1) -> 20 | D21: 97.08163483 | F21: 97.08163483 | G21: 99.21597435 | I21: 12.33625187 | J21: 14.47059139 | N21: =IF(ISNUMBER(C21),$M$3*F21+(1-$M$3)*AVERAGE($F$2:F21),"") -> 80.08197651
A22: 1 | B22: =IF(COUNT($A$2:A22)>Select!$B$8,"",OFFSET(DataOutput!B26,Select!$B$7-1,0)) -> 30 | C22: =IF(B22="","",B22-Select!$B$7+1) -> 21 | D22: 99.21597435 | F22: 99.21597435 | G22: 97.55006085 | I22: 14.47059139 | J22: 12.80467789 | N22: =IF(ISNUMBER(C22),$M$3*F22+(1-$M$3)*AVERAGE($F$2:F22),"") -> 80.99311926
A23: 1 | B23: =IF(COUNT($A$2:A23)>Select!$B$8,"",OFFSET(DataOutput!B27,Select!$B$7-1,0)) -> 31 | C23: =IF(B23="","",B23-Select!$B$7+1) -> 22 | D23: 97.55006085 | F23: 97.55006085 | G23: 102.8543956 | I23: 12.80467789 | J23: 18.10901261 | N23: =IF(ISNUMBER(C23),$M$3*F23+(1-$M$3)*AVERAGE($F$2:F23),"") -> 81.74570751
A24: 1 | B24: =IF(COUNT($A$2:A24)>Select!$B$8,"",OFFSET(DataOutput!B28,Select!$B$7-1,0)) -> 32 | C24: =IF(B24="","",B24-Select!$B$7+1) -> 23 | D24: 102.8543956 | F24: 102.8543956 | G24: 109.0684609 | I24: 18.10901261 | J24: 24.3230779 | N24: =IF(ISNUMBER(C24),$M$3*F24+(1-$M$3)*AVERAGE($F$2:F24),"") -> 82.66347656
A25: 1 | B25: =IF(COUNT($A$2:A25)>Select!$B$8,"",OFFSET(DataOutput!B29,Select!$B$7-1,0)) -> 33 | C25: =IF(B25="","",B25-Select!$B$7+1) -> 24 | D25: 109.0684609 | F25: 109.0684609 | G25: 108.4357554 | I25: 24.3230779 | J25: 23.69037249 | N25: =IF(ISNUMBER(C25),$M$3*F25+(1-$M$3)*AVERAGE($F$2:F25),"") -> 83.76368424
A26: 1 | B26: =IF(COUNT($A$2:A26)>Select!$B$8,"",OFFSET(DataOutput!B30,Select!$B$7-1,0)) -> 34 | C26: =IF(B26="","",B26-Select!$B$7+1) -> 25 | D26: 108.4357554 | F26: 108.4357554 | G26: 101.0746537 | I26: 23.69037249 | J26: 16.32927072 | N26: =IF(ISNUMBER(C26),$M$3*F26+(1-$M$3)*AVERAGE($F$2:F26),"") -> 84.75056709
A27: 1 | B27: =IF(COUNT($A$2:A27)>Select!$B$8,"",OFFSET(DataOutput!B31,Select!$B$7-1,0)) -> 35 | C27: =IF(B27="","",B27-Select!$B$7+1) -> 26 | D27: 101.0746537 | F27: 101.0746537 | G27: 94.58312472 | I27: 16.32927072 | J27: 9.837741766 | N27: =IF(ISNUMBER(C27),$M$3*F27+(1-$M$3)*AVERAGE($F$2:F27),"") -> 85.37841657
A28: 1 | B28: =IF(COUNT($A$2:A28)>Select!$B$8,"",OFFSET(DataOutput!B32,Select!$B$7-1,0)) -> 36 | C28: =IF(B28="","",B28-Select!$B$7+1) -> 27 | D28: 94.58312472 | F28: 94.58312472 | G28: 77.15944047 | I28: 9.837741766 | J28: -7.585942488 | N28: =IF(ISNUMBER(C28),$M$3*F28+(1-$M$3)*AVERAGE($F$2:F28),"") -> 85.71933169
A29: 1 | B29: =IF(COUNT($A$2:A29)>Select!$B$8,"",OFFSET(DataOutput!B33,Select!$B$7-1,0)) -> 37 | C29: =IF(B29="","",B29-Select!$B$7+1) -> 28 | D29: 77.15944047 | F29: =D29 -> 77.15944047 | G29: 77.67952484 | I29: -7.585942488 | J29: -7.065858112 | N29: =IF(ISNUMBER(C29),$M$3*F29+(1-$M$3)*AVERAGE($F$2:F29),"") -> 85.41362129
A30: 1 | B30: =IF(COUNT($A$2:A30)>Select!$B$8,"",OFFSET(DataOutput!B34,Select!$B$7-1,0)) -> 38 | C30: =IF(B30="","",B30-Select!$B$7+1) -> 29 | D30: 77.67952484 | F30: 77.67952484 | G30: 73.10056781 | I30: -7.065858112 | J30: -11.64481515 | N30: =IF(ISNUMBER(C30),$M$3*F30+(1-$M$3)*AVERAGE($F$2:F30),"") -> 85.14692831
A31: 1 | B31: =IF(COUNT($A$2:A31)>Select!$B$8,"",OFFSET(DataOutput!B35,Select!$B$7-1,0)) -> 39 | C31: =IF(B31="","",B31-Select!$B$7+1) -> 30 | D31: 73.10056781 | F31: 73.10056781 | I31: -11.64481515 | N31: =IF(ISNUMBER(C31),$M$3*F31+(1-$M$3)*AVERAGE($F$2:F31),"") -> 84.74538296
A32: 1 | B32: =IF(COUNT($A$2:A32)>Select!$B$8,"",OFFSET(DataOutput!B36,Select!$B$7-1,0)) ->  | C32: =IF(B32="","",B32-Select!$B$7+1) ->  | N32: =IF(ISNUMBER(C32),$M$3*F32+(1-$M$3)*AVERAGE($F$2:F32),"") -> 
A33: 1 | B33: =IF(COUNT($A$2:A33)>Select!$B$8,"",OFFSET(DataOutput!B37,Select!$B$7-1,0)) ->  | C33: =IF(B33="","",B33-Select!$B$7+1) ->  | N33: =IF(ISNUMBER(C33),$M$3*F33+(1-$M$3)*AVERAGE($F$2:F33),"") -> 
A34: 1 | B34: =IF(COUNT($A$2:A34)>Select!$B$8,"",OFFSET(DataOutput!B38,Select!$B$7-1,0)) ->  | C34: =IF(B34="","",B34-Select!$B$7+1) ->  | N34: =IF(ISNUMBER(C34),$M$3*F34+(1-$M$3)*AVERAGE($F$2:F34),"") -> 
A35: 1 | B35: =IF(COUNT($A$2:A35)>Select!$B$8,"",OFFSET(DataOutput!B39,Select!$B$7-1,0)) ->  | C35: =IF(B35="","",B35-Select!$B$7+1) ->  | N35: =IF(ISNUMBER(C35),$M$3*F35+(1-$M$3)*AVERAGE($F$2:F35),"") -> 
A36: 1 | B36: =IF(COUNT($A$2:A36)>Select!$B$8,"",OFFSET(DataOutput!B40,Select!$B$7-1,0)) ->  | C36: =IF(B36="","",B36-Select!$B$7+1) ->  | N36: =IF(ISNUMBER(C36),$M$3*F36+(1-$M$3)*AVERAGE($F$2:F36),"") -> 
A37: 1 | B37: =IF(COUNT($A$2:A37)>Select!$B$8,"",OFFSET(DataOutput!B41,Select!$B$7-1,0)) ->  | C37: =IF(B37="","",B37-Select!$B$7+1) ->  | N37: =IF(ISNUMBER(C37),$M$3*F37+(1-$M$3)*AVERAGE($F$2:F37),"") -> 
A38: 1 | B38: =IF(COUNT($A$2:A38)>Select!$B$8,"",OFFSET(DataOutput!B42,Select!$B$7-1,0)) ->  | C38: =IF(B38="","",B38-Select!$B$7+1) ->  | N38: =IF(ISNUMBER(C38),$M$3*F38+(1-$M$3)*AVERAGE($F$2:F38),"") -> 
A39: 1 | B39: =IF(COUNT($A$2:A39)>Select!$B$8,"",OFFSET(DataOutput!B43,Select!$B$7-1,0)) ->  | C39: =IF(B39="","",B39-Select!$B$7+1) ->  | N39: =IF(ISNUMBER(C39),$M$3*F39+(1-$M$3)*AVERAGE($F$2:F39),"") -> 
A40: 1 | B40: =IF(COUNT($A$2:A40)>Select!$B$8,"",OFFSET(DataOutput!B44,Select!$B$7-1,0)) ->  | C40: =IF(B40="","",B40-Select!$B$7+1) ->  | N40: =IF(ISNUMBER(C40),$M$3*F40+(1-$M$3)*AVERAGE($F$2:F40),"") -> 
A41: 1 | B41: =IF(COUNT($A$2:A41)>Select!$B$8,"",OFFSET(DataOutput!B45,Select!$B$7-1,0)) ->  | C41: =IF(B41="","",B41-Select!$B$7+1) ->  | N41: =IF(ISNUMBER(C41),$M$3*F41+(1-$M$3)*AVERAGE($F$2:F41),"") -> 
A42: 1 | B42: =IF(COUNT($A$2:A42)>Select!$B$8,"",OFFSET(DataOutput!B46,Select!$B$7-1,0)) ->  | C42: =IF(B42="","",B42-Select!$B$7+1) ->  | N42: =IF(ISNUMBER(C42),$M$3*F42+(1-$M$3)*AVERAGE($F$2:F42),"") -> 
A43: 1 | B43: =IF(COUNT($A$2:A43)>Select!$B$8,"",OFFSET(DataOutput!B47,Select!$B$7-1,0)) ->  | C43: =IF(B43="","",B43-Select!$B$7+1) ->  | N43: =IF(ISNUMBER(C43),$M$3*F43+(1-$M$3)*AVERAGE($F$2:F43),"") -> 
A44: 1 | B44: =IF(COUNT($A$2:A44)>Select!$B$8,"",OFFSET(DataOutput!B48,Select!$B$7-1,0)) ->  | C44: =IF(B44="","",B44-Select!$B$7+1) ->  | N44: =IF(ISNUMBER(C44),$M$3*F44+(1-$M$3)*AVERAGE($F$2:F44),"") -> 
A45: 1 | B45: =IF(COUNT($A$2:A45)>Select!$B$8,"",OFFSET(DataOutput!B49,Select!$B$7-1,0)) ->  | C45: =IF(B45="","",B45-Select!$B$7+1) ->  | N45: =IF(ISNUMBER(C45),$M$3*F45+(1-$M$3)*AVERAGE($F$2:F45),"") -> 
A46: 1 | B46: =IF(COUNT($A$2:A46)>Select!$B$8,"",OFFSET(DataOutput!B50,Select!$B$7-1,0)) ->  | C46: =IF(B46="","",B46-Select!$B$7+1) ->  | N46: =IF(ISNUMBER(C46),$M$3*F46+(1-$M$3)*AVERAGE($F$2:F46),"") -> 
A47: 1 | B47: =IF(COUNT($A$2:A47)>Select!$B$8,"",OFFSET(DataOutput!B51,Select!$B$7-1,0)) ->  | C47: =IF(B47="","",B47-Select!$B$7+1) ->  | N47: =IF(ISNUMBER(C47),$M$3*F47+(1-$M$3)*AVERAGE($F$2:F47),"") -> 
A48: 1 | B48: =IF(COUNT($A$2:A48)>Select!$B$8,"",OFFSET(DataOutput!B52,Select!$B$7-1,0)) ->  | C48: =IF(B48="","",B48-Select!$B$7+1) ->  | N48: =IF(ISNUMBER(C48),$M$3*F48+(1-$M$3)*AVERAGE($F$2:F48),"") -> 
A49: 1 | B49: =IF(COUNT($A$2:A49)>Select!$B$8,"",OFFSET(DataOutput!B53,Select!$B$7-1,0)) ->  | C49: =IF(B49="","",B49-Select!$B$7+1) ->  | N49: =IF(ISNUMBER(C49),$M$3*F49+(1-$M$3)*AVERAGE($F$2:F49),"") -> 
N50: =IF(ISNUMBER(C50),$M$3*F50+(1-$M$3)*AVERAGE($F$2:F50),"") -> 

Sheet ExponentialSmooting
B1: Index | C1: t | D1: x | F1: Original Data | G1: 1st shift | H1: 2nd shift | I1: 3rd shift | J1: 1st order correleration: | M1: n | N1: r (n-1) | O1: 1-r | P1: =SUM(OFFSET($P$2,0,0,COUNT(P:P),1)) -> 88.11788246 | Q1: =SUM(OFFSET(Q2,0,0,COUNT(Q:Q),1)) -> 88.02556788 | R1: =SUM(OFFSET($R$2,0,0,COUNT(R:R),1)) -> 87.93429808 | S1: =SUM(OFFSET($S$2,0,0,COUNT(S:S),1)) -> 87.83298595 | U1: Prediction | W1: Note:
A2: 1 | B2: =IF(COUNT($A$2:A2)>Select!$B$8,"",OFFSET(DataOutput!B6,Select!$B$7-1,0)) -> 10 | C2: =IF(B2="","",B2-Select!$B$7+1) -> 1 | D2: =IF(ISERROR(VLOOKUP(B2,table,2,0)),"",VLOOKUP(B2,table,2,0)) -> 63.91674231 | F2: =D2 -> 63.91674231 | G2: =F3 -> 63.19335447 | H2: =G3 -> 70.14646369 | I2: =H3 -> 73.92375174 | J2: r1= | K2: =AutoRegressive!M4 -> 0.8582267475 | M2: =C2 -> 1 | N2: =IF(ISNUMBER(M2),$K$2^(M2-1),"") -> 1 | O2: =IF(ISNUMBER(M2),1-$K$2,"") -> 0.1417732525 | P2: =IF(ISNUMBER(C2),N2*O2*INDIRECT("F" & COUNT(F:F)+1)," ") -> 10.36370525 | Q2: =IF(ISNUMBER(C2),N2*O2*$P$1," ") -> 12.4927588 | R2: =IF(ISNUMBER(C2),N2*O2*$Q$1," ") -> 12.47967106 | S2: =IF(ISNUMBER(C2),N2*O2*$R$1," ") -> 12.46673144 | U2: =$P$1 -> 88.11788246 | X2: sum of the column
A3: 1 | B3: =IF(COUNT($A$2:A3)>Select!$B$8,"",OFFSET(DataOutput!B7,Select!$B$7-1,0)) -> 11 | C3: =IF(B3="","",B3-Select!$B$7+1) -> 2 | D3: 63.19335447 | F3: =D3 -> 63.19335447 | G3: =F4 -> 70.14646369 | H3: 73.92375174 | I3: 75.26062398 | M3: =C3 -> 2 | N3: =IF(ISNUMBER(M3),$K$2^(M3-1),"") -> 0.8582267475 | O3: =IF(ISNUMBER(M3),1-$K$2,"") -> 0.1417732525 | P3: =IF(ISNUMBER(C3),N3*O3*INDIRECT("F" & COUNT(F:F)+1-M2)," ") -> 9.451547228 | Q3: =IF(ISNUMBER(C3), N3*O3*INDIRECT("G"&COUNT(G:G)+1)," ") -> 8.894409053 | R3: =IF(ISNUMBER(C3),N3*O3*$P$1," ") -> 10.72161975 | S3: =IF(ISNUMBER(C3),N3*O3*$Q$1," ") -> 10.7103875 | U3: =$Q$1 -> 88.02556788
A4: 1 | B4: =IF(COUNT($A$2:A4)>Select!$B$8,"",OFFSET(DataOutput!B8,Select!$B$7-1,0)) -> 12 | C4: =IF(B4="","",B4-Select!$B$7+1) -> 3 | D4: 70.14646369 | F4: 70.14646369 | G4: 73.92375174 | H4: 75.26062398 | I4: 78.44300239 | M4: 3 | N4: 0.7365531502 | O4: 0.1417732525 | P4: =IF(ISNUMBER(C4),N4*O4*INDIRECT("F" & COUNT(F:F)+1-M3)," ") -> 8.057261587 | Q4: =IF(ISNUMBER(C4), N4*O4*INDIRECT("G"&COUNT(G:G)+1-M2)," ") -> 8.111570636 | R4: =IF(ISNUMBER(C4), N4*O4*INDIRECT("H"&COUNT(H:H)+1)," ") -> 7.633419753 | S4: =IF(ISNUMBER(C4), N4*O4*$P$1," ") -> 9.201580845 | U4: =$R$1 -> 87.93429808
A5: 1 | B5: =IF(COUNT($A$2:A5)>Select!$B$8,"",OFFSET(DataOutput!B9,Select!$B$7-1,0)) -> 13 | C5: =IF(B5="","",B5-Select!$B$7+1) -> 4 | D5: 73.92375174 | F5: 73.92375174 | G5: 75.26062398 | H5: 78.44300239 | I5: 74.96997805 | M5: 4 | N5: 0.6321296145 | O5: 0.1417732525 | P5: 8.47645181 | Q5: =IF(ISNUMBER(C5), N5*O5*INDIRECT("G"&COUNT(G:G)+1-M3)," ") -> 6.914957406 | R5: =IF(ISNUMBER(C5), N5*O5*INDIRECT("H"&COUNT(H:H)+1-M2)," ") -> 6.961566885 | S5: =IF(ISNUMBER(C5), N5*O5*INDIRECT("i"&COUNT(I:I)+1)," ") -> 6.551205007 | U5: =$S$1 -> 87.83298595
A6: 1 | B6: =IF(COUNT($A$2:A6)>Select!$B$8,"",OFFSET(DataOutput!B10,Select!$B$7-1,0)) -> 14 | C6: =IF(B6="","",B6-Select!$B$7+1) -> 5 | D6: 75.26062398 | F6: 75.26062398 | G6: 78.44300239 | H6: 74.96997805 | I6: 70.17932626 | M6: 5 | N6: 0.5425105431 | O6: 0.1417732525 | P6: 7.774003777 | Q6: 7.274717667 | R6: =IF(ISNUMBER(C6), N6*O6*INDIRECT("H"&COUNT(H:H)+1-M3)," ") -> 5.934601404 | S6: =IF(ISNUMBER(C6), N6*O6*INDIRECT("i"&COUNT(I:I)+1-M2)," ") -> 5.974602905
A7: 1 | B7: =IF(COUNT($A$2:A7)>Select!$B$8,"",OFFSET(DataOutput!B11,Select!$B$7-1,0)) -> 15 | C7: =IF(B7="","",B7-Select!$B$7+1) -> 6 | D7: 78.44300239 | F7: 78.44300239 | G7: 74.96997805 | H7: 70.17932626 | I7: 72.50919698 | M7: 6 | N7: 0.4655970589 | O7: 0.1417732525 | P7: 7.157758485 | Q7: 6.671857977 | R7: 6.243357283 | S7: =IF(ISNUMBER(C7), N7*O7*INDIRECT("i"&COUNT(I:I)+1-M3)," ") -> 5.093233661
A8: 1 | B8: =IF(COUNT($A$2:A8)>Select!$B$8,"",OFFSET(DataOutput!B12,Select!$B$7-1,0)) -> 16 | C8: =IF(B8="","",B8-Select!$B$7+1) -> 7 | D8: 74.96997805 | F8: 74.96997805 | G8: 70.17932626 | H8: 72.50919698 | I8: 74.91800546 | M8: 7 | N8: 0.3995878495 | O8: 0.1417732525 | P8: 6.178823095 | Q8: 6.142979784 | R8: 5.725966972 | S8: 5.358216215
A9: 1 | B9: =IF(COUNT($A$2:A9)>Select!$B$8,"",OFFSET(DataOutput!B13,Select!$B$7-1,0)) -> 17 | C9: =IF(B9="","",B9-Select!$B$7+1) -> 8 | D9: 70.17932626 | F9: 70.17932626 | G9: 72.50919698 | H9: 74.91800546 | I9: 80.01514613 | M9: 8 | N9: 0.3429369805 | O9: 0.1417732525 | P9: 5.0007078 | Q9: 5.302831249 | R9: 5.27206956 | S9: 4.914178011
A10: 1 | B10: =IF(COUNT($A$2:A10)>Select!$B$8,"",OFFSET(DataOutput!B14,Select!$B$7-1,0)) -> 18 | C10: =IF(B10="","",B10-Select!$B$7+1) -> 9 | D10: 72.50919698 | F10: 72.50919698 | G10: 74.91800546 | H10: 80.01514613 | I10: 84.77891317 | M10: 9 | N10: 0.2943176894 | O10: 0.1417732525 | P10: 4.070410525 | Q10: 4.29174119 | R10: 4.551031616 | S10: 4.524631112
A11: 1 | B11: =IF(COUNT($A$2:A11)>Select!$B$8,"",OFFSET(DataOutput!B15,Select!$B$7-1,0)) -> 19 | C11: =IF(B11="","",B11-Select!$B$7+1) -> 10 | D11: 74.91800546 | F11: 74.91800546 | G11: 80.01514613 | H11: 84.77891317 | I11: 88.5146316 | M11: 10 | N11: 0.2525913133 | O11: 0.1417732525 | P11: 3.552992701 | Q11: 3.493335186 | R11: 3.683287083 | S11: 3.905817061
A12: 1 | B12: =IF(COUNT($A$2:A12)>Select!$B$8,"",OFFSET(DataOutput!B16,Select!$B$7-1,0)) -> 20 | C12: =IF(B12="","",B12-Select!$B$7+1) -> 11 | D12: 80.01514613 | F12: 80.01514613 | G12: 84.77891317 | H12: 88.5146316 | I12: 86.44477755 | M12: 11 | N12: 0.2167806213 | O12: 0.1417732525 | P12: 2.983677233 | Q12: 3.04927337 | R12: 2.998073695 | S12: 3.161095494
A13: 1 | B13: =IF(COUNT($A$2:A13)>Select!$B$8,"",OFFSET(DataOutput!B17,Select!$B$7-1,0)) -> 21 | C13: =IF(B13="","",B13-Select!$B$7+1) -> 12 | D13: 84.77891317 | F13: 84.77891317 | G13: 88.5146316 | H13: 86.44477755 | I13: 84.72007986 | M13: 12 | N13: 0.1860469275 | O13: 0.1417732525 | P13: 2.542596992 | Q13: 2.560671607 | R13: 2.616967967 | S13: 2.573027036
A14: 1 | B14: =IF(COUNT($A$2:A14)>Select!$B$8,"",OFFSET(DataOutput!B18,Select!$B$7-1,0)) -> 22 | C14: =IF(B14="","",B14-Select!$B$7+1) -> 13 | D14: 88.5146316 | F14: 88.5146316 | G14: 86.44477755 | H14: 84.72007986 | I14: 87.28692803 | M14: 13 | N14: 0.1596704495 | O14: 0.1417732525 | P14: 2.12950652 | Q14: 2.182124747 | R14: 2.197636865 | S14: 2.245951907
A15: 1 | B15: =IF(COUNT($A$2:A15)>Select!$B$8,"",OFFSET(DataOutput!B19,Select!$B$7-1,0)) -> 23 | C15: =IF(B15="","",B15-Select!$B$7+1) -> 14 | D15: 86.44477755 | F15: =D15 -> 86.44477755 | G15: 84.72007986 | H15: 87.28692803 | I15: 84.86864884 | M15: 14 | N15: 0.1370334505 | O15: 0.1417732525 | P15: 1.64880078 | Q15: 1.827599454 | R15: 1.872757824 | S15: 1.886070739
A16: 1 | B16: =IF(COUNT($A$2:A16)>Select!$B$8,"",OFFSET(DataOutput!B20,Select!$B$7-1,0)) -> 24 | C16: =IF(B16="","",B16-Select!$B$7+1) -> 15 | D16: 84.72007986 | F16: 84.72007986 | G16: 87.28692803 | H16: 84.86864884 | I16: 94.07194501 | M16: 15 | N16: 0.1176057726 | O16: 0.1417732525 | P16: 1.455365753 | Q16: 1.415044931 | R16: 1.568494736 | S16: 1.607250857
A17: 1 | B17: =IF(COUNT($A$2:A17)>Select!$B$8,"",OFFSET(DataOutput!B21,Select!$B$7-1,0)) -> 25 | C17: =IF(B17="","",B17-Select!$B$7+1) -> 16 | D17: 87.28692803 | F17: 87.28692803 | G17: 84.86864884 | H17: 94.07194501 | I17: 96.39637977 | M17: 16 | N17: 0.1009324197 | O17: 0.1417732525 | P17: 1.212303458 | Q17: 1.249033817 | R17: 1.214429409 | S17: 1.346124135
A18: 1 | B18: =IF(COUNT($A$2:A18)>Select!$B$8,"",OFFSET(DataOutput!B22,Select!$B$7-1,0)) -> 26 | C18: =IF(B18="","",B18-Select!$B$7+1) -> 17 | D18: 84.86864884 | F18: 84.86864884 | G18: 94.07194501 | H18: 96.39637977 | I18: 97.08163483 | M18: 17 | N18: 0.08662290227 | O18: 0.1417732525 | P18: 1.06161194 | Q18: 1.040431254 | R18: 1.07195423 | S18: 1.042255802
A19: 1 | B19: =IF(COUNT($A$2:A19)>Select!$B$8,"",OFFSET(DataOutput!B23,Select!$B$7-1,0)) -> 27 | C19: =IF(B19="","",B19-Select!$B$7+1) -> 18 | D19: 94.07194501 | F19: 94.07194501 | G19: 96.39637977 | H19: 97.08163483 | I19: 99.21597435 | M19: 18 | N19: 0.07434209167 | O19: 0.1417732525 | P19: 0.9329194445 | Q19: 0.9111037621 | R19: 0.8929259312 | S19: 0.9199797925
A20: 1 | B20: =IF(COUNT($A$2:A20)>Select!$B$8,"",OFFSET(DataOutput!B24,Select!$B$7-1,0)) -> 28 | C20: =IF(B20="","",B20-Select!$B$7+1) -> 19 | D20: 96.39637977 | F20: 96.39637977 | G20: 97.08163483 | H20: 99.21597435 | I20: 97.55006085 | M20: 19 | N20: 0.06380237154 | O20: 0.1417732525 | P20: 0.7668650926 | Q20: 0.8006564206 | R20: 0.7819336185 | S20: 0.7663329177
A21: 1 | B21: =IF(COUNT($A$2:A21)>Select!$B$8,"",OFFSET(DataOutput!B25,Select!$B$7-1,0)) -> 29 | C21: =IF(B21="","",B21-Select!$B$7+1) -> 20 | D21: 97.08163483 | F21: 97.08163483 | G21: 99.21597435 | H21: 97.55006085 | I21: 102.8543956 | M21: 20 | N21: 0.05475690182 | O21: 0.1417732525 | P21: 0.6211627055 | Q21: 0.6581441343 | R21: 0.6871447558 | S21: 0.6710763462
A22: 1 | B22: =IF(COUNT($A$2:A22)>Select!$B$8,"",OFFSET(DataOutput!B26,Select!$B$7-1,0)) -> 30 | C22: =IF(B22="","",B22-Select!$B$7+1) -> 21 | D22: 99.21597435 | F22: 99.21597435 | G22: 97.55006085 | H22: 102.8543956 | I22: 109.0684609 | M22: 21 | N22: 0.04699383775 | O22: 0.1417732525 | P22: 0.4991389056 | Q22: 0.5330984485 | R22: 0.5648368998 | S22: 0.5897260088
A23: 1 | B23: =IF(COUNT($A$2:A23)>Select!$B$8,"",OFFSET(DataOutput!B27,Select!$B$7-1,0)) -> 31 | C23: =IF(B23="","",B23-Select!$B$7+1) -> 22 | D23: 97.55006085 | F23: 97.55006085 | G23: 102.8543956 | H23: 109.0684609 | I23: 108.4357554 | M23: 22 | N23: 0.04033136853 | O23: 0.1417732525 | P23: 0.4146010112 | Q23: 0.4283743596 | R23: 0.4575193475 | S23: 0.4847581354
A24: 1 | B24: =IF(COUNT($A$2:A24)>Select!$B$8,"",OFFSET(DataOutput!B28,Select!$B$7-1,0)) -> 32 | C24: =IF(B24="","",B24-Select!$B$7+1) -> 23 | D24: 102.8543956 | F24: 102.8543956 | G24: 109.0684609 | H24: 108.4357554 | I24: 101.0746537 | M24: 23 | N24: 0.03461345924 | O24: 0.1417732525 | P24: 0.3443883897 | Q24: 0.3558216773 | R24: 0.3676423333 | S24: 0.3926553416
A25: 1 | B25: =IF(COUNT($A$2:A25)>Select!$B$8,"",OFFSET(DataOutput!B29,Select!$B$7-1,0)) -> 33 | C25: =IF(B25="","",B25-Select!$B$7+1) -> 24 | D25: 109.0684609 | F25: 109.0684609 | G25: 108.4357554 | H25: 101.0746537 | I25: 94.58312472 | M25: 24 | N25: 0.02970619654 | O25: 0.1417732525 | P25: 0.3157393689 | Q25: 0.2955633276 | R25: 0.3053756809 | S25: 0.315520484
A26: 1 | B26: =IF(COUNT($A$2:A26)>Select!$B$8,"",OFFSET(DataOutput!B30,Select!$B$7-1,0)) -> 34 | C26: =IF(B26="","",B26-Select!$B$7+1) -> 25 | D26: 108.4357554 | F26: 108.4357554 | G26: 101.0746537 | H26: 94.58312472 | I26: 77.15944047 | M26: 25 | N26: 0.02549465244 | O26: 0.1417732525 | P26: 0.2835290785 | Q26: 0.2709759716 | R26: 0.2536603533 | S26: 0.2620815774
A27: 1 | B27: =IF(COUNT($A$2:A27)>Select!$B$8,"",OFFSET(DataOutput!B31,Select!$B$7-1,0)) -> 35 | C27: =IF(B27="","",B27-Select!$B$7+1) -> 26 | D27: 101.0746537 | F27: 101.0746537 | G27: 94.58312472 | H27: 77.15944047 | I27: 77.67952484 | M27: 26 | N27: 0.02188019264 | O27: 0.1417732525 | P27: 0.233460418 | Q27: 0.2433322388 | R27: 0.2325588268 | S27: 0.2176981
A28: 1 | B28: =IF(COUNT($A$2:A28)>Select!$B$8,"",OFFSET(DataOutput!B32,Select!$B$7-1,0)) -> 36 | C28: =IF(B28="","",B28-Select!$B$7+1) -> 27 | D28: 94.58312472 | F28: 94.58312472 | G28: 77.15944047 | H28: 77.67952484 | I28: 73.10056781 | M28: 27 | N28: 0.01877816657 | O28: 0.1417732525 | P28: 0.1968028982 | Q28: 0.2003619753 | R28: 0.2088342359 | S28: 0.1995882055
A29: 1 | B29: =IF(COUNT($A$2:A29)>Select!$B$8,"",OFFSET(DataOutput!B33,Select!$B$7-1,0)) -> 37 | C29: =IF(B29="","",B29-Select!$B$7+1) -> 28 | D29: 77.15944047 | F29: =D29 -> 77.15944047 | G29: 77.67952484 | H29: 73.10056781 | M29: 28 | N29: 0.01611592482 | O29: 0.1417732525 | P29: 0.1602711367 | Q29: 0.1689015112 | R29: 0.1719560064 | S29: 0.1792271271
A30: 1 | B30: =IF(COUNT($A$2:A30)>Select!$B$8,"",OFFSET(DataOutput!B34,Select!$B$7-1,0)) -> 38 | C30: =IF(B30="","",B30-Select!$B$7+1) -> 29 | D30: 77.67952484 | F30: 77.67952484 | G30: 73.10056781 | M30: 29 | N30: 0.01383111774 | O30: 0.1417732525 | P30: 0.1239147459 | Q30: 0.1375489764 | R30: 0.1449557946 | S30: 0.1475772441
A31: 1 | B31: =IF(COUNT($A$2:A31)>Select!$B$8,"",OFFSET(DataOutput!B35,Select!$B$7-1,0)) -> 39 | C31: =IF(B31="","",B31-Select!$B$7+1) -> 30 | D31: 73.10056781 | F31: 73.10056781 | M31: 30 | N31: 0.01187023519 | O31: 0.1417732525 | P31: 0.1075643256 | Q31: 0.1063469493 | R31: 0.1180482106 | S31: 0.1244049401
A32: 1 | B32: =IF(COUNT($A$2:A32)>Select!$B$8,"",OFFSET(DataOutput!B36,Select!$B$7-1,0)) ->  | C32: =IF(B32="","",B32-Select!$B$7+1) -> 
A33: 1 | B33: =IF(COUNT($A$2:A33)>Select!$B$8,"",OFFSET(DataOutput!B37,Select!$B$7-1,0)) ->  | C33: =IF(B33="","",B33-Select!$B$7+1) -> 
A34: 1 | B34: =IF(COUNT($A$2:A34)>Select!$B$8,"",OFFSET(DataOutput!B38,Select!$B$7-1,0)) ->  | C34: =IF(B34="","",B34-Select!$B$7+1) -> 
A35: 1 | B35: =IF(COUNT($A$2:A35)>Select!$B$8,"",OFFSET(DataOutput!B39,Select!$B$7-1,0)) ->  | C35: =IF(B35="","",B35-Select!$B$7+1) -> 
A36: 1 | B36: =IF(COUNT($A$2:A36)>Select!$B$8,"",OFFSET(DataOutput!B40,Select!$B$7-1,0)) ->  | C36: =IF(B36="","",B36-Select!$B$7+1) -> 
A37: 1 | B37: =IF(COUNT($A$2:A37)>Select!$B$8,"",OFFSET(DataOutput!B41,Select!$B$7-1,0)) ->  | C37: =IF(B37="","",B37-Select!$B$7+1) -> 
A38: 1 | B38: =IF(COUNT($A$2:A38)>Select!$B$8,"",OFFSET(DataOutput!B42,Select!$B$7-1,0)) ->  | C38: =IF(B38="","",B38-Select!$B$7+1) -> 
A39: 1 | B39: =IF(COUNT($A$2:A39)>Select!$B$8,"",OFFSET(DataOutput!B43,Select!$B$7-1,0)) ->  | C39: =IF(B39="","",B39-Select!$B$7+1) -> 
A40: 1 | B40: =IF(COUNT($A$2:A40)>Select!$B$8,"",OFFSET(DataOutput!B44,Select!$B$7-1,0)) ->  | C40: =IF(B40="","",B40-Select!$B$7+1) -> 
A41: 1 | B41: =IF(COUNT($A$2:A41)>Select!$B$8,"",OFFSET(DataOutput!B45,Select!$B$7-1,0)) ->  | C41: =IF(B41="","",B41-Select!$B$7+1) -> 
A42: 1 | B42: =IF(COUNT($A$2:A42)>Select!$B$8,"",OFFSET(DataOutput!B46,Select!$B$7-1,0)) ->  | C42: =IF(B42="","",B42-Select!$B$7+1) -> 
A43: 1 | B43: =IF(COUNT($A$2:A43)>Select!$B$8,"",OFFSET(DataOutput!B47,Select!$B$7-1,0)) ->  | C43: =IF(B43="","",B43-Select!$B$7+1) ->  | N43: =IF(ISNUMBER(M43),$K$2^(M43-1),"") -> 
A44: 1 | B44: =IF(COUNT($A$2:A44)>Select!$B$8,"",OFFSET(DataOutput!B48,Select!$B$7-1,0)) ->  | C44: =IF(B44="","",B44-Select!$B$7+1) -> 
A45: 1 | B45: =IF(COUNT($A$2:A45)>Select!$B$8,"",OFFSET(DataOutput!B49,Select!$B$7-1,0)) ->  | C45: =IF(B45="","",B45-Select!$B$7+1) -> 
A46: 1 | B46: =IF(COUNT($A$2:A46)>Select!$B$8,"",OFFSET(DataOutput!B50,Select!$B$7-1,0)) ->  | C46: =IF(B46="","",B46-Select!$B$7+1) -> 
A47: 1 | B47: =IF(COUNT($A$2:A47)>Select!$B$8,"",OFFSET(DataOutput!B51,Select!$B$7-1,0)) ->  | C47: =IF(B47="","",B47-Select!$B$7+1) -> 
A48: 1 | B48: =IF(COUNT($A$2:A48)>Select!$B$8,"",OFFSET(DataOutput!B52,Select!$B$7-1,0)) ->  | C48: =IF(B48="","",B48-Select!$B$7+1) -> 
A49: 1 | B49: =IF(COUNT($A$2:A49)>Select!$B$8,"",OFFSET(DataOutput!B53,Select!$B$7-1,0)) ->  | C49: =IF(B49="","",B49-Select!$B$7+1) -> 

Sheet Data
A1: Index | B1: CNX_IND | C1: RM_LEVEL | D1: RISK_ST | E1: Date | F1: Losses | G1: Claims | H1: Exposure | I1: Frequency | J1: Severity | K1: PurePremium
A2: =INDEX(State,MATCH(D2,StateAbbr),1)*1000+INDEX(Coverage,MATCH(C2,CoverageAbbr),1)*100+VLOOKUP(E2,Date,2,FALSE) -> 1101 | B2: T | C2: BI | D2: AR | E2: 9-1996 | F2: 6284.17 | G2: 9 | H2: 3163.121667 | I2: =G2/H2 -> 0.002845290491 | J2: =F2/G2 -> 698.2411111 | K2: =F2/H2 -> 1.986698794
A3: 1102 | B3: T | C3: BI | D3: AR | E3: 12-1996 | F3: 109136.83 | G3: 22 | H3: 4270.724167 | I3: =G3/H3 -> 0.005151351186 | J3: =F3/G3 -> 4960.765 | K3: =F3/H3 -> 25.55464267
A4: 1103 | B4: T | C4: BI | D4: AR | E4: 3-1997 | F4: 181618.88 | G4: 30 | H4: 4367.4025 | I4: 0.00686907149 | J4: 6053.962667 | K4: 41.58510236
A5: 1104 | B5: T | C5: BI | D5: AR | E5: 6-1997 | F5: 268089.79 | G5: 41 | H5: 4473.309167 | I5: 0.009165474255 | J5: 6538.775366 | K5: 59.93097727
A6: 1105 | B6: T | C6: BI | D6: AR | E6: 9-1997 | F6: 475945.52 | G6: 53 | H6: 4597.583333 | I6: 0.0115277954 | J6: 8980.104151 | K6: 103.5208033
A7: 1106 | B7: T | C7: BI | D7: AR | E7: 12-1997 | F7: 446894.73 | G7: 55 | H7: 4716.654167 | I7: 0.01166080829 | J7: 8125.358727 | K7: 94.74825039
A8: 1107 | B8: T | C8: BI | D8: AR | E8: 3-1998 | F8: 433646.31 | G8: 51 | H8: 4851.858333 | I8: 0.01051143634 | J8: 8502.868824 | K8: 89.37736434
A9: 1108 | B9: T | C9: BI | D9: AR | E9: 6-1998 | F9: 352882.75 | G9: 45 | H9: 4970.188333 | I9: 0.009053982864 | J9: 7841.838889 | K9: 70.99987492
A10: 1109 | B10: T | C10: BI | D10: AR | E10: 9-1998 | F10: 207032.37 | G10: 36 | H10: 5067.068333 | I10: 0.007104699923 | J10: 5750.899167 | K10: 40.85841287
A11: 1110 | B11: T | C11: BI | D11: AR | E11: 12-1998 | F11: 226961.03 | G11: 42 | H11: 5135.470833 | I11: 0.008178412723 | J11: 5403.834048 | K11: 44.19478513
A12: 1111 | B12: T | C12: BI | D12: AR | E12: 3-1999 | F12: 220259.07 | G12: 53 | H12: 5177.489167 | I12: 0.01023662209 | J12: 4155.831509 | K12: 42.54167665
A13: 1112 | B13: T | C13: BI | D13: AR | E13: 6-1999 | F13: 310734.54 | G13: 56 | H13: 5180.215833 | I13: 0.01081036038 | J13: 5548.831071 | K13: 59.98486357
A14: 1113 | B14: T | C14: BI | D14: AR | E14: 9-1999 | F14: 290712.15 | G14: 59 | H14: 5152.0625 | I14: 0.01145172443 | J14: 4927.324576 | K14: 56.42636323
A15: 1114 | B15: T | C15: BI | D15: AR | E15: 12-1999 | F15: 261685.78 | G15: 46 | H15: 5093.409167 | I15: 0.009031279148 | J15: 5688.821304 | K15: 51.37733322
A16: 1115 | B16: T | C16: BI | D16: AR | E16: 3-2000 | F16: 241937.6 | G16: 39 | H16: 5012.640833 | I16: 0.007780330029 | J16: 6203.528205 | K16: 48.26549678
A17: 1116 | B17: T | C17: BI | D17: AR | E17: 6-2000 | F17: 281112.2 | G17: 40 | H17: 4956.869167 | I17: 0.008069609799 | J17: 7027.805 | K17: 56.71164409
A18: 1117 | B18: T | C18: BI | D18: AR | E18: 9-2000 | F18: 280777.06 | G18: 38 | H18: 4907.3625 | I18: 0.007743467086 | J18: 7388.87 | K18: 57.21547165
A19: 1118 | B19: T | C19: BI | D19: AR | E19: 12-2000 | F19: 251275.56 | G19: 37 | H19: 4899.2475 | I19: 0.007552180207 | J19: 6791.231351 | K19: 51.28860299
A20: 1119 | B20: T | C20: BI | D20: AR | E20: 3-2001 | F20: 389468.82 | G20: 39 | H20: 4899.609167 | I20: 0.007959818564 | J20: 9986.38 | K20: 79.48977291
A21: 1120 | B21: T | C21: BI | D21: AR | E21: 6-2001 | F21: 446625.19 | G21: 39 | H21: 4932.178333 | I21: 0.007907256665 | J21: 11451.92795 | K21: 90.5533336
A22: 1121 | B22: T | C22: BI | D22: AR | E22: 9-2001 | F22: 480966.37 | G22: 38 | H22: 5020.518333 | I22: 0.007568939595 | J22: 12657.00974 | K22: 95.80014215
A23: 1122 | B23: T | C23: BI | D23: AR | E23: 12-2001 | F23: 477527.71 | G23: 39 | H23: 5184.4425 | I23: 0.007522506036 | J23: 12244.30026 | K23: 92.10782259
A24: 1123 | B24: T | C24: BI | D24: AR | E24: 3-2002 | F24: 389971.26 | G24: 43 | H24: 5618.7675 | I24: 0.007652923884 | J24: 9069.09907 | K24: 69.40512488
A25: 1124 | B25: T | C25: BI | D25: AR | E25: 6-2002 | F25: 264990.75 | G25: 47 | H25: 6466.835 | I25: 0.007267852048 | J25: 5638.101064 | K25: 40.97688436
A26: 1125 | B26: T | C26: BI | D26: AR | E26: 9-2002 | F26: 267693.96 | G26: 60 | H26: 7375.3175 | I26: 0.008135242991 | J26: 4461.566 | K26: 36.29592353
A27: 1126 | B27: T | C27: BI | D27: AR | E27: 12-2002 | F27: 339122.16 | G27: 84 | H27: 8302.2875 | I27: 0.01011769347 | J27: 4037.168571 | K27: 40.84683408
A28: 1127 | B28: T | C28: BI | D28: AR | E28: 3-2003 | F28: 412450.99 | G28: 93 | H28: 8961.055833 | I28: 0.01037824133 | J28: 4434.956882 | K28: 46.0270528
A29: 1128 | B29: T | C29: BI | D29: AR | E29: 6-2003 | F29: 457068.58 | G29: 114 | H29: 9189.845 | I29: 0.01240499704 | J29: 4009.373509 | K29: 49.7362665
A30: 1129 | B30: T | C30: BI | D30: AR | E30: 9-2003 | F30: 547548.4 | G30: 135 | H30: 9232.9825 | I30: 0.01462149419 | J30: 4055.914074 | K30: 59.30352408
A31: 1130 | B31: T | C31: BI | D31: AR | E31: 12-2003 | F31: 720090.15 | G31: 122 | H31: 9148.518333 | I31: 0.01333549276 | J31: 5902.378279 | K31: 78.7111228
A32: 1131 | B32: T | C32: BI | D32: AR | E32: 3-2004 | F32: 759380.61 | G32: 121 | H32: 9021.976667 | I32: 0.01341169507 | J32: 6275.87281 | K32: 84.17009244
A33: 1132 | B33: T | C33: BI | D33: AR | E33: 6-2004 | F33: 1071742.14 | G33: 107 | H33: 8872.071667 | I33: 0.01206031737 | J33: 10016.28168 | K33: 120.7995359
A34: 1133 | B34: T | C34: BI | D34: AR | E34: 9-2004 | F34: 1385654.64 | G34: 89 | H34: 8757.58 | I34: 0.01016262483 | J34: 15569.15326 | K34: 158.2234636
A35: 1134 | B35: T | C35: BI | D35: AR | E35: 12-2004 | F35: 1262295.08 | G35: 86 | H35: 8598.341667 | I35: 0.01000192867 | J35: 14677.84977 | K35: 146.8068064
A36: 1135 | B36: T | C36: BI | D36: AR | E36: 3-2005 | F36: 1434136.34 | G36: 79 | H36: 8408.059167 | I36: 0.009395747394 | J36: 18153.62456 | K36: 170.5668706
A37: 1136 | B37: T | C37: BI | D37: AR | E37: 6-2005 | F37: 1576848.35 | G37: 69 | H37: 8164.576667 | I37: 0.008451142394 | J37: 22852.87464 | K37: 193.1328977
A38: 1137 | B38: T | C38: BI | D38: AR | E38: 9-2005 | F38: 1367272.67 | G38: 61 | H38: 7928.5975 | I38: 0.007693668395 | J38: 22414.30607 | K38: 172.4482382
A39: 1138 | B39: T | C39: BI | D39: AR | E39: 12-2005 | F39: 1324156.43 | G39: 67 | H39: 7745.080833 | I39: 0.008650652129 | J39: 19763.52881 | K39: 170.9674125
A40: 1139 | B40: T | C40: BI | D40: AR | E40: 3-2006 | F40: 992651.6 | G40: 61 | H40: 7606.739167 | I40: 0.0080192049 | J40: 16272.97705 | K40: 130.4963373
A41: 1140 | B41: T | C41: BI | D41: AR | E41: 6-2006 | F41: 547273.25 | G41: 62 | H41: 7499.704167 | I41: 0.008266992754 | J41: 8826.987903 | K41: 72.97264503
A42: 1141 | B42: T | C42: BI | D42: AR | E42: 9-2006 | F42: 337343.16 | G42: 65 | H42: 7375.046667 | I42: 0.008813503553 | J42: 5189.894769 | K42: 45.74115599
A43: 1142 | B43: T | C43: BI | D43: AR | E43: 12-2006 | F43: 363552.08 | G43: 54 | H43: 7238.875 | I43: 0.007459722678 | J43: 6732.445926 | K43: 50.22217955
A44: 1143 | B44: T | C44: BI | D44: AR | E44: 3-2007 | F44: 350582.05 | G44: 57 | H44: 7126.183333 | I44: 0.007998671566 | J44: 6150.562281 | K44: 49.19632763
A45: 1144 | B45: T | C45: BI | D45: AR | E45: 6-2007 | F45: 310946.62 | G45: 53 | H45: 7109.149167 | I45: 0.007455181873 | J45: 5866.917358 | K45: 43.73893594
A46: 1145 | B46: T | C46: BI | D46: AR | E46: 9-2007 | F46: 259287.3 | G46: 41 | H46: 7358.498333 | I46: 0.00557178899 | J46: 6324.080488 | K46: 35.23644204
A47: 1146 | B47: T | C47: BI | D47: AR | E47: 12-2007 | F47: 395225.36 | G47: 51 | H47: 7858.624167 | I47: 0.006489685589 | J47: 7749.516863 | K47: 50.2919279
A48: 1147 | B48: T | C48: BI | D48: AR | E48: 3-2008 | F48: 631296.07 | G48: 73 | H48: 8485.32 | I48: 0.008603093342 | J48: 8647.89137 | K48: 74.39861667
A49: 1148 | B49: T | C49: BI | D49: AR | E49: 6-2008 | F49: 773419.37 | G49: 88 | H49: 9204.6725 | I49: 0.009560361871 | J49: 8788.856477 | K49: 84.02464835
A50: 2101 | B50: T | C50: BI | D50: CO | E50: 9-1996 | H50: 6.570833333 | I50: 0 | K50: 0
A51: 2102 | B51: T | C51: BI | D51: CO | E51: 12-1996 | H51: 12.19083333 | I51: 0 | K51: 0
A52: 2103 | B52: T | C52: BI | D52: CO | E52: 3-1997 | H52: 21.6275 | I52: 0 | K52: 0
A53: 2104 | B53: T | C53: BI | D53: CO | E53: 6-1997 | H53: 28.31583333 | I53: 0 | K53: 0
A54: 2105 | B54: T | C54: BI | D54: CO | E54: 9-1997 | F54: 0 | G54: 0 | H54: 34.92666667 | I54: 0 | K54: 0
A55: 2106 | B55: T | C55: BI | D55: CO | E55: 12-1997 | F55: 0 | G55: 0 | H55: 37.6975 | I55: 0 | K55: 0
A56: 2107 | B56: T | C56: BI | D56: CO | E56: 3-1998 | F56: 0 | G56: 0 | H56: 38.13666667 | I56: 0 | K56: 0
A57: 2108 | B57: T | C57: BI | D57: CO | E57: 6-1998 | F57: 0 | G57: 0 | H57: 41.45416667 | I57: 0 | K57: 0
A58: 2109 | B58: T | C58: BI | D58: CO | E58: 9-1998 | F58: 0 | G58: 0 | H58: 47.65916667 | I58: 0 | K58: 0
A59: 2110 | B59: T | C59: BI | D59: CO | E59: 12-1998 | F59: 0 | G59: 0 | H59: 60.06583333 | I59: 0 | K59: 0
A60: 2111 | B60: T | C60: BI | D60: CO | E60: 3-1999 | F60: 0 | G60: 0 | H60: 76.88583333 | I60: 0 | K60: 0
A61: 2112 | B61: T | C61: BI | D61: CO | E61: 6-1999 | F61: 0 | G61: 0 | H61: 104.8975 | I61: 0 | K61: 0
A62: 2113 | B62: T | C62: BI | D62: CO | E62: 9-1999 | F62: 0 | G62: 0 | H62: 144.2533333 | I62: 0 | K62: 0
A63: 2114 | B63: T | C63: BI | D63: CO | E63: 12-1999 | F63: 0 | G63: 0 | H63: 179.925 | I63: 0 | K63: 0
A64: 2115 | B64: T | C64: BI | D64: CO | E64: 3-2000 | F64: 0 | G64: 0 | H64: 211.4866667 | I64: 0 | K64: 0
A65: 2116 | B65: T | C65: BI | D65: CO | E65: 6-2000 | F65: 0 | G65: 0 | H65: 236.99 | I65: 0 | K65: 0
A66: =INDEX(State,MATCH(D66,StateAbbr),1)*1000+INDEX(Coverage,MATCH(C66,CoverageAbbr),1)*100+VLOOKUP(E66,Date,2,FALSE) -> 2117 | B66: T | C66: BI | D66: CO | E66: 9-2000 | F66: 0 | G66: 0 | H66: 252.8233333 | I66: 0 | K66: 0
A67: 2118 | B67: T | C67: BI | D67: CO | E67: 12-2000 | F67: 0 | G67: 0 | H67: 270.7808333 | I67: =G67/H67 -> 0 | J67: =F67/G67 ->  | K67: =F67/H67 -> 0
A68: 2119 | B68: T | C68: BI | D68: CO | E68: 3-2001 | F68: 0 | G68: 0 | H68: 283.805 | I68: 0 | K68: 0
A69: 2120 | B69: T | C69: BI | D69: CO | E69: 6-2001 | F69: 0 | G69: 0 | H69: 290.96 | I69: 0 | K69: 0
A70: 2121 | B70: T | C70: BI | D70: CO | E70: 9-2001 | F70: 0 | G70: 0 | H70: 303 | I70: 0 | K70: 0
A71: 2122 | B71: T | C71: BI | D71: CO | E71: 12-2001 | F71: 50000 | G71: 1 | H71: 323.9333333 | I71: 0.00308705495 | J71: 50000 | K71: 154.3527475
A72: 2123 | B72: T | C72: BI | D72: CO | E72: 3-2002 | F72: 50015.28 | G72: 2 | H72: 353.6033333 | I72: 0.005656055279 | J72: 25007.64 | K72: 141.4445942
A73: 2124 | B73: T | C73: BI | D73: CO | E73: 6-2002 | F73: 50015.28 | G73: 2 | H73: 389.8516667 | I73: 0.005130156342 | J73: 25007.64 | K73: 128.2931029
A74: 2125 | B74: T | C74: BI | D74: CO | E74: 9-2002 | F74: 50015.28 | G74: 2 | H74: 421.7116667 | I74: 0.004742576879 | J74: 25007.64 | K74: 118.6006553
A75: 2126 | B75: T | C75: BI | D75: CO | E75: 12-2002 | F75: 15.28 | G75: 1 | H75: 478.3216667 | I75: 0.002090643326 | J75: 15.28 | K75: 0.03194503002
A76: 2127 | B76: T | C76: BI | D76: CO | E76: 3-2003 | F76: 50000 | G76: 4 | H76: 547.1091667 | I76: 0.007311155147 | J76: 12500 | K76: 91.38943934
A77: 2128 | B77: T | C77: BI | D77: CO | E77: 6-2003 | F77: 50000 | G77: 4 | H77: 634.0083333 | I77: 0.006309065338 | J77: 12500 | K77: 78.86331673
A78: 2129 | B78: T | C78: BI | D78: CO | E78: 9-2003 | F78: 128000 | G78: 5 | H78: 714.17 | I78: 0.007001134184 | J78: 25600 | K78: 179.2290351
A79: 2130 | B79: T | C79: BI | D79: CO | E79: 12-2003 | F79: 148050 | G79: 7 | H79: 751.4383333 | I79: 0.009315468335 | J79: 21150 | K79: 197.0221553
A80: 2131 | B80: T | C80: BI | D80: CO | E80: 3-2004 | F80: 98550 | G80: 4 | H80: 780.735 | I80: 0.00512337733 | J80: 24637.5 | K80: 126.227209
A81: 2132 | B81: T | C81: BI | D81: CO | E81: 6-2004 | F81: 102150 | G81: 5 | H81: 772.0216667 | I81: 0.006476502171 | J81: 20430 | K81: 132.3149393
A82: 2133 | B82: T | C82: BI | D82: CO | E82: 9-2004 | F82: 85353.94 | G82: 7 | H82: 746.0366667 | I82: 0.009382916836 | J82: 12193.42 | K82: 114.4098458
A83: 2134 | B83: T | C83: BI | D83: CO | E83: 12-2004 | F83: 65303.94 | G83: 5 | H83: 678.9641667 | I83: 0.007364158884 | J83: 13060.788 | K83: 96.18171798
A84: 2135 | B84: T | C84: BI | D84: CO | E84: 3-2005 | F84: 73869.84 | G84: 8 | H84: 562.9275 | I84: 0.01421142154 | J84: 9233.73 | K84: 131.2244294
A85: 2136 | B85: T | C85: BI | D85: CO | E85: 6-2005 | F85: 80617.06 | G85: 10 | H85: 438.3525 | I85: 0.0228126907 | J85: 8061.706 | K85: 183.9092055
A86: 2137 | B86: T | C86: BI | D86: CO | E86: 9-2005 | F86: 19489.12 | G86: 7 | H86: 326.7141667 | I86: 0.02142545599 | J86: 2784.16 | K86: 59.65189756
A87: 2138 | B87: T | C87: BI | D87: CO | E87: 12-2005 | F87: 42989.12 | G87: 9 | H87: 228.6025 | I87: 0.03936964819 | J87: 4776.568889 | K87: 188.0518367
A88: 2139 | B88: T | C88: BI | D88: CO | E88: 3-2006 | F88: 108999.22 | G88: 9 | H88: 172.8258333 | I88: 0.05207554812 | J88: 12111.02444 | K88: 630.6882362
A89: 2140 | B89: T | C89: BI | D89: CO | E89: 6-2006 | F89: 122378.82 | G89: 7 | H89: 136.525 | I89: 0.05127266068 | J89: 17482.68857 | K89: 896.383959
A90: 2141 | B90: T | C90: BI | D90: CO | E90: 9-2006 | F90: 137367.82 | G90: 9 | H90: 106.0341667 | I90: 0.08487830181 | J90: 15263.09111 | K90: 1295.505254
A91: 2142 | B91: T | C91: BI | D91: CO | E91: 12-2006 | F91: 116787 | G91: 7 | H91: 108.1816667 | I91: 0.06470597298 | J91: 16683.85714 | K91: 1079.545209
A92: 2143 | B92: T | C92: BI | D92: CO | E92: 3-2007 | F92: 43890.3 | G92: 5 | H92: 103.6091667 | I92: 0.04825827831 | J92: 8778.06 | K92: 423.6140625
A93: 2144 | B93: T | C93: BI | D93: CO | E93: 6-2007 | F93: 20916.48 | G93: 4 | H93: 99.30416667 | I93: 0.04028028364 | J93: 5229.12 | K93: 210.6304368
A94: 2145 | B94: T | C94: BI | D94: CO | E94: 9-2007 | F94: 81445.62 | G94: 3 | H94: 96.03 | I94: 0.03124023743 | J94: 27148.54 | K94: 848.1268354
A95: 2146 | B95: T | C95: BI | D95: CO | E95: 12-2007 | F95: 79026.44 | G95: 4 | H95: 90.89 | I95: 0.04400924194 | J95: 19756.61 | K95: 869.4734294
A96: 2147 | B96: T | C96: BI | D96: CO | E96: 3-2008 | F96: 76847.14 | G96: 2 | H96: 82.55 | I96: 0.02422774076 | J96: 38423.57 | K96: 930.9162932
A97: 2148 | B97: T | C97: BI | D97: CO | E97: 6-2008 | F97: 76094.14 | G97: 2 | H97: 70.84 | I97: 0.02823263693 | J97: 38047.07 | K97: 1074.169113
A98: 3101 | B98: T | C98: BI | D98: CT | E98: 9-1996 | F98: 57439.19 | G98: 21 | H98: 6223.014167 | I98: 0.003374570496 | J98: 2735.199524 | K98: 9.230123612
A99: 3102 | B99: T | C99: BI | D99: CT | E99: 12-1996 | F99: 178243.26 | G99: 46 | H99: 8558.6125 | I99: 0.005374702967 | J99: 3874.853478 | K99: 20.82618649
A100: 3103 | B100: T | C100: BI | D100: CT | E100: 3-1997 | F100: 430454.33 | G100: 69 | H100: 9084.715 | I100: 0.007595174972 | J100: 6238.468551 | K100: 47.3822602
A101: 3104 | B101: T | C101: BI | D101: CT | E101: 6-1997 | F101: 675958.5 | G101: 90 | H101: 9596.7775 | I101: 0.009378148029 | J101: 7510.65 | K101: 70.4359875
A102: 3105 | B102: T | C102: BI | D102: CT | E102: 9-1997 | F102: 928766.81 | G102: 121 | H102: 10161.84 | I102: 0.01190729238 | J102: 7675.75876 | K102: 91.3975038
A103: 3106 | B103: T | C103: BI | D103: CT | E103: 12-1997 | F103: 1165273.32 | G103: 130 | H103: 10845.415 | I103: 0.01198663214 | J103: 8963.640923 | K103: 107.4438664
A104: 3107 | B104: T | C104: BI | D104: CT | E104: 3-1998 | F104: 1377748.45 | G104: 145 | H104: 11719.66 | I104: 0.01237237258 | J104: 9501.713448 | K104: 117.5587389
A105: 3108 | B105: T | C105: BI | D105: CT | E105: 6-1998 | F105: 1587434.75 | G105: 179 | H105: 12788.6175 | I105: 0.01399682178 | J105: 8868.350559 | K105: 124.1287223
A106: 3109 | B106: T | C106: BI | D106: CT | E106: 9-1998 | F106: 1808810.11 | G106: 185 | H106: 13885.16 | I106: 0.01332357711 | J106: 9777.351946 | K106: 130.2693026
A107: 3110 | B107: T | C107: BI | D107: CT | E107: 12-1998 | F107: 2035752.47 | G107: 206 | H107: 14961.24333 | I107: 0.01376890913 | J107: 9882.293544 | K107: 136.0684018
A108: 3111 | B108: T | C108: BI | D108: CT | E108: 3-1999 | F108: 2227148.24 | G108: 229 | H108: 15955.96 | I108: 0.01435200389 | J108: 9725.538166 | K108: 139.5809616
A109: 3112 | B109: T | C109: BI | D109: CT | E109: 6-1999 | F109: 2114492.76 | G109: 220 | H109: 16733.92667 | I109: 0.01314694419 | J109: 9611.330727 | K109: 126.3596287
A110: 3113 | B110: T | C110: BI | D110: CT | E110: 9-1999 | F110: 2258652.39 | G110: 236 | H110: 17277.45833 | I110: 0.01365941653 | J110: 9570.560975 | K110: 130.7282788
A111: 3114 | B111: T | C111: BI | D111: CT | E111: 12-1999 | F111: 2558890.49 | G111: 262 | H111: 17702.5325 | I111: 0.0148001423 | J111: 9766.757595 | K111: 144.5494022
A112: 3115 | B112: T | C112: BI | D112: CT | E112: 3-2000 | F112: 2776770.17 | G112: 283 | H112: 18103.335 | I112: 0.01563247877 | J112: 9811.908728 | K112: 153.3844549
A113: 3116 | B113: T | C113: BI | D113: CT | E113: 6-2000 | F113: 3183223.59 | G113: 299 | H113: 18560.68333 | I113: 0.01610932069 | J113: 10646.23274 | K113: 171.5035774
A114: 3117 | B114: T | C114: BI | D114: CT | E114: 9-2000 | F114: 3354978.72 | G114: 309 | H114: 19063.36 | I114: 0.0162091048 | J114: 10857.53631 | K114: 175.9909439
A115: 3118 | B115: T | C115: BI | D115: CT | E115: 12-2000 | F115: 3511113.74 | G115: 340 | H115: 19582.2225 | I115: 0.017362687 | J115: 10326.80512 | K115: 179.301085
A116: 3119 | B116: T | C116: BI | D116: CT | E116: 3-2001 | F116: 3854623.52 | G116: 338 | H116: 20026.83417 | I116: 0.01687735551 | J116: 11404.2116 | K116: 192.4729335
A117: 3120 | B117: T | C117: BI | D117: CT | E117: 6-2001 | F117: 4050783.41 | G117: 360 | H117: 20418.1125 | I117: 0.01763140447 | J117: 11252.17614 | K117: 198.3916687
A118: 3121 | B118: T | C118: BI | D118: CT | E118: 9-2001 | F118: 4047490.51 | G118: 347 | H118: 20857.43833 | I118: 0.01663675061 | J118: 11664.23778 | K118: 194.0550151
A119: 3122 | B119: T | C119: BI | D119: CT | E119: 12-2001 | F119: 4345166.24 | G119: 313 | H119: 21401.4075 | I119: 0.01462520631 | J119: 13882.32026 | K119: 203.0317978
A120: 3123 | B120: T | C120: BI | D120: CT | E120: 3-2002 | F120: 3858588.65 | G120: 291 | H120: 22023.095 | I120: 0.01321340166 | J120: 13259.75481 | K120: 175.2064662
A121: 3124 | B121: T | C121: BI | D121: CT | E121: 6-2002 | F121: 3819822.67 | G121: 288 | H121: 22694.54417 | I121: 0.01269027471 | J121: 13263.27316 | K121: 168.31458
A122: 3125 | B122: T | C122: BI | D122: CT | E122: 9-2002 | F122: 3937885.35 | G122: 316 | H122: 23346.80417 | I122: 0.01353504307 | J122: 12461.6625 | K122: 168.6691387
A123: 3126 | B123: T | C123: BI | D123: CT | E123: 12-2002 | F123: 3681917.38 | G123: 342 | H123: 23906.84333 | I123: 0.0143055273 | J123: 10765.84029 | K123: 154.0110222
A124: 3127 | B124: T | C124: BI | D124: CT | E124: 3-2003 | F124: 4182863.8 | G124: 374 | H124: 24368.13833 | I124: 0.01534791025 | J124: 11184.12781 | K124: 171.6529898
A125: 3128 | B125: T | C125: BI | D125: CT | E125: 6-2003 | F125: 4662386.49 | G125: 365 | H125: 24688.05833 | I125: 0.01478447576 | J125: 12773.66162 | K125: 188.8518905
A126: 3129 | B126: T | C126: BI | D126: CT | E126: 9-2003 | F126: 5147907.02 | G126: 401 | H126: 24732.3925 | I126: 0.01621355475 | J126: 12837.67337 | K126: 208.14432
A127: 3130 | B127: T | C127: BI | D127: CT | E127: 12-2003 | F127: 5186981.21 | G127: 377 | H127: 24465.5775 | I127: 0.01540940532 | J127: 13758.57085 | K127: 212.0113948
A128: 3131 | B128: T | C128: BI | D128: CT | E128: 3-2004 | F128: 4920312.89 | G128: 363 | H128: 23873.74 | I128: 0.01520499092 | J128: 13554.58096 | K128: 206.0972805
A129: 3132 | B129: T | C129: BI | D129: CT | E129: 6-2004 | F129: 4356367.09 | G129: 369 | H129: 23115.4975 | I129: 0.01596331639 | J129: 11805.87287 | K129: 188.4608839
A130: =INDEX(State,MATCH(D130,StateAbbr),1)*1000+INDEX(Coverage,MATCH(C130,CoverageAbbr),1)*100+VLOOKUP(E130,Date,2,FALSE) -> 3133 | B130: T | C130: BI | D130: CT | E130: 9-2004 | F130: 4424094.92 | G130: 334 | H130: 22391.62083 | I130: 0.01491629402 | J130: 13245.79317 | K130: 197.5781455
A131: 3134 | B131: T | C131: BI | D131: CT | E131: 12-2004 | F131: 4661401.35 | G131: 347 | H131: 21664.295 | I131: =G131/H131 -> 0.01601713788 | J131: =F131/G131 -> 13433.43329 | K131: =F131/H131 -> 215.1651531
A132: 3135 | B132: T | C132: BI | D132: CT | E132: 3-2005 | F132: 4913447.69 | G132: 342 | H132: 20974.30333 | I132: 0.01630566673 | J132: 14366.80611 | K132: 234.2603524
A133: 3136 | B133: T | C133: BI | D133: CT | E133: 6-2005 | F133: 5287672.16 | G133: 348 | H133: 20353.9375 | I133: 0.01709742894 | J133: 15194.46023 | K133: 259.786204
A134: 3137 | B134: T | C134: BI | D134: CT | E134: 9-2005 | F134: 4955694.78 | G134: 334 | H134: 19823.67333 | I134: 0.01684854237 | J134: 14837.40952 | K134: 249.9887229
A135: 3138 | B135: T | C135: BI | D135: CT | E135: 12-2005 | F135: 4838969.2 | G135: 323 | H135: 19358.38917 | I135: 0.01668527258 | J135: 14981.32879 | K135: 249.9675545
A136: 3139 | B136: T | C136: BI | D136: CT | E136: 3-2006 | F136: 4488258.6 | G136: 311 | H136: 18888.6025 | I136: 0.01646495552 | J136: 14431.69968 | K136: 237.6172933
A137: 3140 | B137: T | C137: BI | D137: CT | E137: 6-2006 | F137: 4204730.45 | G137: 298 | H137: 18798.33833 | I137: 0.01585246497 | J137: 14109.83372 | K137: 223.6756449
A138: 3141 | B138: T | C138: BI | D138: CT | E138: 9-2006 | F138: 3923576.87 | G138: 281 | H138: 19638.70917 | I138: 0.01430847606 | J138: 13962.90701 | K138: 199.7879207
A139: 3142 | B139: T | C139: BI | D139: CT | E139: 12-2006 | F139: 3508176.07 | G139: 265 | H139: 21461.79083 | I139: 0.01234752505 | J139: 13238.40026 | K139: 163.4614789
A140: 3143 | B140: T | C140: BI | D140: CT | E140: 3-2007 | F140: 3717324.69 | G140: 279 | H140: 24176.8825 | I140: 0.01153994937 | J140: 13323.74441 | K140: 153.7553359
A141: 3144 | B141: T | C141: BI | D141: CT | E141: 6-2007 | F141: 3774566.51 | G141: 273 | H141: 27445.83 | I141: 0.009946866245 | J141: 13826.25095 | K141: 137.5278689
A142: 3145 | B142: T | C142: BI | D142: CT | E142: 9-2007 | F142: 4345190.97 | G142: 309 | H142: 30236.15833 | I142: 0.01021955225 | J142: 14062.1067 | K142: 143.7084342
A143: 3146 | B143: T | C143: BI | D143: CT | E143: 12-2007 | F143: 4877765.96 | G143: 362 | H143: 32255.99333 | I143: 0.01122272057 | J143: 13474.4916 | K143: 151.2204541
A144: 3147 | B144: T | C144: BI | D144: CT | E144: 3-2008 | F144: 5622574.99 | G144: 406 | H144: 33611.04083 | I144: 0.0120793641 | J144: 13848.70687 | K144: 167.2835726
A145: 3148 | B145: T | C145: BI | D145: CT | E145: 6-2008 | F145: 7007779.84 | G145: 501 | H145: 34372.54083 | I145: 0.01457558818 | J145: 13987.58451 | K145: 203.8772715
A146: 4101 | B146: T | C146: BI | D146: FL | E146: 9-1996 | F146: 60840.7 | G146: 27 | H146: 9123.92 | I146: 0.002959254356 | J146: 2253.359259 | K146: 6.668263203
A147: 4102 | B147: T | C147: BI | D147: FL | E147: 12-1996 | F147: 122622.36 | G147: 42 | H147: 12451.04917 | I147: 0.003373209714 | J147: 2919.58 | K147: 9.848355617
A148: 4103 | B148: T | C148: BI | D148: FL | E148: 3-1997 | F148: 358206.71 | G148: 57 | H148: 12965.04333 | I148: 0.004396437292 | J148: 6284.328246 | K148: 27.62865505
A149: 4104 | B149: T | C149: BI | D149: FL | E149: 6-1997 | F149: 551517.29 | G149: 67 | H149: 13391.65583 | I149: 0.005003115435 | J149: 8231.601343 | K149: 41.18365174
A150: 4105 | B150: T | C150: BI | D150: FL | E150: 9-1997 | F150: 845318.2 | G150: 101 | H150: 13663.76417 | I150: 0.007391813761 | J150: 8369.487129 | K150: 61.86569013
A151: 4106 | B151: T | C151: BI | D151: FL | E151: 12-1997 | F151: 1415437.9 | G151: 120 | H151: 13725.50333 | I151: 0.008742848775 | J151: 11795.31583 | K151: 103.1246626
A152: 4107 | B152: T | C152: BI | D152: FL | E152: 3-1998 | F152: 1484286.38 | G152: 127 | H152: 13632.57833 | I152: 0.009315919329 | J152: 11687.29433 | K152: 108.8778912
A153: 4108 | B153: T | C153: BI | D153: FL | E153: 6-1998 | F153: 1779408 | G153: 129 | H153: 13420.82083 | I153: 0.009611930716 | J153: 13793.86047 | K153: 132.5856311
A154: 4109 | B154: T | C154: BI | D154: FL | E154: 9-1998 | F154: 2045198.39 | G154: 123 | H154: 13116.1925 | I154: 0.009377721469 | J154: 16627.62919 | K154: 155.9292752
A155: 4110 | B155: T | C155: BI | D155: FL | E155: 12-1998 | F155: 1761401.36 | G155: 112 | H155: 12767.07 | I155: 0.008772568804 | J155: 15726.79786 | K155: 137.9644163
A156: 4111 | B156: T | C156: BI | D156: FL | E156: 3-1999 | F156: 1779785.21 | G156: 111 | H156: 12337.91833 | I156: 0.008996655433 | J156: 16034.10099 | K156: 144.2532818
A157: 4112 | B157: T | C157: BI | D157: FL | E157: 6-1999 | F157: 1661543.45 | G157: 119 | H157: 11876.755 | I157: 0.01001957184 | J157: 13962.55 | K157: 139.8987729
A158: 4113 | B158: T | C158: BI | D158: FL | E158: 9-1999 | F158: 1654893.75 | G158: 111 | H158: 11387.03083 | I158: 0.009747931803 | J158: 14908.9527 | K158: 145.3314542
A159: 4114 | B159: T | C159: BI | D159: FL | E159: 12-1999 | F159: 1883577.64 | G159: 117 | H159: 10929.48667 | I159: 0.01070498584 | J159: 16098.95419 | K159: 172.3390766
A160: 4115 | B160: T | C160: BI | D160: FL | E160: 3-2000 | F160: 1951949.26 | G160: 106 | H160: 10622.67167 | I160: 0.009978657284 | J160: 18414.61566 | K160: 183.7531387
A161: 4116 | B161: T | C161: BI | D161: FL | E161: 6-2000 | F161: 2274193.23 | G161: 100 | H161: 10498.98833 | I161: 0.009524727224 | J161: 22741.9323 | K161: 216.6107017
A162: 4117 | B162: T | C162: BI | D162: FL | E162: 9-2000 | F162: 2064236.84 | G162: 97 | H162: 10562.32917 | I162: 0.009183580484 | J162: 21280.79216 | K162: 195.4338676
A163: 4118 | B163: T | C163: BI | D163: FL | E163: 12-2000 | F163: 1973890.05 | G163: 89 | H163: 10842.1975 | I163: 0.008208668031 | J163: 22178.53989 | K163: 182.0562713
A164: 4119 | B164: T | C164: BI | D164: FL | E164: 3-2001 | F164: 1866998.36 | G164: 86 | H164: 11240.89333 | I164: 0.007650637494 | J164: 21709.28326 | K164: 166.0898564
A165: 4120 | B165: T | C165: BI | D165: FL | E165: 6-2001 | F165: 1486690.03 | G165: 80 | H165: 11745.41167 | I165: 0.006811170376 | J165: 18583.62537 | K165: 126.5762386
A166: 4121 | B166: T | C166: BI | D166: FL | E166: 9-2001 | F166: 1757834.82 | G166: 84 | H166: 12426.92167 | I166: 0.006759517944 | J166: 20926.605 | K166: 141.453762
A167: 4122 | B167: T | C167: BI | D167: FL | E167: 12-2001 | F167: 1631006.13 | G167: 85 | H167: 13487.68417 | I167: 0.006302045551 | J167: 19188.30741 | K167: 120.9255874
A168: 4123 | B168: T | C168: BI | D168: FL | E168: 3-2002 | F168: 1836045.84 | G168: 112 | H168: 14952.9625 | I168: 0.007490154543 | J168: 16393.26643 | K168: 122.788099
A169: 4124 | B169: T | C169: BI | D169: FL | E169: 6-2002 | F169: 1658569.65 | G169: 119 | H169: 16779.36917 | I169: 0.007092042545 | J169: 13937.56008 | K169: 98.84576908
A170: 4125 | B170: T | C170: BI | D170: FL | E170: 9-2002 | F170: 1315862.32 | G170: 147 | H170: 18740.19167 | I170: 0.007844103338 | J170: 8951.444354 | K170: 70.21605453
A171: 4126 | B171: T | C171: BI | D171: FL | E171: 12-2002 | F171: 2217794.38 | G171: 185 | H171: 20443.54083 | I171: 0.009049313008 | J171: 11988.07773 | K171: 108.4838677
A172: 4127 | B172: T | C172: BI | D172: FL | E172: 3-2003 | F172: 2714788.5 | G172: 203 | H172: 21716.03583 | I172: 0.00934793079 | J172: 13373.34236 | K172: 125.0130789
A173: 4128 | B173: T | C173: BI | D173: FL | E173: 6-2003 | F173: 3484330.29 | G173: 244 | H173: 22504.43083 | I173: 0.01084230931 | J173: 14280.04217 | K173: 154.8286342
A174: 4129 | B174: T | C174: BI | D174: FL | E174: 9-2003 | F174: 3908560.59 | G174: 239 | H174: 22959.32083 | I174: 0.01040971559 | J174: 16353.81 | K174: 170.2385109
A175: 4130 | B175: T | C175: BI | D175: FL | E175: 12-2003 | F175: 3694476.93 | G175: 249 | H175: 23173.37417 | I175: 0.01074509039 | J175: 14837.25675 | K175: 159.4276648
A176: 4131 | B176: T | C176: BI | D176: FL | E176: 3-2004 | F176: 3504376.24 | G176: 244 | H176: 23131.215 | I176: 0.01054851637 | J176: 14362.1977 | K176: 151.4998775
A177: 4132 | B177: T | C177: BI | D177: FL | E177: 6-2004 | F177: 3425650.02 | G177: 234 | H177: 22839.44667 | I177: 0.0102454321 | J177: 14639.53 | K177: 149.9883106
A178: 4133 | B178: T | C178: BI | D178: FL | E178: 9-2004 | F178: 3526438.76 | G178: 255 | H178: 22079.37 | I178: 0.01154924257 | J178: 13829.17161 | K178: 159.7164575
A179: 4134 | B179: T | C179: BI | D179: FL | E179: 12-2004 | F179: 3802465.29 | G179: 247 | H179: 20835.47083 | I179: 0.0118547837 | J179: 15394.59632 | K179: 182.4996095
A180: 4135 | B180: T | C180: BI | D180: FL | E180: 3-2005 | F180: 4223600.01 | G180: 235 | H180: 19378.02 | I180: 0.01212714199 | J180: 17972.766 | K180: 217.9582852
A181: 4136 | B181: T | C181: BI | D181: FL | E181: 6-2005 | F181: 4321739.95 | G181: 213 | H181: 17902.7 | I181: 0.01189764672 | J181: 20289.85892 | K181: 241.4015735
A182: 4137 | B182: T | C182: BI | D182: FL | E182: 9-2005 | F182: 4775148.01 | G182: 200 | H182: 16842.705 | I182: 0.01187457715 | J182: 23875.74005 | K182: 283.5143173
A183: 4138 | B183: T | C183: BI | D183: FL | E183: 12-2005 | F183: 4199923.79 | G183: 181 | H183: 16381.9675 | I183: 0.01104873392 | J183: 23203.99884 | K183: 256.3748091
A184: 4139 | B184: T | C184: BI | D184: FL | E184: 3-2006 | F184: 3162147.93 | G184: 170 | H184: 16958.84833 | I184: 0.0100242656 | J184: 18600.87018 | K184: 186.4600631
A185: 4140 | B185: T | C185: BI | D185: FL | E185: 6-2006 | F185: 3176219.73 | G185: 168 | H185: 18781.42417 | I185: 0.008945008563 | J185: 18906.06982 | K185: 169.1149564
A186: 4141 | B186: T | C186: BI | D186: FL | E186: 9-2006 | F186: 2620284.56 | G186: 157 | H186: 21573.08917 | I186: 0.007277585458 | J186: 16689.71057 | K186: 121.460795
A187: 4142 | B187: T | C187: BI | D187: FL | E187: 12-2006 | F187: 2663444.52 | G187: 177 | H187: 25018.94 | I187: 0.007074640253 | J187: 15047.70915 | K187: 106.4571289
A188: 4143 | B188: T | C188: BI | D188: FL | E188: 3-2007 | F188: 3249920.34 | G188: 206 | H188: 28373.03 | I188: 0.007260415965 | J188: 15776.31233 | K188: 114.5425899
A189: 4144 | B189: T | C189: BI | D189: FL | E189: 6-2007 | F189: 3491258.25 | G189: 217 | H189: 31278.95083 | I189: 0.006937572848 | J189: 16088.7477 | K189: 111.6168592
A190: 4145 | B190: T | C190: BI | D190: FL | E190: 9-2007 | F190: 3978281.15 | G190: 230 | H190: 33737.73 | I190: 0.00681729328 | J190: 17296.87457 | K190: 117.9178667
A191: 4146 | B191: T | C191: BI | D191: FL | E191: 12-2007 | F191: 4204586.9 | G191: 232 | H191: 35583.165 | I191: 0.006519937167 | J191: 18123.2194 | K191: 118.1622517
A192: 4147 | B192: T | C192: BI | D192: FL | E192: 3-2008 | F192: 4833673.12 | G192: 251 | H192: 36728.43167 | I192: 0.006833942769 | J192: 19257.66183 | K192: 131.6057588
A193: 4148 | B193: T | C193: BI | D193: FL | E193: 6-2008 | F193: 5981600.14 | G193: 313 | H193: 37308.7225 | I193: 0.00838945906 | J193: 19110.54358 | K193: 160.327123
A194: =INDEX(State,MATCH(D194,StateAbbr),1)*1000+INDEX(Coverage,MATCH(C194,CoverageAbbr),1)*100+VLOOKUP(E194,Date,2,FALSE) -> 5101 | B194: T | C194: BI | D194: GA | E194: 9-1996 | F194: 152291.6 | G194: 57 | H194: 10464.64667 | I194: 0.005446911092 | J194: 2671.782456 | K194: 14.5529615
A195: 5102 | B195: T | C195: BI | D195: GA | E195: 12-1996 | F195: 321056.57 | G195: 115 | H195: 14028.85667 | I195: =G195/H195 -> 0.008197389333 | J195: =F195/G195 -> 2791.796261 | K195: =F195/H195 -> 22.88544089
A196: 5103 | B196: T | C196: BI | D196: GA | E196: 3-1997 | F196: 464661.19 | G196: 143 | H196: 14161.18583 | I196: 0.01009802439 | J196: 3249.378951 | K196: 32.81230791
A197: 5104 | B197: T | C197: BI | D197: GA | E197: 6-1997 | F197: 563678.03 | G197: 166 | H197: 14303.69167 | I197: 0.01160539558 | J197: 3395.650783 | K197: 39.40787058
A198: 5105 | B198: T | C198: BI | D198: GA | E198: 9-1997 | F198: 817742.8 | G198: 179 | H198: 14467.67333 | I198: 0.01237241095 | J198: 4568.395531 | K198: 56.5220669
A199: 5106 | B199: T | C199: BI | D199: GA | E199: 12-1997 | F199: 1067584.01 | G199: 162 | H199: 14654.33667 | I199: 0.01105474807 | J199: 6590.024753 | K199: 72.85106343
A200: 5107 | B200: T | C200: BI | D200: GA | E200: 3-1998 | F200: 1181317.93 | G200: 181 | H200: 14875.43333 | I200: 0.01216771276 | J200: 6526.618398 | K200: 79.41401797
... 5657 more rows

Sheet Exhibits
A1: EXHIBITS
A2: state# | B2: State Abbr. | D2: Coverage# | E2: Coverage Abbr | G2: Attribute # | H2: Attribute | J2: t | K2: t (index)
A3: 1 | B3: AR | D3: 1 | E3: BI | G3: 1 | H3: Frequency | J3: 9-1996 | K3: 1
A4: 2 | B4: CO | D4: 2 | E4: CM | G4: 2 | H4: Severity | J4: 12-1996 | K4: 2
A5: 3 | B5: CT | D5: 3 | E5: CO | G5: 3 | H5: PurePremium | J5: 3-1997 | K5: 3
A6: 4 | B6: FL | D6: 4 | E6: CSL | J6: 6-1997 | K6: 4
A7: 5 | B7: GA | D7: 5 | E7: PD | J7: 9-1997 | K7: 5
A8: 6 | B8: IL | D8: 6 | E8: PIP | J8: 12-1997 | K8: 6
A9: 7 | B9: IN | J9: 3-1998 | K9: 7
A10: 8 | B10: LA | J10: 6-1998 | K10: 8
A11: 9 | B11: MA | J11: 9-1998 | K11: 9
A12: 10 | B12: MD | J12: 12-1998 | K12: 10
A13: 11 | B13: ME | J13: 3-1999 | K13: 11
A14: 12 | B14: MI | J14: 6-1999 | K14: 12
A15: 13 | B15: NC | J15: 9-1999 | K15: 13
A16: 14 | B16: NH | J16: 12-1999 | K16: 14
A17: 15 | B17: NJ | J17: 3-2000 | K17: 15
A18: 16 | B18: NY | J18: 6-2000 | K18: 16
A19: 17 | B19: OH | J19: 9-2000 | K19: 17
A20: 18 | B20: OK | J20: 12-2000 | K20: 18
A21: 19 | B21: RI | J21: 3-2001 | K21: 19
A22: 20 | B22: TN | J22: 6-2001 | K22: 20
A23: 21 | B23: TX | J23: 9-2001 | K23: 21
A24: 22 | B24: VA | J24: 12-2001 | K24: 22
A25: 23 | B25: WI | J25: 3-2002 | K25: 23
J26: 6-2002 | K26: 24
J27: 9-2002 | K27: 25
J28: 12-2002 | K28: 26
J29: 3-2003 | K29: 27
J30: 6-2003 | K30: 28
J31: 9-2003 | K31: 29
J32: 12-2003 | K32: 30
J33: 3-2004 | K33: 31
J34: 6-2004 | K34: 32
J35: 9-2004 | K35: 33
J36: 12-2004 | K36: 34
J37: 3-2005 | K37: 35
J38: 6-2005 | K38: 36
J39: 9-2005 | K39: 37
J40: 12-2005 | K40: 38
J41: 3-2006 | K41: 39
J42: 6-2006 | K42: 40
J43: 9-2006 | K43: 41
J44: 12-2006 | K44: 42
J45: 3-2007 | K45: 43
J46: 6-2007 | K46: 44
J47: 9-2007 | K47: 45
J48: 12-2007 | K48: 46
J49: 3-2008 | K49: 47
J50: 6-2008 | K50: 48
